Workbook

Sheet 수시학과목록 (hidden)
A1: 모집단위
A2: 국어국문학과
A3: 영어영문학과
A4: 사학과
A5: 철학과
A6: 불어불문학과
A7: 독어독문학과
A8: 중어중문학과
A9: 고고인류학과
A10: 일어일문학과
A11: 한문학과
A12: 노어노문학과
A13: 정치외교학과
A14: 사회학과
A15: 지리학과
A16: 문헌정보학과
A17: 심리학과
A18: 사회복지학부
A19: 미디어커뮤니케이션학과
A20: 수학과
A21: 물리학과
A22: 화학과
A23: 생명과학부(생명공학전공)
A24: 생명과학부(생물학전공)
A25: 통계학과
A26: 지구시스템과학부
A27: 경제통상학부
A28: 경영학부
A29: 신소재공학부
A30: 기계공학부
A31: 건축학부(건축학전공)
A32: 건축학부(건축공학전공)
A33: 토목공학과
A34: 응용화학과
A35: 화학공학과
A36: 고분자공학과
A37: 섬유시스템공학과
A38: 환경공학과
A39: 에너지공학부
A40: 응용생명과학부
A41: 식품공학부
A42: 산림과학ㆍ조경학부
A43: 원예과학과
A44: 농업토목ㆍ생물산업공학부
A45: 바이오섬유소재학과
A46: 식품자원경제학과
A47: 음악학과(관현악전공)
A48: 음악학과(성악전공)
A49: 음악학과(작곡전공)
A50: 음악학과(피아노전공)
A51: 국악학과(기악전공)
A52: 국악학과(성악전공)
A53: 미술학과(서양화전공)
A54: 미술학과(조소전공)
A55: 미술학과(한국화전공)
A56: 디자인학과
A57: 교육학과
A58: 국어교육과
A59: 영어교육과
A60: 유럽어교육학부(독어교육전공)
A61: 유럽어교육학부(불어교육전공)
A62: 역사교육과
A63: 지리교육과
A64: 일반사회교육과
A65: 윤리교육과
A66: 수학교육과
A67: 물리교육과
A68: 화학교육과
A69: 생물교육과
A70: 지구과학교육과
A71: 가정교육과
A72: 체육교육과
A73: 의예과
A74: 치의예과
A75: 수의예과
A76: 아동학부
A77: 의류학과
A78: 식품영양학과
A79: 간호학과
A80: 약학과
A81: 전자공학부
A82: 컴퓨터학부
A83: 컴퓨터학부(글로벌소프트웨어융합전공)
A84: 전기공학과
A85: 전자공학부모바일공학전공
A86: 인문사회자율전공
A87: 자연과학자율전공
A88: 행정학부
A89: 생태환경시스템학부
A90: 곤충생명과학과
A91: 축산학과
A92: 축산생명공학과
A93: 말/특수동물학과
A94: 관광학과
A95: 레저스포츠학과
A96: 건설방재공학부
A97: 정밀기계공학과
A98: 자동차공학부
A99: 소프트웨어학과
A100: 나노소재공학부
A101: 식품외식산업학과
A102: 섬유패션디자인학부(섬유공학전공)
A103: 융복합시스템공학부
A104: 치위생학과
A105: 섬유패션디자인학부(패션디자인전공)

Sheet 관심학과 검색
D1: 2022학년도 학과별 성적자료(수시)
B4: 학교 | C4: 모집단위
A5: 1 | B5: 경북대학교 | C5: 국어국문학과 | D5: 학교 | E5: 모집단위 | F5: 캠퍼스 | G5: 대학 | H5: 전형명 | I5: 모집인원 | J5: 지원인원 | K5: 경쟁률 | L5: 입학인원 | M5: 합격자 기준 | N5: 인원수 | O5: 실질경쟁률 | P5: 평균 | Q5: 0.5 | R5: 70% cut | S5: 85% cut | T5: 만점 | U5: 평균 | V5: 70% cut | W5: 85% cut | X5: 논술 만점 | Y5: 논술 평균점수
D6: 경북대학교 | E6: 국어국문학과 | F6: 대구 | G6: 인문대학 | H6: 학생부교과(일반학생) | I6: 5 | J6: 57 | K6: 11.4 | L6: 5 | M6: 8 | N6: 16 | O6: 3.2 | P6: 3.248086578 | Q6: 3.39 | R6: 3.82329897 | S6: 3.82329897 | T6: 525 | U6: 3.248086578 | V6: 3.82329897 | W6: 3.82329897 | X6: - | Y6: -
D7: 경북대학교 | E7: 국어국문학과 | F7: 대구 | G7: 인문대학 | H7: 학생부교과(지역인재) | I7: 4 | J7: 43 | K7: 10.75 | L7: 4 | M7: 9 | N7: 14 | O7: 3.5 | P7: 3.30621428 | Q7: 2.86 | R7: 3.50088889 | S7: 3.50088889 | T7: 525 | U7: 3.30621428 | V7: 3.50088889 | W7: 3.50088889 | X7: - | Y7: -
D8: 경북대학교 | E8: 국어국문학과 | F8: 대구 | G8: 인문대학 | H8: 논술(AAT)전형 | I8: 6 | J8: 115 | K8: 19.16666667 | L8: 6 | M8: 0 | N8: 33 | O8: 5.5 | P8: 4.976277205 | Q8: - | R8: - | S8: - | T8: - | U8: 4.976277205 | V8: - | W8: - | X8: 350 | Y8: 240.6666667
D9: 경북대학교 | E9: 국어국문학과 | F9: 대구 | G9: 인문대학 | H9: 학생부종합(일반학생) | I9: 5 | J9: 58 | K9: 11.6 | L9: 5 | M9: 2 | N9: 33 | O9: 6.6 | P9: 3.428110233 | Q9: 3.55 | R9: 3.61447917 | S9: 3.61447917 | T9: - | U9: 3.428110233 | V9: 3.61447917 | W9: 3.61447917 | X9: - | Y9: -
D10: 경북대학교 | E10: 국어국문학과 | F10: 대구 | G10: 인문대학 | H10: 학생부종합(농어촌학생등) | I10: 1 | J10: 6 | K10: 6 | L10: 1 | M10: 1 | N10: - | O10: - | P10: - | Q10: - | R10: - | S10: - | T10: - | U10: - | V10: - | W10: - | X10: - | Y10: -
D11: 경북대학교 | E11: 국어국문학과 | F11: 대구 | G11: 인문대학 | H11: 학생부종합(기초생활수급자등대상자등) | I11: 1 | J11: 9 | K11: 9 | L11: 1 | M11: 0 | N11: - | O11: - | P11: - | Q11: - | R11: - | S11: - | T11: - | U11: - | V11: - | W11: - | X11: - | Y11: -

Sheet 2022학년도 학과별 성적자료(수시)다중필터용 (hidden)
D1: 2022학년도 학과별 성적자료(수시)
G2: 2022학년도
G3: 지원 및 합격 현황 | K3: 추합최종번호 | L3: 최저기준통과 | N3: 입학자 학생부 등급 | R3: 입학자 반영점수(교과+진로선택과목)
B4: 학교 | C4: 모집단위 | D4: 캠퍼스 | E4: 대학 | F4: 전형명 | G4: 모집인원 | H4: 지원인원 | I4: 경쟁률 | J4: 입학인원 | K4: 합격자 기준 | L4: 인원수 | M4: 실질경쟁률 | N4: 평균 | O4: 0.5 | P4: 70% cut | Q4: 85% cut | R4: 만점 | S4: 평균 | T4: 70% cut | U4: 85% cut | V4: 논술 만점 | W4: 논술 평균점수
A5: 1 | B5: 경북대학교 | C5: 국어국문학과 | D5: 대구 | E5: 인문대학 | F5: 학생부교과(일반학생) | G5: 5 | H5: 57 | I5: =H5/G5 -> 11.4 | J5: 5 | K5: 8 | L5: 16 | M5: =L5/G5 -> 3.2 | N5: 3.248086578 | O5: 3.39 | P5: 3.82329897 | Q5: 3.82329897 | R5: 525 | S5: 409.962 | T5: 383.76 | U5: 383.76 | V5: - | W5: -
A6: 2 | B6: 경북대학교 | C6: 국어국문학과 | D6: 대구 | E6: 인문대학 | F6: 학생부교과(지역인재) | G6: 4 | H6: 43 | I6: 10.75 | J6: 4 | K6: 9 | L6: 14 | M6: =L6/G6 -> 3.5 | N6: 3.30621428 | O6: 2.86 | P6: 3.50088889 | Q6: 3.50088889 | R6: 525 | S6: 409.6675 | T6: 400 | U6: 400 | V6: - | W6: -
A7: 3 | B7: 경북대학교 | C7: 국어국문학과 | D7: 대구 | E7: 인문대학 | F7: 논술(AAT)전형 | G7: 6 | H7: 115 | I7: =H7/G7 -> 19.16666667 | J7: 6 | K7: 0 | L7: 33 | M7: =L7/G7 -> 5.5 | N7: 4.976277205 | O7: - | P7: - | Q7: - | R7: - | S7: - | T7: - | U7: - | V7: 350 | W7: 240.6666667
A8: 4 | B8: 경북대학교 | C8: 국어국문학과 | D8: 대구 | E8: 인문대학 | F8: 학생부종합(일반학생) | G8: 5 | H8: 58 | I8: =H8/G8 -> 11.6 | J8: 5 | K8: 2 | L8: 33 | M8: =L8/G8 -> 6.6 | N8: 3.428110233 | O8: 3.55 | P8: 3.61447917 | Q8: 3.61447917 | R8: - | S8: - | T8: - | U8: - | V8: - | W8: -
A9: 5 | B9: 경북대학교 | C9: 국어국문학과 | D9: 대구 | E9: 인문대학 | F9: 학생부종합(농어촌학생등) | G9: 1 | H9: 6 | I9: =H9/G9 -> 6 | J9: 1 | K9: 1 | L9: - | M9: - | N9: - | O9: - | P9: - | Q9: - | R9: - | S9: - | T9: - | U9: - | V9: - | W9: -
A10: 6 | B10: 경북대학교 | C10: 국어국문학과 | D10: 대구 | E10: 인문대학 | F10: 학생부종합(기초생활수급자등대상자등) | G10: 1 | H10: 9 | I10: 9 | J10: 1 | K10: 0 | L10: - | M10: - | N10: - | O10: - | P10: - | Q10: - | R10: - | S10: - | T10: - | U10: - | V10: - | W10: -
A11: 7 | B11: 경북대학교 | C11: 영어영문학과 | D11: 대구 | E11: 인문대학 | F11: 학생부교과(일반학생) | G11: 11 | H11: 127 | I11: =H11/G11 -> 11.54545455 | J11: 11 | K11: 9 | L11: 44 | M11: =L11/G11 -> 4 | N11: 2.406561745 | O11: 2.49 | P11: 2.5 | Q11: 2.5 | R11: 525 | S11: 453.4163636 | T11: 450 | U11: 446.25 | V11: - | W11: -
A12: 8 | B12: 경북대학교 | C12: 영어영문학과 | D12: 대구 | E12: 인문대학 | F12: 학생부교과(지역인재) | G12: 4 | H12: 41 | I12: 10.25 | J12: 4 | K12: 4 | L12: 12 | M12: =L12/G12 -> 3 | N12: 2.62718461 | O12: 2.66 | P12: 2.75367347 | Q12: 2.75367347 | R12: 525 | S12: 442.5875 | T12: 437.24 | U12: 437.24 | V12: - | W12: -
A13: 9 | B13: 경북대학교 | C13: 영어영문학과 | D13: 대구 | E13: 인문대학 | F13: 논술(AAT)전형 | G13: 10 | H13: 218 | I13: =H13/G13 -> 21.8 | J13: 10 | K13: 6 | L13: 63 | M13: =L13/G13 -> 6.3 | N13: 4.441150587 | O13: - | P13: - | Q13: - | R13: - | S13: - | T13: - | U13: - | V13: 350 | W13: 227.5
A14: 10 | B14: 경북대학교 | C14: 영어영문학과 | D14: 대구 | E14: 인문대학 | F14: 학생부종합(일반학생) | G14: 9 | H14: 93 | I14: =H14/G14 -> 10.33333333 | J14: 9 | K14: 10 | L14: 44 | M14: =L14/G14 -> 4.888888889 | N14: 3.844251232 | O14: 3.97 | P14: 4.22627451 | Q14: 4.90979592 | R14: - | S14: - | T14: - | U14: - | V14: - | W14: -
A15: 11 | B15: 경북대학교 | C15: 영어영문학과 | D15: 대구 | E15: 인문대학 | F15: 학생부종합(지역인재) | G15: 3 | H15: 23 | I15: =H15/G15 -> 7.666666667 | J15: 3 | K15: 0 | L15: - | M15: - | N15: 3.461181362 | O15: 3.67 | P15: 3.67265306 | Q15: 3.68358333 | R15: - | S15: - | T15: - | U15: - | V15: - | W15: -
A16: 12 | B16: 경북대학교 | C16: 영어영문학과 | D16: 대구 | E16: 인문대학 | F16: 학생부종합(농어촌학생등) | G16: 4 | H16: 15 | I16: =H16/G16 -> 3.75 | J16: 4 | K16: 3 | L16: - | M16: - | N16: 3.761520297 | O16: 3.64 | P16: 4.14782178 | Q16: 4.14782178 | R16: - | S16: - | T16: - | U16: - | V16: - | W16: -
A17: 13 | B17: 경북대학교 | C17: 영어영문학과 | D17: 대구 | E17: 인문대학 | F17: 학생부종합(기초생활수급자등대상자등) | G17: 2 | H17: 10 | I17: 5 | J17: 2 | K17: 0 | L17: - | M17: - | N17: - | O17: - | P17: - | Q17: - | R17: - | S17: - | T17: - | U17: - | V17: - | W17: -
A18: 14 | B18: 경북대학교 | C18: 사학과 | D18: 대구 | E18: 인문대학 | F18: 학생부교과(일반학생) | G18: 10 | H18: 94 | I18: =H18/G18 -> 9.4 | J18: 10 | K18: 5 | L18: 20 | M18: =L18/G18 -> 2 | N18: 3.621708878 | O18: 3.52 | P18: 3.85571429 | Q18: 4.0314433 | R18: 525 | S18: 391.556 | T18: 382.14 | U18: 366.78 | V18: - | W18: -
A19: 15 | B19: 경북대학교 | C19: 사학과 | D19: 대구 | E19: 인문대학 | F19: 논술(AAT)전형 | G19: 5 | H19: 106 | I19: =H19/G19 -> 21.2 | J19: 5 | K19: 4 | L19: 21 | M19: =L19/G19 -> 4.2 | N19: 3.713133802 | O19: - | P19: - | Q19: - | R19: - | S19: - | T19: - | U19: - | V19: 350 | W19: 207.8
A20: 16 | B20: 경북대학교 | C20: 사학과 | D20: 대구 | E20: 인문대학 | F20: 학생부종합(일반학생) | G20: 9 | H20: 74 | I20: =H20/G20 -> 8.222222222 | J20: 9 | K20: 6 | L20: 32 | M20: =L20/G20 -> 3.555555556 | N20: 3.728691554 | O20: 3.12 | P20: 3.59285714 | Q20: 4.64516129 | R20: - | S20: - | T20: - | U20: - | V20: - | W20: -
A21: 17 | B21: 경북대학교 | C21: 사학과 | D21: 대구 | E21: 인문대학 | F21: 학생부종합(지역인재) | G21: 4 | H21: 26 | I21: =H21/G21 -> 6.5 | J21: 4 | K21: 0 | L21: - | M21: - | N21: 3.869987482 | O21: 3.32 | P21: 4.43521739 | Q21: 4.43521739 | R21: - | S21: - | T21: - | U21: - | V21: - | W21: -
A22: 18 | B22: 경북대학교 | C22: 사학과 | D22: 대구 | E22: 인문대학 | F22: 학생부종합(농어촌학생등) | G22: 3 | H22: 12 | I22: =H22/G22 -> 4 | J22: 3 | K22: 1 | L22: - | M22: - | N22: 3.180739143 | O22: 3.33 | P22: 3.32625 | Q22: 3.66475248 | R22: - | S22: - | T22: - | U22: - | V22: - | W22: -
A23: 19 | B23: 경북대학교 | C23: 사학과 | D23: 대구 | E23: 인문대학 | F23: 학생부종합(기초생활수급자등대상자등) | G23: 1 | H23: 8 | I23: 8 | J23: 1 | K23: 1 | L23: - | M23: - | N23: - | O23: - | P23: - | Q23: - | R23: - | S23: - | T23: - | U23: - | V23: - | W23: -
A24: 20 | B24: 경북대학교 | C24: 철학과 | D24: 대구 | E24: 인문대학 | F24: 학생부교과(일반학생) | G24: 8 | H24: 81 | I24: =H24/G24 -> 10.125 | J24: 8 | K24: 5 | L24: 22 | M24: =L24/G24 -> 2.75 | N24: 3.393055361 | O24: 3.38 | P24: 3.58183674 | Q24: 3.64108108 | R24: 525 | S24: 403.72 | T24: 395.92 | U24: 386.42 | V24: - | W24: -
A25: 21 | B25: 경북대학교 | C25: 철학과 | D25: 대구 | E25: 인문대학 | F25: 논술(AAT)전형 | G25: 4 | H25: 62 | I25: =H25/G25 -> 15.5 | J25: 4 | K25: 1 | L25: 15 | M25: =L25/G25 -> 3.75 | N25: 4.563203993 | O25: - | P25: - | Q25: - | R25: - | S25: - | T25: - | U25: - | V25: 350 | W25: 221.5
A26: 22 | B26: 경북대학교 | C26: 철학과 | D26: 대구 | E26: 인문대학 | F26: 학생부종합(일반학생) | G26: 3 | H26: 38 | I26: =H26/G26 -> 12.66666667 | J26: 3 | K26: 0 | L26: 20 | M26: =L26/G26 -> 6.666666667 | N26: 3.489467558 | O26: 3.67 | P26: 3.66541667 | Q26: 3.84804348 | R26: - | S26: - | T26: - | U26: - | V26: - | W26: -
A27: 23 | B27: 경북대학교 | C27: 철학과 | D27: 대구 | E27: 인문대학 | F27: 학생부종합(농어촌학생등) | G27: 1 | H27: 4 | I27: =H27/G27 -> 4 | J27: 1 | K27: 2 | L27: - | M27: - | N27: - | O27: - | P27: - | Q27: - | R27: - | S27: - | T27: - | U27: - | V27: - | W27: -
A28: 24 | B28: 경북대학교 | C28: 철학과 | D28: 대구 | E28: 인문대학 | F28: 학생부종합(기초생활수급자등대상자등) | G28: 1 | H28: 6 | I28: 6 | J28: 1 | K28: 3 | L28: - | M28: - | N28: - | O28: - | P28: - | Q28: - | R28: - | S28: - | T28: - | U28: - | V28: - | W28: -
A29: 25 | B29: 경북대학교 | C29: 불어불문학과 | D29: 대구 | E29: 인문대학 | F29: 학생부교과(일반학생) | G29: 7 | H29: 89 | I29: =H29/G29 -> 12.71428571 | J29: 7 | K29: 9 | L29: 24 | M29: =L29/G29 -> 3.428571429 | N29: 3.294317616 | O29: 3.12 | P29: 3.12412371 | Q29: 3.9279798 | R29: 525 | S29: 409.5657143 | T29: 418.81 | U29: 378.54 | V29: - | W29: -
A30: 26 | B30: 경북대학교 | C30: 불어불문학과 | D30: 대구 | E30: 인문대학 | F30: 학생부교과(지역인재) | G30: 3 | H30: 37 | I30: 12.33333333 | J30: 2 | K30: 7 | L30: 10 | M30: =L30/G30 -> 3.333333333 | N30: - | O30: - | P30: - | Q30: - | R30: - | S30: - | T30: - | U30: - | V30: - | W30: -
A31: 27 | B31: 경북대학교 | C31: 불어불문학과 | D31: 대구 | E31: 인문대학 | F31: 학생부종합(일반학생) | G31: 3 | H31: 31 | I31: =H31/G31 -> 10.33333333 | J31: 3 | K31: 1 | L31: 7 | M31: =L31/G31 -> 2.333333333 | N31: 3.388483231 | O31: 3.4 | P31: 3.39776699 | Q31: 3.69159575 | R31: - | S31: - | T31: - | U31: - | V31: - | W31: -
A32: 28 | B32: 경북대학교 | C32: 불어불문학과 | D32: 대구 | E32: 인문대학 | F32: 학생부종합(농어촌학생등) | G32: 2 | H32: 10 | I32: =H32/G32 -> 5 | J32: 2 | K32: 5 | L32: - | M32: - | N32: - | O32: - | P32: - | Q32: - | R32: - | S32: - | T32: - | U32: - | V32: - | W32: -
A33: 29 | B33: 경북대학교 | C33: 불어불문학과 | D33: 대구 | E33: 인문대학 | F33: 학생부종합(기초생활수급자등대상자등) | G33: 1 | H33: 7 | I33: 7 | J33: 1 | K33: 2 | L33: - | M33: - | N33: - | O33: - | P33: - | Q33: - | R33: - | S33: - | T33: - | U33: - | V33: - | W33: -
A34: 30 | B34: 경북대학교 | C34: 독어독문학과 | D34: 대구 | E34: 인문대학 | F34: 학생부교과(일반학생) | G34: 6 | H34: 71 | I34: =H34/G34 -> 11.83333333 | J34: 6 | K34: 5 | L34: 11 | M34: =L34/G34 -> 1.833333333 | N34: 4.260383116 | O34: 3.8 | P34: 4.23826087 | Q34: 4.46517241 | R34: 525 | S34: 356.2933333 | T34: 363.04 | U34: 343.06 | V34: - | W34: -
A35: 31 | B35: 경북대학교 | C35: 독어독문학과 | D35: 대구 | E35: 인문대학 | F35: 학생부교과(지역인재) | G35: 3 | H35: 31 | I35: 10.33333333 | J35: 2 | K35: 1 | L35: 5 | M35: =L35/G35 -> 1.666666667 | N35: - | O35: - | P35: - | Q35: - | R35: - | S35: - | T35: - | U35: - | V35: - | W35: -
A36: 32 | B36: 경북대학교 | C36: 독어독문학과 | D36: 대구 | E36: 인문대학 | F36: 논술(AAT)전형 | G36: 4 | H36: 67 | I36: =H36/G36 -> 16.75 | J36: 4 | K36: 0 | L36: 14 | M36: =L36/G36 -> 3.5 | N36: 4.053692492 | O36: - | P36: - | Q36: - | R36: - | S36: - | T36: - | U36: - | V36: 350 | W36: 221.625
A37: 33 | B37: 경북대학교 | C37: 독어독문학과 | D37: 대구 | E37: 인문대학 | F37: 학생부종합(일반학생) | G37: 6 | H37: 57 | I37: =H37/G37 -> 9.5 | J37: 6 | K37: 3 | L37: 18 | M37: =L37/G37 -> 3 | N37: 4.272974581 | O37: 3.96 | P37: 4.18607843 | Q37: 5.4416 | R37: - | S37: - | T37: - | U37: - | V37: - | W37: -
A38: 34 | B38: 경북대학교 | C38: 독어독문학과 | D38: 대구 | E38: 인문대학 | F38: 학생부종합(농어촌학생등) | G38: 1 | H38: 4 | I38: =H38/G38 -> 4 | J38: 1 | K38: 0 | L38: - | M38: - | N38: - | O38: - | P38: - | Q38: - | R38: - | S38: - | T38: - | U38: - | V38: - | W38: -
A39: 35 | B39: 경북대학교 | C39: 독어독문학과 | D39: 대구 | E39: 인문대학 | F39: 학생부종합(기초생활수급자등대상자등) | G39: 1 | H39: 9 | I39: 9 | J39: 1 | K39: 1 | L39: - | M39: - | N39: - | O39: - | P39: - | Q39: - | R39: - | S39: - | T39: - | U39: - | V39: - | W39: -
A40: 36 | B40: 경북대학교 | C40: 중어중문학과 | D40: 대구 | E40: 인문대학 | F40: 학생부교과(일반학생) | G40: 3 | H40: 29 | I40: =H40/G40 -> 9.666666667 | J40: 1 | K40: 4 | L40: 7 | M40: =L40/G40 -> 2.333333333 | N40: - | O40: - | P40: - | Q40: - | R40: - | S40: - | T40: - | U40: - | V40: - | W40: -
A41: 37 | B41: 경북대학교 | C41: 중어중문학과 | D41: 대구 | E41: 인문대학 | F41: 논술(AAT)전형 | G41: 6 | H41: 110 | I41: 18.33333333 | J41: 6 | K41: 1 | L41: 14 | M41: =L41/G41 -> 2.333333333 | N41: 3.928858052 | O41: - | P41: - | Q41: - | R41: - | S41: - | T41: - | U41: - | V41: 350 | W41: 206.5833333
A42: 38 | B42: 경북대학교 | C42: 중어중문학과 | D42: 대구 | E42: 인문대학 | F42: 학생부종합(일반학생) | G42: 4 | H42: 48 | I42: 12 | J42: 4 | K42: 2 | L42: 23 | M42: =L42/G42 -> 5.75 | N42: 4.445481657 | O42: 4.25 | P42: 4.84705882 | Q42: 4.84705882 | R42: - | S42: - | T42: - | U42: - | V42: - | W42: -
A43: 39 | B43: 경북대학교 | C43: 중어중문학과 | D43: 대구 | E43: 인문대학 | F43: 학생부종합(농어촌학생등) | G43: 1 | H43: 8 | I43: 8 | J43: 1 | K43: 0 | L43: - | M43: - | N43: - | O43: - | P43: - | Q43: - | R43: - | S43: - | T43: - | U43: - | V43: - | W43: -
A44: 40 | B44: 경북대학교 | C44: 고고인류학과 | D44: 대구 | E44: 인문대학 | F44: 학생부교과(일반학생) | G44: 4 | H44: 41 | I44: 10.25 | J44: 4 | K44: 9 | L44: 14 | M44: =L44/G44 -> 3.5 | N44: 3.401906078 | O44: 2.79 | P44: 2.9177 | Q44: 2.9177 | R44: 525 | S44: 401.225 | T44: 429 | U44: 429 | V44: - | W44: -
A45: 41 | B45: 경북대학교 | C45: 고고인류학과 | D45: 대구 | E45: 인문대학 | F45: 논술(AAT)전형 | G45: 5 | H45: 88 | I45: 17.6 | J45: 5 | K45: 3 | L45: 22 | M45: =L45/G45 -> 4.4 | N45: 4.077132796 | O45: - | P45: - | Q45: - | R45: - | S45: - | T45: - | U45: - | V45: 350 | W45: 237.7
A46: 42 | B46: 경북대학교 | C46: 고고인류학과 | D46: 대구 | E46: 인문대학 | F46: 학생부종합(일반학생) | G46: 5 | H46: 39 | I46: 7.8 | J46: 5 | K46: 6 | L46: 16 | M46: =L46/G46 -> 3.2 | N46: 3.477638718 | O46: 3.51 | P46: 3.58416667 | Q46: 3.58416667 | R46: - | S46: - | T46: - | U46: - | V46: - | W46: -
A47: 43 | B47: 경북대학교 | C47: 고고인류학과 | D47: 대구 | E47: 인문대학 | F47: 학생부종합(농어촌학생등) | G47: 1 | H47: 3 | I47: 3 | J47: 1 | K47: 1 | L47: - | M47: - | N47: - | O47: - | P47: - | Q47: - | R47: - | S47: - | T47: - | U47: - | V47: - | W47: -
A48: 44 | B48: 경북대학교 | C48: 일어일문학과 | D48: 대구 | E48: 인문대학 | F48: 학생부교과(일반학생) | G48: 7 | H48: 75 | I48: 10.71428571 | J48: 6 | K48: 11 | L48: 21 | M48: =L48/G48 -> 3 | N48: 2.928665627 | O48: 3.02 | P48: 3.02347826 | Q48: 3.241 | R48: 525 | S48: 428.615 | T48: 423.91 | U48: 413 | V48: - | W48: -
A49: 45 | B49: 경북대학교 | C49: 일어일문학과 | D49: 대구 | E49: 인문대학 | F49: 논술(AAT)전형 | G49: 4 | H49: 62 | I49: 15.5 | J49: 4 | K49: 0 | L49: 10 | M49: =L49/G49 -> 2.5 | N49: 3.75605894 | O49: - | P49: - | Q49: - | R49: - | S49: - | T49: - | U49: - | V49: 350 | W49: 241.625
A50: 46 | B50: 경북대학교 | C50: 일어일문학과 | D50: 대구 | E50: 인문대학 | F50: 학생부종합(일반학생) | G50: 4 | H50: 59 | I50: 14.75 | J50: 4 | K50: 3 | L50: 25 | M50: =L50/G50 -> 6.25 | N50: 4.374590658 | O50: 3.84 | P50: 4.92979592 | Q50: 4.92979592 | R50: - | S50: - | T50: - | U50: - | V50: - | W50: -
A51: 47 | B51: 경북대학교 | C51: 일어일문학과 | D51: 대구 | E51: 인문대학 | F51: 학생부종합(지역인재) | G51: 3 | H51: 26 | I51: 8.666666667 | J51: 3 | K51: 0 | L51: - | M51: - | N51: 4.820104088 | O51: 5.72 | P51: 5.71924731 | Q51: 5.92929412 | R51: - | S51: - | T51: - | U51: - | V51: - | W51: -
A52: 48 | B52: 경북대학교 | C52: 일어일문학과 | D52: 대구 | E52: 인문대학 | F52: 학생부종합(농어촌학생등) | G52: 1 | H52: 5 | I52: 5 | J52: 1 | K52: 1 | L52: - | M52: - | N52: - | O52: - | P52: - | Q52: - | R52: - | S52: - | T52: - | U52: - | V52: - | W52: -
A53: 49 | B53: 경북대학교 | C53: 일어일문학과 | D53: 대구 | E53: 인문대학 | F53: 학생부종합(기초생활수급자등대상자등) | G53: 1 | H53: 13 | I53: 13 | J53: 1 | K53: 0 | L53: - | M53: - | N53: - | O53: - | P53: - | Q53: - | R53: - | S53: - | T53: - | U53: - | V53: - | W53: -
A54: 50 | B54: 경북대학교 | C54: 한문학과 | D54: 대구 | E54: 인문대학 | F54: 학생부교과(일반학생) | G54: 6 | H54: 64 | I54: =H54/G54 -> 10.66666667 | J54: 6 | K54: 9 | L54: 23 | M54: =L54/G54 -> 3.833333333 | N54: 3.535106042 | O54: 3.64 | P54: 3.727 | Q54: 3.88416667 | R54: 525 | S54: 397.695 | T54: 385.31 | U54: 380.73 | V54: - | W54: -
A55: 51 | B55: 경북대학교 | C55: 한문학과 | D55: 대구 | E55: 인문대학 | F55: 논술(AAT)전형 | G55: 3 | H55: 43 | I55: 14.33333333 | J55: 3 | K55: 1 | L55: 7 | M55: =L55/G55 -> 2.333333333 | N55: 4.207606373 | O55: - | P55: - | Q55: - | R55: - | S55: - | T55: - | U55: - | V55: 350 | W55: 174.1666667
A56: 52 | B56: 경북대학교 | C56: 한문학과 | D56: 대구 | E56: 인문대학 | F56: 학생부종합(일반학생) | G56: 4 | H56: 36 | I56: 9 | J56: 4 | K56: 3 | L56: 13 | M56: =L56/G56 -> 3.25 | N56: 4.142390257 | O56: 2.99 | P56: 4.12202247 | Q56: 4.12202247 | R56: - | S56: - | T56: - | U56: - | V56: - | W56: -
A57: 53 | B57: 경북대학교 | C57: 한문학과 | D57: 대구 | E57: 인문대학 | F57: 학생부종합(농어촌학생등) | G57: 1 | H57: 5 | I57: 5 | J57: 1 | K57: 0 | L57: - | M57: - | N57: - | O57: - | P57: - | Q57: - | R57: - | S57: - | T57: - | U57: - | V57: - | W57: -
A58: 54 | B58: 경북대학교 | C58: 노어노문학과 | D58: 대구 | E58: 인문대학 | F58: 학생부교과(일반학생) | G58: 4 | H58: 49 | I58: 12.25 | J58: 4 | K58: 6 | L58: 12 | M58: =L58/G58 -> 3 | N58: 3.367173763 | O58: 3.22 | P58: 3.46363636 | Q58: 3.46363636 | R58: 525 | S58: 402.6625 | T58: 395.66 | U58: 395.66 | V58: - | W58: -
A59: 55 | B59: 경북대학교 | C59: 노어노문학과 | D59: 대구 | E59: 인문대학 | F59: 논술(AAT)전형 | G59: 3 | H59: 52 | I59: 17.33333333 | J59: 3 | K59: 2 | L59: 12 | M59: =L59/G59 -> 4 | N59: 4.20536784 | O59: - | P59: - | Q59: - | R59: - | S59: - | T59: - | U59: - | V59: 350 | W59: 243.1666667
A60: 56 | B60: 경북대학교 | C60: 노어노문학과 | D60: 대구 | E60: 인문대학 | F60: 학생부종합(일반학생) | G60: 8 | H60: 122 | I60: 15.25 | J60: 7 | K60: 6 | L60: 40 | M60: =L60/G60 -> 5 | N60: 4.325496654 | O60: 4.21 | P60: 4.3444086 | Q60: 4.84804348 | R60: - | S60: - | T60: - | U60: - | V60: - | W60: -
A61: 57 | B61: 경북대학교 | C61: 노어노문학과 | D61: 대구 | E61: 인문대학 | F61: 학생부종합(지역인재) | G61: 3 | H61: 24 | I61: 8 | J61: 3 | K61: 1 | L61: - | M61: - | N61: 4.098374443 | O61: 4.04 | P61: 4.04384615 | Q61: 4.480625 | R61: - | S61: - | T61: - | U61: - | V61: - | W61: -
A62: 58 | B62: 경북대학교 | C62: 노어노문학과 | D62: 대구 | E62: 인문대학 | F62: 학생부종합(농어촌학생등) | G62: 1 | H62: 7 | I62: 7 | J62: 1 | K62: 0 | L62: - | M62: - | N62: - | O62: - | P62: - | Q62: - | R62: - | S62: - | T62: - | U62: - | V62: - | W62: -
A63: 59 | B63: 경북대학교 | C63: 노어노문학과 | D63: 대구 | E63: 인문대학 | F63: 학생부종합(기초생활수급자등대상자등) | G63: 1 | H63: 5 | I63: 5 | J63: 1 | K63: 0 | L63: - | M63: - | N63: - | O63: - | P63: - | Q63: - | R63: - | S63: - | T63: - | U63: - | V63: - | W63: -
A64: 60 | B64: 경북대학교 | C64: 정치외교학과 | D64: 대구 | E64: 사회과학대학 | F64: 학생부교과(일반학생) | G64: 7 | H64: 70 | I64: =H64/G64 -> 10 | J64: 5 | K64: 4 | L64: 12 | M64: =L64/G64 -> 1.714285714 | N64: 3.184535072 | O64: 3.1 | P64: 3.59442308 | Q64: 3.59442308 | R64: 525 | S64: 411.054 | T64: 388.52 | U64: 388.52 | V64: - | W64: -
A65: 61 | B65: 경북대학교 | C65: 정치외교학과 | D65: 대구 | E65: 사회과학대학 | F65: 논술(AAT)전형 | G65: 3 | H65: 50 | I65: =H65/G65 -> 16.66666667 | J65: 3 | K65: 1 | L65: 9 | M65: =L65/G65 -> 3 | N65: 4.714853397 | O65: - | P65: - | Q65: - | R65: - | S65: - | T65: - | U65: - | V65: 350 | W65: 226.3333333
A66: 62 | B66: 경북대학교 | C66: 정치외교학과 | D66: 대구 | E66: 사회과학대학 | F66: 학생부종합(일반학생) | G66: 4 | H66: 49 | I66: =H66/G66 -> 12.25 | J66: 3 | K66: 11 | L66: 23 | M66: =L66/G66 -> 5.75 | N66: 2.874029846 | O66: 3.29 | P66: 3.2910101 | Q66: 4.27989583 | R66: - | S66: - | T66: - | U66: - | V66: - | W66: -
A67: 63 | B67: 경북대학교 | C67: 정치외교학과 | D67: 대구 | E67: 사회과학대학 | F67: 학생부종합(농어촌학생등) | G67: 2 | H67: 11 | I67: =H67/G67 -> 5.5 | J67: 2 | K67: 4 | L67: - | M67: - | N67: - | O67: - | P67: - | Q67: - | R67: - | S67: - | T67: - | U67: - | V67: - | W67: -
A68: 64 | B68: 경북대학교 | C68: 정치외교학과 | D68: 대구 | E68: 사회과학대학 | F68: 학생부종합(기초생활수급자등대상자등) | G68: 1 | H68: 5 | I68: 5 | J68: 1 | K68: 0 | L68: - | M68: - | N68: - | O68: - | P68: - | Q68: - | R68: - | S68: - | T68: - | U68: - | V68: - | W68: -
A69: 65 | B69: 경북대학교 | C69: 사회학과 | D69: 대구 | E69: 사회과학대학 | F69: 학생부교과(일반학생) | G69: 8 | H69: 81 | I69: =H69/G69 -> 10.125 | J69: 6 | K69: 3 | L69: 19 | M69: =L69/G69 -> 2.375 | N69: 3.135011353 | O69: 2.5 | P69: 3.69259615 | Q69: 3.76568628 | R69: 525 | S69: 415.4183333 | T69: 390.38 | U69: 383.43 | V69: - | W69: -
A70: 66 | B70: 경북대학교 | C70: 사회학과 | D70: 대구 | E70: 사회과학대학 | F70: 학생부교과(지역인재) | G70: 3 | H70: 28 | I70: 9.333333333 | J70: 2 | K70: 2 | L70: 5 | M70: =L70/G70 -> 1.666666667 | N70: - | O70: - | P70: - | Q70: - | R70: - | S70: - | T70: - | U70: - | V70: - | W70: -
A71: 67 | B71: 경북대학교 | C71: 사회학과 | D71: 대구 | E71: 사회과학대학 | F71: 논술(AAT)전형 | G71: 3 | H71: 52 | I71: =H71/G71 -> 17.33333333 | J71: 3 | K71: 2 | L71: 12 | M71: =L71/G71 -> 4 | N71: 4.34288087 | O71: - | P71: - | Q71: - | R71: - | S71: - | T71: - | U71: - | V71: 350 | W71: 190
A72: 68 | B72: 경북대학교 | C72: 사회학과 | D72: 대구 | E72: 사회과학대학 | F72: 학생부종합(농어촌학생등) | G72: 1 | H72: 6 | I72: =H72/G72 -> 6 | J72: 1 | K72: 0 | L72: - | M72: - | N72: - | O72: - | P72: - | Q72: - | R72: - | S72: - | T72: - | U72: - | V72: - | W72: -
A73: 69 | B73: 경북대학교 | C73: 사회학과 | D73: 대구 | E73: 사회과학대학 | F73: 학생부종합(기초생활수급자등대상자등) | G73: 1 | H73: 6 | I73: 6 | J73: 1 | K73: 1 | L73: - | M73: - | N73: - | O73: - | P73: - | Q73: - | R73: - | S73: - | T73: - | U73: - | V73: - | W73: -
A74: 70 | B74: 경북대학교 | C74: 지리학과 | D74: 대구 | E74: 사회과학대학 | F74: 학생부교과(일반학생) | G74: 7 | H74: 72 | I74: =H74/G74 -> 10.28571429 | J74: 5 | K74: 9 | L74: 16 | M74: =L74/G74 -> 2.285714286 | N74: 4.214431848 | O74: 3.9 | P74: 5.2416092 | Q74: 5.2416092 | R74: 525 | S74: 362.638 | T74: 312.93 | U74: 312.93 | V74: - | W74: -
A75: 71 | B75: 경북대학교 | C75: 지리학과 | D75: 대구 | E75: 사회과학대학 | F75: 학생부교과(지역인재) | G75: 3 | H75: 30 | I75: 10 | J75: 3 | K75: 2 | L75: 6 | M75: =L75/G75 -> 2 | N75: 3.71994543 | O75: 4.19 | P75: 4.19495327 | Q75: 4.23528302 | R75: 525 | S75: 385.1933333 | T75: 359.88 | U75: 357.2 | V75: - | W75: -
A76: 72 | B76: 경북대학교 | C76: 지리학과 | D76: 대구 | E76: 사회과학대학 | F76: 논술(AAT)전형 | G76: 4 | H76: 50 | I76: =H76/G76 -> 12.5 | J76: 2 | K76: 0 | L76: 4 | M76: =L76/G76 -> 1 | N76: - | O76: - | P76: - | Q76: - | R76: - | S76: - | T76: - | U76: - | V76: - | W76: -
A77: 73 | B77: 경북대학교 | C77: 지리학과 | D77: 대구 | E77: 사회과학대학 | F77: 학생부종합(일반학생) | G77: 5 | H77: 45 | I77: =H77/G77 -> 9 | J77: 5 | K77: 3 | L77: 12 | M77: =L77/G77 -> 2.4 | N77: 3.429621171 | O77: 3.51 | P77: 3.66252632 | Q77: 3.66252632 | R77: - | S77: - | T77: - | U77: - | V77: - | W77: -
A78: 74 | B78: 경북대학교 | C78: 지리학과 | D78: 대구 | E78: 사회과학대학 | F78: 학생부종합(농어촌학생등) | G78: 1 | H78: 6 | I78: =H78/G78 -> 6 | J78: 1 | K78: 0 | L78: - | M78: - | N78: - | O78: - | P78: - | Q78: - | R78: - | S78: - | T78: - | U78: - | V78: - | W78: -
A79: 75 | B79: 경북대학교 | C79: 지리학과 | D79: 대구 | E79: 사회과학대학 | F79: 학생부종합(기초생활수급자등대상자등) | G79: 1 | H79: 6 | I79: 6 | J79: 1 | K79: 0 | L79: - | M79: - | N79: - | O79: - | P79: - | Q79: - | R79: - | S79: - | T79: - | U79: - | V79: - | W79: -
A80: 76 | B80: 경북대학교 | C80: 문헌정보학과 | D80: 대구 | E80: 사회과학대학 | F80: 학생부교과(일반학생) | G80: 8 | H80: 74 | I80: =H80/G80 -> 9.25 | J80: 8 | K80: 4 | L80: 12 | M80: =L80/G80 -> 1.5 | N80: 3.221254161 | O80: 3.07 | P80: 3.21269231 | Q80: 3.38479167 | R80: 525 | S80: 413.52125 | T80: 414.42 | U80: 405.73 | V80: - | W80: -
A81: 77 | B81: 경북대학교 | C81: 문헌정보학과 | D81: 대구 | E81: 사회과학대학 | F81: 학생부교과(지역인재) | G81: 3 | H81: 27 | I81: 9 | J81: - | K81: - | L81: - | M81: - | N81: - | O81: - | P81: - | Q81: - | R81: 525 | S81: - | T81: - | U81: - | V81: - | W81: -
A82: 78 | B82: 경북대학교 | C82: 문헌정보학과 | D82: 대구 | E82: 사회과학대학 | F82: 논술(AAT)전형 | G82: 3 | H82: 43 | I82: =H82/G82 -> 14.33333333 | J82: 3 | K82: 1 | L82: 8 | M82: =L82/G82 -> 2.666666667 | N82: 3.461146283 | O82: - | P82: - | Q82: - | R82: - | S82: - | T82: - | U82: - | V82: 350 | W82: 267.3333333
A83: 79 | B83: 경북대학교 | C83: 문헌정보학과 | D83: 대구 | E83: 사회과학대학 | F83: 학생부종합(일반학생) | G83: 4 | H83: 43 | I83: =H83/G83 -> 10.75 | J83: 4 | K83: 8 | L83: 16 | M83: =L83/G83 -> 4 | N83: 3.067096015 | O83: 2.8 | P83: 3.39737288 | Q83: 3.39737288 | R83: - | S83: - | T83: - | U83: - | V83: - | W83: -
A84: 80 | B84: 경북대학교 | C84: 문헌정보학과 | D84: 대구 | E84: 사회과학대학 | F84: 학생부종합(농어촌학생등) | G84: 1 | H84: 9 | I84: =H84/G84 -> 9 | J84: 1 | K84: 0 | L84: - | M84: - | N84: - | O84: - | P84: - | Q84: - | R84: - | S84: - | T84: - | U84: - | V84: - | W84: -
A85: 81 | B85: 경북대학교 | C85: 문헌정보학과 | D85: 대구 | E85: 사회과학대학 | F85: 학생부종합(기초생활수급자등대상자등) | G85: 1 | H85: 6 | I85: 6 | J85: 1 | K85: 2 | L85: - | M85: - | N85: - | O85: - | P85: - | Q85: - | R85: - | S85: - | T85: - | U85: - | V85: - | W85: -
A86: 82 | B86: 경북대학교 | C86: 심리학과 | D86: 대구 | E86: 사회과학대학 | F86: 학생부교과(일반학생) | G86: 7 | H86: 71 | I86: =H86/G86 -> 10.14285714 | J86: 5 | K86: 5 | L86: 12 | M86: =L86/G86 -> 1.714285714 | N86: 3.339024787 | O86: 2.83 | P86: 4.61802198 | Q86: 4.61802198 | R86: 525 | S86: 407.164 | T86: 344.23 | U86: 344.23 | V86: - | W86: -
A87: 83 | B87: 경북대학교 | C87: 심리학과 | D87: 대구 | E87: 사회과학대학 | F87: 논술(AAT)전형 | G87: 3 | H87: 67 | I87: =H87/G87 -> 22.33333333 | J87: 3 | K87: 0 | L87: 16 | M87: =L87/G87 -> 5.333333333 | N87: 3.875337134 | O87: - | P87: - | Q87: - | R87: - | S87: - | T87: - | U87: - | V87: 350 | W87: 229
A88: 84 | B88: 경북대학교 | C88: 심리학과 | D88: 대구 | E88: 사회과학대학 | F88: 학생부종합(일반학생) | G88: 5 | H88: 77 | I88: =H88/G88 -> 15.4 | J88: 5 | K88: 3 | L88: 34 | M88: =L88/G88 -> 6.8 | N88: 2.90791706 | O88: 3 | P88: 3.06650485 | Q88: 3.06650485 | R88: - | S88: - | T88: - | U88: - | V88: - | W88: -
A89: 85 | B89: 경북대학교 | C89: 심리학과 | D89: 대구 | E89: 사회과학대학 | F89: 학생부종합(지역인재) | G89: 3 | H89: 29 | I89: =H89/G89 -> 9.666666667 | J89: 3 | K89: 1 | L89: - | M89: - | N89: 3.035346223 | O89: 2.73 | P89: 2.72747253 | Q89: 3.9126087 | R89: - | S89: - | T89: - | U89: - | V89: - | W89: -
A90: 86 | B90: 경북대학교 | C90: 심리학과 | D90: 대구 | E90: 사회과학대학 | F90: 학생부종합(농어촌학생등) | G90: 1 | H90: 13 | I90: =H90/G90 -> 13 | J90: 1 | K90: 1 | L90: - | M90: - | N90: - | O90: - | P90: - | Q90: - | R90: - | S90: - | T90: - | U90: - | V90: - | W90: -
A91: 87 | B91: 경북대학교 | C91: 심리학과 | D91: 대구 | E91: 사회과학대학 | F91: 학생부종합(기초생활수급자등대상자등) | G91: 1 | H91: 15 | I91: 15 | J91: 1 | K91: 0 | L91: - | M91: - | N91: - | O91: - | P91: - | Q91: - | R91: - | S91: - | T91: - | U91: - | V91: - | W91: -
A92: 88 | B92: 경북대학교 | C92: 사회복지학부 | D92: 대구 | E92: 사회과학대학 | F92: 학생부교과(일반학생) | G92: 11 | H92: 109 | I92: =H92/G92 -> 9.909090909 | J92: 3 | K92: 6 | L92: 17 | M92: =L92/G92 -> 1.545454545 | N92: 3.571705523 | O92: 3.75 | P92: 3.74646465 | Q92: 3.8291954 | R92: 525 | S92: 396.3933333 | T92: 387.63 | U92: 383.62 | V92: - | W92: -
A93: 89 | B93: 경북대학교 | C93: 사회복지학부 | D93: 대구 | E93: 사회과학대학 | F93: 학생부교과(지역인재) | G93: 6 | H93: 61 | I93: 10.16666667 | J93: 6 | K93: 6 | L93: 12 | M93: =L93/G93 -> 2 | N93: 3.734932407 | O93: 2.89 | P93: 3.51151163 | Q93: 4.95770833 | R93: 525 | S93: 398.655 | T93: 422.96 | U93: 413.57 | V93: - | W93: -
A94: 90 | B94: 경북대학교 | C94: 사회복지학부 | D94: 대구 | E94: 사회과학대학 | F94: 논술(AAT)전형 | G94: 8 | H94: 142 | I94: =H94/G94 -> 17.75 | J94: 8 | K94: 8 | L94: 21 | M94: =L94/G94 -> 2.625 | N94: 4.283427595 | O94: - | P94: - | Q94: - | R94: - | S94: - | T94: - | U94: - | V94: 350 | W94: 227.0625
A95: 91 | B95: 경북대학교 | C95: 사회복지학부 | D95: 대구 | E95: 사회과학대학 | F95: 학생부종합(일반학생) | G95: 9 | H95: 102 | I95: =H95/G95 -> 11.33333333 | J95: 8 | K95: 10 | L95: 35 | M95: =L95/G95 -> 3.888888889 | N95: 3.810445649 | O95: 3.36 | P95: 4.51959184 | Q95: 5.38666667 | R95: - | S95: - | T95: - | U95: - | V95: - | W95: -
A96: 92 | B96: 경북대학교 | C96: 사회복지학부 | D96: 대구 | E96: 사회과학대학 | F96: 학생부종합(농어촌학생등) | G96: 2 | H96: 12 | I96: =H96/G96 -> 6 | J96: 2 | K96: 1 | L96: - | M96: - | N96: - | O96: - | P96: - | Q96: - | R96: - | S96: - | T96: - | U96: - | V96: - | W96: -
A97: 93 | B97: 경북대학교 | C97: 사회복지학부 | D97: 대구 | E97: 사회과학대학 | F97: 학생부종합(기초생활수급자등대상자등) | G97: 2 | H97: 15 | I97: 7.5 | J97: 2 | K97: 0 | L97: - | M97: - | N97: - | O97: - | P97: - | Q97: - | R97: - | S97: - | T97: - | U97: - | V97: - | W97: -
A98: 94 | B98: 경북대학교 | C98: 미디어커뮤니케이션학과 | D98: 대구 | E98: 사회과학대학 | F98: 학생부교과(일반학생) | G98: 3 | H98: 68 | I98: =H98/G98 -> 22.66666667 | J98: 2 | K98: 0 | L98: 3 | M98: =L98/G98 -> 1 | N98: - | O98: - | P98: - | Q98: - | R98: - | S98: - | T98: - | U98: - | V98: - | W98: -
A99: 95 | B99: 경북대학교 | C99: 미디어커뮤니케이션학과 | D99: 대구 | E99: 사회과학대학 | F99: 논술(AAT)전형 | G99: 3 | H99: 100 | I99: =H99/G99 -> 33.33333333 | J99: 3 | K99: 1 | L99: 17 | M99: =L99/G99 -> 5.666666667 | N99: 4.651928643 | O99: - | P99: - | Q99: - | R99: - | S99: - | T99: - | U99: - | V99: 350 | W99: 229.8333333
A100: 96 | B100: 경북대학교 | C100: 미디어커뮤니케이션학과 | D100: 대구 | E100: 사회과학대학 | F100: 학생부종합(일반학생) | G100: 4 | H100: 89 | I100: =H100/G100 -> 22.25 | J100: 3 | K100: 6 | L100: 33 | M100: =L100/G100 -> 8.25 | N100: 3.436567359 | O100: 3.39 | P100: 3.388 | Q100: 3.95488889 | R100: - | S100: - | T100: - | U100: - | V100: - | W100: -
A101: 97 | B101: 경북대학교 | C101: 미디어커뮤니케이션학과 | D101: 대구 | E101: 사회과학대학 | F101: 학생부종합(지역인재) | G101: 3 | H101: 41 | I101: =H101/G101 -> 13.66666667 | J101: 3 | K101: 3 | L101: - | M101: - | N101: 3.130932514 | O101: 3.09 | P101: 3.0867033 | Q101: 3.29480392 | R101: - | S101: - | T101: - | U101: - | V101: - | W101: -
A102: 98 | B102: 경북대학교 | C102: 미디어커뮤니케이션학과 | D102: 대구 | E102: 사회과학대학 | F102: 학생부종합(농어촌학생등) | G102: 2 | H102: 14 | I102: =H102/G102 -> 7 | J102: 2 | K102: 0 | L102: - | M102: - | N102: - | O102: - | P102: - | Q102: - | R102: - | S102: - | T102: - | U102: - | V102: - | W102: -
A103: 99 | B103: 경북대학교 | C103: 미디어커뮤니케이션학과 | D103: 대구 | E103: 사회과학대학 | F103: 학생부종합(기초생활수급자등대상자등) | G103: 1 | H103: 7 | I103: 7 | J103: 1 | K103: 0 | L103: - | M103: - | N103: - | O103: - | P103: - | Q103: - | R103: - | S103: - | T103: - | U103: - | V103: - | W103: -
A104: 100 | B104: 경북대학교 | C104: 수학과 | D104: 대구 | E104: 자연과학대학 | F104: 학생부교과(일반학생) | G104: 4 | H104: 38 | I104: =H104/G104 -> 9.5 | J104: 4 | K104: 2 | L104: 11 | M104: =L104/G104 -> 2.75 | N104: 2.3995063 | O104: 2.24 | P104: 2.66568628 | Q104: 2.66568628 | R104: 525 | S104: 455.005 | T104: 441.67 | U104: 441.67 | V104: - | W104: -
A105: 101 | B105: 경북대학교 | C105: 수학과 | D105: 대구 | E105: 자연과학대학 | F105: 논술(AAT)전형 | G105: 12 | H105: 116 | I105: =H105/G105 -> 9.666666667 | J105: 10 | K105: 4 | L105: 27 | M105: =L105/G105 -> 2.25 | N105: 4.538010767 | O105: - | P105: - | Q105: - | R105: - | S105: - | T105: - | U105: - | V105: 350 | W105: 116.25
A106: 102 | B106: 경북대학교 | C106: 수학과 | D106: 대구 | E106: 자연과학대학 | F106: 학생부종합(일반학생) | G106: 7 | H106: 56 | I106: =H106/G106 -> 8 | J106: 6 | K106: 17 | L106: 27 | M106: =L106/G106 -> 3.857142857 | N106: 3.265796346 | O106: 2.91 | P106: 3.1312 | Q106: 3.35786517 | R106: - | S106: - | T106: - | U106: - | V106: - | W106: -
A107: 103 | B107: 경북대학교 | C107: 수학과 | D107: 대구 | E107: 자연과학대학 | F107: 학생부종합(농어촌학생등) | G107: 1 | H107: 7 | I107: =H107/G107 -> 7 | J107: 1 | K107: 1 | L107: - | M107: - | N107: - | O107: - | P107: - | Q107: - | R107: - | S107: - | T107: - | U107: - | V107: - | W107: -
A108: 104 | B108: 경북대학교 | C108: 수학과 | D108: 대구 | E108: 자연과학대학 | F108: 학생부종합(기초생활수급자등대상자등) | G108: 1 | H108: 3 | I108: 3 | J108: 1 | K108: 0 | L108: - | M108: - | N108: - | O108: - | P108: - | Q108: - | R108: - | S108: - | T108: - | U108: - | V108: - | W108: -
A109: 105 | B109: 경북대학교 | C109: 물리학과 | D109: 대구 | E109: 자연과학대학 | F109: 학생부교과(일반학생) | G109: 10 | H109: 90 | I109: =H109/G109 -> 9 | J109: 5 | K109: 12 | L109: 22 | M109: =L109/G109 -> 2.2 | N109: 3.722014826 | O109: 3.6 | P109: 3.92525 | Q109: 3.92525 | R109: 525 | S109: 387.592 | T109: 378.75 | U109: 378.75 | V109: - | W109: -
A110: 106 | B110: 경북대학교 | C110: 물리학과 | D110: 대구 | E110: 자연과학대학 | F110: 논술(AAT)전형 | G110: 11 | H110: 108 | I110: =H110/G110 -> 9.818181818 | J110: 10 | K110: 1 | L110: 20 | M110: =L110/G110 -> 1.818181818 | N110: 4.606513513 | O110: - | P110: - | Q110: - | R110: - | S110: - | T110: - | U110: - | V110: 350 | W110: 62.75
A111: 107 | B111: 경북대학교 | C111: 물리학과 | D111: 대구 | E111: 자연과학대학 | F111: 학생부종합(일반학생) | G111: 6 | H111: 49 | I111: =H111/G111 -> 8.166666667 | J111: 5 | K111: 12 | L111: 18 | M111: =L111/G111 -> 3 | N111: 3.927513246 | O111: 3.76 | P111: 4.36554455 | Q111: 4.36554455 | R111: - | S111: - | T111: - | U111: - | V111: - | W111: -
A112: 108 | B112: 경북대학교 | C112: 물리학과 | D112: 대구 | E112: 자연과학대학 | F112: 학생부종합(지역인재) | G112: 7 | H112: 36 | I112: =H112/G112 -> 5.142857143 | J112: 7 | K112: 8 | L112: - | M112: - | N112: 3.920999621 | O112: 4.07 | P112: 4.14086957 | Q112: 4.23366667 | R112: - | S112: - | T112: - | U112: - | V112: - | W112: -
A113: 109 | B113: 경북대학교 | C113: 물리학과 | D113: 대구 | E113: 자연과학대학 | F113: 학생부종합(농어촌학생등) | G113: 2 | H113: 10 | I113: =H113/G113 -> 5 | J113: 2 | K113: 0 | L113: - | M113: - | N113: - | O113: - | P113: - | Q113: - | R113: - | S113: - | T113: - | U113: - | V113: - | W113: -
A114: 110 | B114: 경북대학교 | C114: 물리학과 | D114: 대구 | E114: 자연과학대학 | F114: 학생부종합(기초생활수급자등대상자등) | G114: 2 | H114: 8 | I114: 4 | J114: 2 | K114: 1 | L114: - | M114: - | N114: - | O114: - | P114: - | Q114: - | R114: - | S114: - | T114: - | U114: - | V114: - | W114: -
A115: 111 | B115: 경북대학교 | C115: 화학과 | D115: 대구 | E115: 자연과학대학 | F115: 학생부교과(일반학생) | G115: 7 | H115: 99 | I115: =H115/G115 -> 14.14285714 | J115: 7 | K115: 0 | L115: 15 | M115: =L115/G115 -> 2.142857143 | N115: 2.807531233 | O115: 2.74 | P115: 2.9546087 | Q115: 3.00061856 | R115: 525 | S115: 433.4757143 | T115: 425 | U115: 422.28 | V115: - | W115: -
A116: 112 | B116: 경북대학교 | C116: 화학과 | D116: 대구 | E116: 자연과학대학 | F116: 논술(AAT)전형 | G116: 8 | H116: 103 | I116: =H116/G116 -> 12.875 | J116: 7 | K116: 5 | L116: 28 | M116: =L116/G116 -> 3.5 | N116: 3.928336559 | O116: - | P116: - | Q116: - | R116: - | S116: - | T116: - | U116: - | V116: 350 | W116: 95.35714286
A117: 113 | B117: 경북대학교 | C117: 화학과 | D117: 대구 | E117: 자연과학대학 | F117: 학생부종합(일반학생) | G117: 6 | H117: 55 | I117: =H117/G117 -> 9.166666667 | J117: 5 | K117: 6 | L117: 22 | M117: =L117/G117 -> 3.666666667 | N117: 3.20844869 | O117: 3.25 | P117: 3.45683544 | Q117: 3.45683544 | R117: - | S117: - | T117: - | U117: - | V117: - | W117: -
A118: 114 | B118: 경북대학교 | C118: 화학과 | D118: 대구 | E118: 자연과학대학 | F118: 학생부종합(지역인재) | G118: 5 | H118: 35 | I118: =H118/G118 -> 7 | J118: 5 | K118: 0 | L118: - | M118: - | N118: 2.792337181 | O118: 2.53 | P118: 2.59515152 | Q118: 2.59515152 | R118: - | S118: - | T118: - | U118: - | V118: - | W118: -
A119: 115 | B119: 경북대학교 | C119: 화학과 | D119: 대구 | E119: 자연과학대학 | F119: 학생부종합(농어촌학생등) | G119: 3 | H119: 15 | I119: =H119/G119 -> 5 | J119: 3 | K119: 4 | L119: - | M119: - | N119: 2.662438723 | O119: 2.79 | P119: 2.78611651 | Q119: 2.80178218 | R119: - | S119: - | T119: - | U119: - | V119: - | W119: -
A120: 116 | B120: 경북대학교 | C120: 화학과 | D120: 대구 | E120: 자연과학대학 | F120: 학생부종합(기초생활수급자등대상자등) | G120: 1 | H120: 3 | I120: 3 | J120: 1 | K120: 0 | L120: - | M120: - | N120: - | O120: - | P120: - | Q120: - | R120: - | S120: - | T120: - | U120: - | V120: - | W120: -
A121: 117 | B121: 경북대학교 | C121: 생명과학부(생명공학전공) | D121: 대구 | E121: 자연과학대학 | F121: 학생부교과(일반학생) | G121: 26 | H121: 222 | I121: =H121/G121 -> 8.538461538 | J121: 25 | K121: 35 | L121: 83 | M121: =L121/G121 -> 3.192307692 | N121: 2.553431223 | O121: 2.48 | P121: 2.89523256 | Q121: 2.98825581 | R121: 525 | S121: 447.1096 | T121: 430.23 | U121: 425.58 | V121: - | W121: -
A122: 118 | B122: 경북대학교 | C122: 생명과학부(생명공학전공) | D122: 대구 | E122: 자연과학대학 | F122: 학생부종합(일반학생) | G122: 22 | H122: 281 | I122: =H122/G122 -> 12.77272727 | J122: 21 | K122: 14 | L122: 146 | M122: =L122/G122 -> 6.636363636 | N122: 2.889714257 | O122: 2.68 | P122: 2.97970297 | Q122: 3.71741936 | R122: - | S122: - | T122: - | U122: - | V122: - | W122: -
A123: 119 | B123: 경북대학교 | C123: 생명과학부(생명공학전공) | D123: 대구 | E123: 자연과학대학 | F123: 학생부종합(지역인재) | G123: 10 | H123: 100 | I123: =H123/G123 -> 10 | J123: 9 | K123: 2 | L123: - | M123: - | N123: 2.595431111 | O123: 2.64 | P123: 2.69136364 | Q123: 3.2388172 | R123: - | S123: - | T123: - | U123: - | V123: - | W123: -
A124: 120 | B124: 경북대학교 | C124: 생명과학부(생명공학전공) | D124: 대구 | E124: 자연과학대학 | F124: 학생부종합(농어촌학생등) | G124: 3 | H124: 19 | I124: =H124/G124 -> 6.333333333 | J124: 3 | K124: 3 | L124: - | M124: - | N124: 3.855393983 | O124: 3.69 | P124: 3.68744186 | Q124: 5.29893617 | R124: - | S124: - | T124: - | U124: - | V124: - | W124: -
A125: 121 | B125: 경북대학교 | C125: 생명과학부(생명공학전공) | D125: 대구 | E125: 자연과학대학 | F125: 학생부종합(기초생활수급자등대상자등) | G125: 3 | H125: 15 | I125: 5 | J125: 3 | K125: 2 | L125: - | M125: - | N125: 4.84401981 | O125: 4.69 | P125: 4.68957447 | Q125: 6.53088496 | R125: - | S125: - | T125: - | U125: - | V125: - | W125: -
A126: 122 | B126: 경북대학교 | C126: 생명과학부(생물학전공) | D126: 대구 | E126: 자연과학대학 | F126: 학생부교과(일반학생) | G126: 9 | H126: 82 | I126: =H126/G126 -> 9.111111111 | J126: 3 | K126: 0 | L126: 8 | M126: =L126/G126 -> 0.8888888889 | N126: 3.678372867 | O126: 3.09 | P126: 3.08938776 | Q126: 5.39484849 | R126: 525 | S126: 387.7533333 | T126: 420.41 | U126: 295.3 | V126: - | W126: -
A127: 123 | B127: 경북대학교 | C127: 생명과학부(생물학전공) | D127: 대구 | E127: 자연과학대학 | F127: 학생부교과(지역인재) | G127: 4 | H127: 41 | I127: 10.25 | J127: 4 | K127: 0 | L127: 5 | M127: =L127/G127 -> 1.25 | N127: 3.067526352 | O127: 2.48 | P127: 3.49515152 | Q127: 3.49515152 | R127: 525 | S127: 421.63 | T127: 400.25 | U127: 400.25 | V127: - | W127: -
A128: 124 | B128: 경북대학교 | C128: 생명과학부(생물학전공) | D128: 대구 | E128: 자연과학대학 | F128: 학생부종합(일반학생) | G128: 9 | H128: 79 | I128: =H128/G128 -> 8.777777778 | J128: 9 | K128: 4 | L128: 34 | M128: =L128/G128 -> 3.777777778 | N128: 2.998190188 | O128: 2.96 | P128: 3.16357143 | Q128: 3.32382353 | R128: - | S128: - | T128: - | U128: - | V128: - | W128: -
A129: 125 | B129: 경북대학교 | C129: 생명과학부(생물학전공) | D129: 대구 | E129: 자연과학대학 | F129: 학생부종합(농어촌학생등) | G129: 1 | H129: 8 | I129: =H129/G129 -> 8 | J129: 1 | K129: 0 | L129: - | M129: - | N129: - | O129: - | P129: - | Q129: - | R129: - | S129: - | T129: - | U129: - | V129: - | W129: -
A130: 126 | B130: 경북대학교 | C130: 생명과학부(생물학전공) | D130: 대구 | E130: 자연과학대학 | F130: 학생부종합(기초생활수급자등대상자등) | G130: 1 | H130: 5 | I130: 5 | J130: 1 | K130: 0 | L130: - | M130: - | N130: - | O130: - | P130: - | Q130: - | R130: - | S130: - | T130: - | U130: - | V130: - | W130: -
A131: 127 | B131: 경북대학교 | C131: 통계학과 | D131: 대구 | E131: 자연과학대학 | F131: 학생부교과(일반학생) | G131: 5 | H131: 43 | I131: =H131/G131 -> 8.6 | J131: 4 | K131: 1 | L131: 6 | M131: =L131/G131 -> 1.2 | N131: 3.83221288 | O131: 3.47 | P131: 4.1316 | Q131: 4.1316 | R131: 525 | S131: 382.61 | T131: 368.5 | U131: 368.5 | V131: - | W131: -
A132: 128 | B132: 경북대학교 | C132: 통계학과 | D132: 대구 | E132: 자연과학대학 | F132: 논술(AAT)전형 | G132: 8 | H132: 116 | I132: =H132/G132 -> 14.5 | J132: 8 | K132: 4 | L132: 24 | M132: =L132/G132 -> 3 | N132: 4.01343777 | O132: - | P132: - | Q132: - | R132: - | S132: - | T132: - | U132: - | V132: 350 | W132: 104.0625
A133: 129 | B133: 경북대학교 | C133: 통계학과 | D133: 대구 | E133: 자연과학대학 | F133: 학생부종합(일반학생) | G133: 5 | H133: 40 | I133: =H133/G133 -> 8 | J133: 5 | K133: 5 | L133: 15 | M133: =L133/G133 -> 3 | N133: 3.056135096 | O133: 3.09 | P133: 3.13556701 | Q133: 3.13556701 | R133: - | S133: - | T133: - | U133: - | V133: - | W133: -
A134: 130 | B134: 경북대학교 | C134: 통계학과 | D134: 대구 | E134: 자연과학대학 | F134: 학생부종합(지역인재) | G134: 4 | H134: 26 | I134: =H134/G134 -> 6.5 | J134: 4 | K134: 1 | L134: - | M134: - | N134: 3.751080509 | O134: 3.35 | P134: 3.79229167 | Q134: 3.79229167 | R134: - | S134: - | T134: - | U134: - | V134: - | W134: -
A135: 131 | B135: 경북대학교 | C135: 통계학과 | D135: 대구 | E135: 자연과학대학 | F135: 학생부종합(농어촌학생등) | G135: 2 | H135: 8 | I135: =H135/G135 -> 4 | J135: 2 | K135: 0 | L135: - | M135: - | N135: - | O135: - | P135: - | Q135: - | R135: - | S135: - | T135: - | U135: - | V135: - | W135: -
A136: 132 | B136: 경북대학교 | C136: 통계학과 | D136: 대구 | E136: 자연과학대학 | F136: 학생부종합(기초생활수급자등대상자등) | G136: 1 | H136: 3 | I136: 3 | J136: 1 | K136: 2 | L136: - | M136: - | N136: - | O136: - | P136: - | Q136: - | R136: - | S136: - | T136: - | U136: - | V136: - | W136: -
A137: 133 | B137: 경북대학교 | C137: 지구시스템과학부 | D137: 대구 | E137: 자연과학대학 | F137: 학생부교과(일반학생) | G137: 16 | H137: 126 | I137: =H137/G137 -> 7.875 | J137: 12 | K137: 15 | L137: 31 | M137: =L137/G137 -> 1.9375 | N137: 3.071493558 | O137: 2.77 | P137: 2.95 | Q137: 3.501 | R137: 525 | S137: 419.2483333 | T137: 426.74 | U137: 400 | V137: - | W137: -
A138: 134 | B138: 경북대학교 | C138: 지구시스템과학부 | D138: 대구 | E138: 자연과학대학 | F138: 학생부교과(지역인재) | G138: 4 | H138: 55 | I138: 13.75 | J138: 2 | K138: 3 | L138: 7 | M138: =L138/G138 -> 1.75 | N138: - | O138: - | P138: - | Q138: - | R138: - | S138: - | T138: - | U138: - | V138: - | W138: -
A139: 135 | B139: 경북대학교 | C139: 지구시스템과학부 | D139: 대구 | E139: 자연과학대학 | F139: 논술(AAT)전형 | G139: 5 | H139: 114 | I139: =H139/G139 -> 22.8 | J139: 4 | K139: 3 | L139: 22 | M139: =L139/G139 -> 4.4 | N139: 4.461516545 | O139: - | P139: - | Q139: - | R139: - | S139: - | T139: - | U139: - | V139: 350 | W139: 92.5
A140: 136 | B140: 경북대학교 | C140: 지구시스템과학부 | D140: 대구 | E140: 자연과학대학 | F140: 학생부종합(일반학생) | G140: 23 | H140: 145 | I140: =H140/G140 -> 6.304347826 | J140: 22 | K140: 21 | L140: 44 | M140: =L140/G140 -> 1.913043478 | N140: 3.814849325 | O140: 3.49 | P140: 3.85231579 | Q140: 4.97698925 | R140: - | S140: - | T140: - | U140: - | V140: - | W140: -
A141: 137 | B141: 경북대학교 | C141: 지구시스템과학부 | D141: 대구 | E141: 자연과학대학 | F141: 학생부종합(지역인재) | G141: 6 | H141: 34 | I141: =H141/G141 -> 5.666666667 | J141: 6 | K141: 0 | L141: - | M141: - | N141: 3.227520566 | O141: 3.04 | P141: 3.26989583 | Q141: 3.55837209 | R141: - | S141: - | T141: - | U141: - | V141: - | W141: -
A142: 138 | B142: 경북대학교 | C142: 지구시스템과학부 | D142: 대구 | E142: 자연과학대학 | F142: 학생부종합(농어촌학생등) | G142: 5 | H142: 28 | I142: =H142/G142 -> 5.6 | J142: 5 | K142: 7 | L142: - | M142: - | N142: 4.254683546 | O142: 4.27 | P142: 4.57754902 | Q142: 4.57754902 | R142: - | S142: - | T142: - | U142: - | V142: - | W142: -
A143: 139 | B143: 경북대학교 | C143: 지구시스템과학부 | D143: 대구 | E143: 자연과학대학 | F143: 학생부종합(기초생활수급자등대상자등) | G143: 3 | H143: 21 | I143: 7 | J143: 3 | K143: 1 | L143: - | M143: - | N143: 3.96719477 | O143: 4.17 | P143: 4.16842105 | Q143: 4.54010204 | R143: - | S143: - | T143: - | U143: - | V143: - | W143: -
A144: 140 | B144: 경북대학교 | C144: 경제통상학부 | D144: 대구 | E144: 경상대학 | F144: 학생부교과(일반학생) | G144: 23 | H144: 295 | I144: =H144/G144 -> 12.82608696 | J144: 17 | K144: 17 | L144: 40 | M144: =L144/G144 -> 1.739130435 | N144: 3.278988069 | O144: 3.17 | P144: 3.79530612 | Q144: 3.89528302 | R144: 525 | S144: 408.2135294 | T144: 385 | U144: 376.86 | V144: - | W144: -
A145: 141 | B145: 경북대학교 | C145: 경제통상학부 | D145: 대구 | E145: 경상대학 | F145: 학생부교과(지역인재) | G145: 8 | H145: 105 | I145: 13.125 | J145: 6 | K145: 7 | L145: 15 | M145: =L145/G145 -> 1.875 | N145: 3.239766363 | O145: 3.19 | P145: 3.34247423 | Q145: 3.35956522 | R145: 525 | S145: 411.9366667 | T145: 407.07 | U145: 404.66 | V145: - | W145: -
A146: 142 | B146: 경북대학교 | C146: 경제통상학부 | D146: 대구 | E146: 경상대학 | F146: 논술(AAT)전형 | G146: 22 | H146: 211 | I146: =H146/G146 -> 9.590909091 | J146: 14 | K146: 0 | L146: 33 | M146: =L146/G146 -> 1.5 | N146: 4.545243689 | O146: - | P146: - | Q146: - | R146: - | S146: - | T146: - | U146: - | V146: 350 | W146: 215.7142857
A147: 143 | B147: 경북대학교 | C147: 경제통상학부 | D147: 대구 | E147: 경상대학 | F147: 학생부종합(일반학생) | G147: 20 | H147: 187 | I147: =H147/G147 -> 9.35 | J147: 20 | K147: 23 | L147: 53 | M147: =L147/G147 -> 2.65 | N147: 3.410915022 | O147: 3.34 | P147: 3.5611 | Q147: 3.69047619 | R147: - | S147: - | T147: - | U147: - | V147: - | W147: -
A148: 144 | B148: 경북대학교 | C148: 경제통상학부 | D148: 대구 | E148: 경영학부 | F148: 학생부종합(지역인재) | G148: 8 | H148: 54 | I148: =H148/G148 -> 6.75 | J148: 8 | K148: 2 | L148: - | M148: - | N148: 2.982698669 | O148: 2.92 | P148: 3.1642268 | Q148: 3.80277228 | R148: - | S148: - | T148: - | U148: - | V148: - | W148: -
A149: 145 | B149: 경북대학교 | C149: 경제통상학부 | D149: 대구 | E149: 경상대학 | F149: 학생부종합(농어촌학생등) | G149: 7 | H149: 34 | I149: =H149/G149 -> 4.857142857 | J149: 7 | K149: 7 | L149: - | M149: - | N149: 2.829224481 | O149: 2.82 | P149: 2.896875 | Q149: 2.97890909 | R149: - | S149: - | T149: - | U149: - | V149: - | W149: -
A150: 146 | B150: 경북대학교 | C150: 경제통상학부 | D150: 대구 | E150: 경상대학 | F150: 학생부종합(기초생활수급자등대상자등) | G150: 5 | H150: 25 | I150: 5 | J150: 4 | K150: 3 | L150: - | M150: - | N150: 3.234694053 | O150: 2.6 | P150: 3.84818182 | Q150: 3.84818182 | R150: - | S150: - | T150: - | U150: - | V150: - | W150: -
A151: 147 | B151: 경북대학교 | C151: 경영학부 | D151: 대구 | E151: 경상대학 | F151: 학생부교과(일반학생) | G151: 25 | H151: 523 | I151: =H151/G151 -> 20.92 | J151: 24 | K151: 16 | L151: 76 | M151: =L151/G151 -> 3.04 | N151: 2.706067482 | O151: 2.82 | P151: 3.00861111 | Q151: 3.08166667 | R151: 525 | S151: 438.43625 | T151: 421.59 | U151: 419.52 | V151: - | W151: -
A152: 148 | B152: 경북대학교 | C152: 경영학부 | D152: 대구 | E152: 경상대학 | F152: 학생부교과(지역인재) | G152: 12 | H152: 145 | I152: 12.08333333 | J152: 12 | K152: 11 | L152: 28 | M152: =L152/G152 -> 2.333333333 | N152: 3.053568167 | O152: 3.1 | P152: 3.29146067 | Q152: 3.61311321 | R152: 525 | S152: 421.5708333 | T152: 410.39 | U152: 391.01 | V152: - | W152: -
A153: 149 | B153: 경북대학교 | C153: 경영학부 | D153: 대구 | E153: 경상대학 | F153: 논술(AAT)전형 | G153: 25 | H153: 309 | I153: =H153/G153 -> 12.36 | J153: 23 | K153: 6 | L153: 52 | M153: =L153/G153 -> 2.08 | N153: 4.241833975 | O153: - | P153: - | Q153: - | R153: - | S153: - | T153: - | U153: - | V153: 350 | W153: 209.673913
A154: 150 | B154: 경북대학교 | C154: 경영학부 | D154: 대구 | E154: 경상대학 | F154: 학생부종합(일반학생) | G154: 20 | H154: 241 | I154: =H154/G154 -> 12.05 | J154: 19 | K154: 18 | L154: 63 | M154: =L154/G154 -> 3.15 | N154: 3.038820104 | O154: 2.86 | P154: 3.37830189 | Q154: 3.63043478 | R154: - | S154: - | T154: - | U154: - | V154: - | W154: -
A155: 151 | B155: 경북대학교 | C155: 경영학부 | D155: 대구 | E155: 경영학부 | F155: 학생부종합(지역인재) | G155: 10 | H155: 98 | I155: =H155/G155 -> 9.8 | J155: 10 | K155: 12 | L155: - | M155: - | N155: 3.08616385 | O155: 2.61 | P155: 2.93315217 | Q155: 4.21348315 | R155: - | S155: - | T155: - | U155: - | V155: - | W155: -
A156: 152 | B156: 경북대학교 | C156: 경영학부 | D156: 대구 | E156: 경상대학 | F156: 학생부종합(농어촌학생등) | G156: 7 | H156: 51 | I156: =H156/G156 -> 7.285714286 | J156: 6 | K156: 7 | L156: - | M156: - | N156: 2.606294655 | O156: 2.5 | P156: 2.50342342 | Q156: 2.96705357 | R156: - | S156: - | T156: - | U156: - | V156: - | W156: -
A157: 153 | B157: 경북대학교 | C157: 경영학부 | D157: 대구 | E157: 경상대학 | F157: 학생부종합(기초생활수급자등대상자등) | G157: 8 | H157: 51 | I157: 6.375 | J157: 8 | K157: 8 | L157: - | M157: - | N157: 3.510305318 | O157: 3.31 | P157: 3.5456701 | Q157: 3.73394495 | R157: - | S157: - | T157: - | U157: - | V157: - | W157: -
A158: 154 | B158: 경북대학교 | C158: 신소재공학부 | D158: 대구 | E158: 공과대학 | F158: 학생부교과(일반학생) | G158: 12 | H158: 108 | I158: =H158/G158 -> 9 | J158: 12 | K158: 11 | L158: 27 | M158: =L158/G158 -> 2.25 | N158: 3.294720113 | O158: 3.2 | P158: 3.47970588 | Q158: 3.90589474 | R158: 525 | S158: 408.61 | T158: 397.65 | U158: 379.74 | V158: - | W158: -
A159: 155 | B159: 경북대학교 | C159: 신소재공학부 | D159: 대구 | E159: 공과대학 | F159: 학생부교과(지역인재) | G159: 9 | H159: 83 | I159: 9.222222222 | J159: 9 | K159: 6 | L159: 15 | M159: =L159/G159 -> 1.666666667 | N159: 3.253212557 | O159: 3.33 | P159: 3.40714286 | Q159: 3.96829787 | R159: 525 | S159: 411.2155556 | T159: 404.67 | U159: 376.6 | V159: - | W159: -
A160: 156 | B160: 경북대학교 | C160: 신소재공학부 | D160: 대구 | E160: 공과대학 | F160: 논술(AAT)전형 | G160: 16 | H160: 336 | I160: =H160/G160 -> 21 | J160: 16 | K160: 2 | L160: 92 | M160: =L160/G160 -> 5.75 | N160: 3.774981034 | O160: - | P160: - | Q160: - | R160: - | S160: - | T160: - | U160: - | V160: 350 | W160: 122.34375
A161: 157 | B161: 경북대학교 | C161: 신소재공학부 | D161: 대구 | E161: 공과대학 | F161: 학생부종합(일반학생) | G161: 13 | H161: 109 | I161: =H161/G161 -> 8.384615385 | J161: 12 | K161: 6 | L161: 52 | M161: =L161/G161 -> 4 | N161: 2.980059101 | O161: 3 | P161: 3.14818182 | Q161: 3.25521277 | R161: - | S161: - | T161: - | U161: - | V161: - | W161: -
A162: 158 | B162: 경북대학교 | C162: 신소재공학부 | D162: 대구 | E162: 공과대학 | F162: 학생부종합(농어촌학생등) | G162: 4 | H162: 18 | I162: =H162/G162 -> 4.5 | J162: 4 | K162: 6 | L162: - | M162: - | N162: 3.068657177 | O162: 2.49 | P162: 2.92413793 | Q162: 2.92413793 | R162: - | S162: - | T162: - | U162: - | V162: - | W162: -
A163: 159 | B163: 경북대학교 | C163: 신소재공학부 | D163: 대구 | E163: 공과대학 | F163: 학생부종합(기초생활수급자등대상자등) | G163: 3 | H163: 15 | I163: 5 | J163: 3 | K163: 2 | L163: - | M163: - | N163: 3.685533337 | O163: 3.63 | P163: 3.63458333 | Q163: 4.05050505 | R163: - | S163: - | T163: - | U163: - | V163: - | W163: -
A164: 160 | B164: 경북대학교 | C164: 기계공학부 | D164: 대구 | E164: 공과대학 | F164: 학생부교과(일반학생) | G164: 22 | H164: 341 | I164: =H164/G164 -> 15.5 | J164: 22 | K164: 37 | L164: 101 | M164: =L164/G164 -> 4.590909091 | N164: 2.735261338 | O164: 2.74 | P164: 2.88138614 | Q164: 3.02197917 | R164: 525 | S164: 437.4522727 | T164: 430.94 | U164: 421.97 | V164: - | W164: -
A165: 161 | B165: 경북대학교 | C165: 기계공학부 | D165: 대구 | E165: 공과대학 | F165: 학생부교과(지역인재) | G165: 7 | H165: 64 | I165: 9.142857143 | J165: 7 | K165: 5 | L165: 23 | M165: =L165/G165 -> 3.285714286 | N165: 2.513786019 | O165: 2.52 | P165: 2.54647727 | Q165: 2.71415842 | R165: 525 | S165: 448.8685714 | T165: 445.69 | U165: 439.36 | V165: - | W165: -
A166: 162 | B166: 경북대학교 | C166: 기계공학부 | D166: 대구 | E166: 공과대학 | F166: 논술(AAT)전형 | G166: 20 | H166: 390 | I166: =H166/G166 -> 19.5 | J166: 19 | K166: 3 | L166: 114 | M166: =L166/G166 -> 5.7 | N166: 3.681015131 | O166: - | P166: - | Q166: - | R166: - | S166: - | T166: - | U166: - | V166: 350 | W166: 135
A167: 163 | B167: 경북대학교 | C167: 기계공학부 | D167: 대구 | E167: 공과대학 | F167: 학생부종합(일반학생) | G167: 22 | H167: 192 | I167: =H167/G167 -> 8.727272727 | J167: 22 | K167: 26 | L167: 108 | M167: =L167/G167 -> 4.909090909 | N167: 3.616448301 | O167: 3.32 | P167: 3.87617284 | Q167: 4.32511628 | R167: - | S167: - | T167: - | U167: - | V167: - | W167: -
A168: 164 | B168: 경북대학교 | C168: 기계공학부 | D168: 대구 | E168: 공과대학 | F168: 학생부종합(지역인재) | G168: 8 | H168: 57 | I168: =H168/G168 -> 7.125 | J168: 8 | K168: 2 | L168: - | M168: - | N168: 3.424483292 | O168: 2.78 | P168: 3.7542268 | Q168: 4.2559292 | R168: - | S168: - | T168: - | U168: - | V168: - | W168: -
A169: 165 | B169: 경북대학교 | C169: 기계공학부 | D169: 대구 | E169: 공과대학 | F169: 학생부종합(농어촌학생등) | G169: 5 | H169: 29 | I169: =H169/G169 -> 5.8 | J169: 5 | K169: 11 | L169: - | M169: - | N169: 3.167404972 | O169: 2.98 | P169: 3.34969072 | Q169: 3.34969072 | R169: - | S169: - | T169: - | U169: - | V169: - | W169: -
A170: 166 | B170: 경북대학교 | C170: 기계공학부 | D170: 대구 | E170: 공과대학 | F170: 학생부종합(기초생활수급자등대상자등) | G170: 7 | H170: 33 | I170: 4.714285714 | J170: 7 | K170: 6 | L170: - | M170: - | N170: 3.731449929 | O170: 3.66 | P170: 4.14391753 | Q170: 4.1882 | R170: - | S170: - | T170: - | U170: - | V170: - | W170: -
A171: 167 | B171: 경북대학교 | C171: 건축학부(건축학전공) | D171: 대구 | E171: 공과대학 | F171: 학생부교과(일반학생) | G171: 7 | H171: 114 | I171: =H171/G171 -> 16.28571429 | J171: 7 | K171: 4 | L171: 23 | M171: =L171/G171 -> 3.285714286 | N171: 2.779928951 | O171: 2.76 | P171: 2.82663265 | Q171: 3.00118812 | R171: 525 | S171: 435.1528571 | T171: 433.67 | U171: 425 | V171: - | W171: -
A172: 168 | B172: 경북대학교 | C172: 건축학부(건축학전공) | D172: 대구 | E172: 공과대학 | F172: 학생부교과(지역인재) | G172: 5 | H172: 50 | I172: 10 | J172: 5 | K172: 6 | L172: 17 | M172: =L172/G172 -> 3.4 | N172: 2.899978446 | O172: 2.85 | P172: 2.97192308 | Q172: 2.97192308 | R172: 525 | S172: 428.462 | T172: 423.11 | U172: 423.11 | V172: - | W172: -
A173: 169 | B173: 경북대학교 | C173: 건축학부(건축학전공) | D173: 대구 | E173: 공과대학 | F173: 논술(AAT)전형 | G173: 10 | H173: 187 | I173: =H173/G173 -> 18.7 | J173: 10 | K173: 3 | L173: 40 | M173: =L173/G173 -> 4 | N173: 4.459291343 | O173: - | P173: - | Q173: - | R173: - | S173: - | T173: - | U173: - | V173: 350 | W173: 101.25
A174: 170 | B174: 경북대학교 | C174: 건축학부(건축학전공) | D174: 대구 | E174: 공과대학 | F174: 학생부종합(일반학생) | G174: 7 | H174: 105 | I174: =H174/G174 -> 15 | J174: 7 | K174: 6 | L174: 39 | M174: =L174/G174 -> 5.571428571 | N174: 3.426419966 | O174: 3.47 | P174: 3.65717172 | Q174: 3.9675 | R174: - | S174: - | T174: - | U174: - | V174: - | W174: -
A175: 171 | B175: 경북대학교 | C175: 건축학부(건축학전공) | D175: 대구 | E175: 공과대학 | F175: 학생부종합(농어촌학생등) | G175: 2 | H175: 16 | I175: =H175/G175 -> 8 | J175: 2 | K175: 4 | L175: - | M175: - | N175: - | O175: - | P175: - | Q175: - | R175: - | S175: - | T175: - | U175: - | V175: - | W175: -
A176: 172 | B176: 경북대학교 | C176: 건축학부(건축학전공) | D176: 대구 | E176: 공과대학 | F176: 학생부종합(기초생활수급자등대상자등) | G176: 1 | H176: 10 | I176: 10 | J176: 1 | K176: 0 | L176: - | M176: - | N176: - | O176: - | P176: - | Q176: - | R176: - | S176: - | T176: - | U176: - | V176: - | W176: -
A177: 173 | B177: 경북대학교 | C177: 건축학부(건축공학전공) | D177: 대구 | E177: 공과대학 | F177: 학생부교과(일반학생) | G177: 7 | H177: 75 | I177: =H177/G177 -> 10.71428571 | J177: 7 | K177: 5 | L177: 13 | M177: =L177/G177 -> 1.857142857 | N177: 3.28155019 | O177: 2.83 | P177: 3.74842105 | Q177: 4.16674157 | R177: 525 | S177: 409.6728571 | T177: 387.63 | U177: 366.57 | V177: - | W177: -
A178: 174 | B178: 경북대학교 | C178: 건축학부(건축공학전공) | D178: 대구 | E178: 공과대학 | F178: 학생부교과(지역인재) | G178: 5 | H178: 42 | I178: 8.4 | J178: 4 | K178: 2 | L178: 7 | M178: =L178/G178 -> 1.4 | N178: 3.968720832 | O178: 3.26 | P178: 4.42391753 | Q178: 4.42391753 | R178: 525 | S178: 376.605 | T178: 353.87 | U178: 353.87 | V178: - | W178: -
A179: 175 | B179: 경북대학교 | C179: 건축학부(건축공학전공) | D179: 대구 | E179: 공과대학 | F179: 논술(AAT)전형 | G179: 10 | H179: 165 | I179: =H179/G179 -> 16.5 | J179: 10 | K179: 3 | L179: 25 | M179: =L179/G179 -> 2.5 | N179: 4.298895784 | O179: - | P179: - | Q179: - | R179: - | S179: - | T179: - | U179: - | V179: 350 | W179: 101.25
A180: 176 | B180: 경북대학교 | C180: 건축학부(건축공학전공) | D180: 대구 | E180: 공과대학 | F180: 학생부종합(일반학생) | G180: 7 | H180: 75 | I180: =H180/G180 -> 10.71428571 | J180: 6 | K180: 6 | L180: 35 | M180: =L180/G180 -> 5 | N180: 2.896135038 | O180: 2.76 | P180: 2.83010753 | Q180: 3.23353535 | R180: - | S180: - | T180: - | U180: - | V180: - | W180: -
A181: 177 | B181: 경북대학교 | C181: 건축학부(건축공학전공) | D181: 대구 | E181: 공과대학 | F181: 학생부종합(농어촌학생등) | G181: 2 | H181: 11 | I181: =H181/G181 -> 5.5 | J181: 2 | K181: 3 | L181: - | M181: - | N181: - | O181: - | P181: - | Q181: - | R181: - | S181: - | T181: - | U181: - | V181: - | W181: -
A182: 178 | B182: 경북대학교 | C182: 건축학부(건축공학전공) | D182: 대구 | E182: 공과대학 | F182: 학생부종합(기초생활수급자등대상자등) | G182: 1 | H182: 6 | I182: 6 | J182: 1 | K182: 3 | L182: - | M182: - | N182: - | O182: - | P182: - | Q182: - | R182: - | S182: - | T182: - | U182: - | V182: - | W182: -
A183: 179 | B183: 경북대학교 | C183: 토목공학과 | D183: 대구 | E183: 공과대학 | F183: 학생부교과(일반학생) | G183: 8 | H183: 93 | I183: =H183/G183 -> 11.625 | J183: 8 | K183: 11 | L183: 21 | M183: =L183/G183 -> 2.625 | N183: 2.898975921 | O183: 2.85 | P183: 2.94461539 | Q183: 2.95736842 | R183: 525 | S183: 429.29875 | T183: 427.75 | U183: 427.11 | V183: - | W183: -
A184: 180 | B184: 경북대학교 | C184: 토목공학과 | D184: 대구 | E184: 공과대학 | F184: 학생부교과(지역인재) | G184: 7 | H184: 60 | I184: 8.571428571 | J184: 7 | K184: 4 | L184: 11 | M184: =L184/G184 -> 1.571428571 | N184: 3.540510023 | O184: 3.3 | P184: 3.62948454 | Q184: 4.24212121 | R184: 525 | S184: 397.1771429 | T184: 393.56 | U184: 362.88 | V184: - | W184: -
A185: 181 | B185: 경북대학교 | C185: 토목공학과 | D185: 대구 | E185: 공과대학 | F185: 논술(AAT)전형 | G185: 12 | H185: 220 | I185: =H185/G185 -> 18.33333333 | J185: 11 | K185: 7 | L185: 34 | M185: =L185/G185 -> 2.833333333 | N185: 4.783656495 | O185: - | P185: - | Q185: - | R185: - | S185: - | T185: - | U185: - | V185: 350 | W185: 77.04545455
A186: 182 | B186: 경북대학교 | C186: 토목공학과 | D186: 대구 | E186: 공과대학 | F186: 학생부종합(일반학생) | G186: 4 | H186: 40 | I186: =H186/G186 -> 10 | J186: 4 | K186: 4 | L186: 16 | M186: =L186/G186 -> 4 | N186: 4.013111517 | O186: 3.65 | P186: 4.2514 | Q186: 4.2514 | R186: - | S186: - | T186: - | U186: - | V186: - | W186: -
A187: 183 | B187: 경북대학교 | C187: 토목공학과 | D187: 대구 | E187: 공과대학 | F187: 학생부종합(농어촌학생등) | G187: 3 | H187: 18 | I187: =H187/G187 -> 6 | J187: 3 | K187: 0 | L187: - | M187: - | N187: 3.911166057 | O187: 3.73 | P187: 3.72619469 | Q187: 4.28886598 | R187: - | S187: - | T187: - | U187: - | V187: - | W187: -
A188: 184 | B188: 경북대학교 | C188: 토목공학과 | D188: 대구 | E188: 공과대학 | F188: 학생부종합(기초생활수급자등대상자등) | G188: 2 | H188: 10 | I188: 5 | J188: 2 | K188: 1 | L188: - | M188: - | N188: - | O188: - | P188: - | Q188: - | R188: - | S188: - | T188: - | U188: - | V188: - | W188: -
A189: 185 | B189: 경북대학교 | C189: 응용화학과 | D189: 대구 | E189: 공과대학 | F189: 학생부교과(일반학생) | G189: 9 | H189: 93 | I189: =H189/G189 -> 10.33333333 | J189: 9 | K189: 5 | L189: 34 | M189: =L189/G189 -> 3.777777778 | N189: 2.219555612 | O189: 2.24 | P189: 2.27459184 | Q189: 2.37164949 | R189: 525 | S189: 463.2977778 | T189: 461.22 | U189: 456.04 | V189: - | W189: -
A190: 186 | B190: 경북대학교 | C190: 응용화학과 | D190: 대구 | E190: 공과대학 | F190: 논술(AAT)전형 | G190: 5 | H190: 79 | I190: =H190/G190 -> 15.8 | J190: 5 | K190: 1 | L190: 16 | M190: =L190/G190 -> 3.2 | N190: 4.228299064 | O190: - | P190: - | Q190: - | R190: - | S190: - | T190: - | U190: - | V190: 350 | W190: 98.5
A191: 187 | B191: 경북대학교 | C191: 응용화학과 | D191: 대구 | E191: 공과대학 | F191: 학생부종합(일반학생) | G191: 8 | H191: 78 | I191: =H191/G191 -> 9.75 | J191: 8 | K191: 7 | L191: 45 | M191: =L191/G191 -> 5.625 | N191: 2.838398048 | O191: 2.72 | P191: 3.17031579 | Q191: 3.1745055 | R191: - | S191: - | T191: - | U191: - | V191: - | W191: -
A192: 188 | B192: 경북대학교 | C192: 응용화학과 | D192: 대구 | E192: 공과대학 | F192: 학생부종합(지역인재) | G192: 5 | H192: 34 | I192: =H192/G192 -> 6.8 | J192: 5 | K192: 0 | L192: - | M192: - | N192: 3.367528945 | O192: 3.33 | P192: 3.70329787 | Q192: 3.70329787 | R192: - | S192: - | T192: - | U192: - | V192: - | W192: -
A193: 189 | B193: 경북대학교 | C193: 응용화학과 | D193: 대구 | E193: 공과대학 | F193: 학생부종합(농어촌학생등) | G193: 2 | H193: 8 | I193: =H193/G193 -> 4 | J193: 2 | K193: 2 | L193: - | M193: - | N193: - | O193: - | P193: - | Q193: - | R193: - | S193: - | T193: - | U193: - | V193: - | W193: -
A194: 190 | B194: 경북대학교 | C194: 응용화학과 | D194: 대구 | E194: 공과대학 | F194: 학생부종합(기초생활수급자등대상자등) | G194: 1 | H194: 4 | I194: 4 | J194: 1 | K194: 0 | L194: - | M194: - | N194: - | O194: - | P194: - | Q194: - | R194: - | S194: - | T194: - | U194: - | V194: - | W194: -
A195: 191 | B195: 경북대학교 | C195: 화학공학과 | D195: 대구 | E195: 공과대학 | F195: 학생부교과(일반학생) | G195: 8 | H195: 152 | I195: =H195/G195 -> 19 | J195: 7 | K195: 13 | L195: 66 | M195: =L195/G195 -> 8.25 | N195: 2.012249706 | O195: 2.06 | P195: 2.08060606 | Q195: 2.15850467 | R195: 525 | S195: 474.3542857 | T195: 470.96 | U195: 467.06 | V195: - | W195: -
A196: 192 | B196: 경북대학교 | C196: 화학공학과 | D196: 대구 | E196: 공과대학 | F196: 논술(AAT)전형 | G196: 5 | H196: 143 | I196: =H196/G196 -> 28.6 | J196: 5 | K196: 0 | L196: 60 | M196: =L196/G196 -> 12 | N196: 4.16546921 | O196: - | P196: - | Q196: - | R196: - | S196: - | T196: - | U196: - | V196: 350 | W196: 204
A197: 193 | B197: 경북대학교 | C197: 화학공학과 | D197: 대구 | E197: 공과대학 | F197: 학생부종합(일반학생) | G197: 8 | H197: 122 | I197: =H197/G197 -> 15.25 | J197: 8 | K197: 8 | L197: 75 | M197: =L197/G197 -> 9.375 | N197: 2.721309091 | O197: 2.73 | P197: 2.80965909 | Q197: 3.02157895 | R197: - | S197: - | T197: - | U197: - | V197: - | W197: -
A198: 194 | B198: 경북대학교 | C198: 화학공학과 | D198: 대구 | E198: 공과대학 | F198: 학생부종합(지역인재) | G198: 5 | H198: 41 | I198: =H198/G198 -> 8.2 | J198: 5 | K198: 3 | L198: - | M198: - | N198: 2.307421493 | O198: 2.27 | P198: 2.38545455 | Q198: 2.38545455 | R198: - | S198: - | T198: - | U198: - | V198: - | W198: -
A199: 195 | B199: 경북대학교 | C199: 화학공학과 | D199: 대구 | E199: 공과대학 | F199: 학생부종합(농어촌학생등) | G199: 2 | H199: 11 | I199: =H199/G199 -> 5.5 | J199: 2 | K199: 0 | L199: - | M199: - | N199: - | O199: - | P199: - | Q199: - | R199: - | S199: - | T199: - | U199: - | V199: - | W199: -
A200: 196 | B200: 경북대학교 | C200: 화학공학과 | D200: 대구 | E200: 공과대학 | F200: 학생부종합(기초생활수급자등대상자등) | G200: 2 | H200: 10 | I200: 5 | J200: 2 | K200: 2 | L200: - | M200: - | N200: - | O200: - | P200: - | Q200: - | R200: - | S200: - | T200: - | U200: - | V200: - | W200: -
... 263 more rows

Sheet 2022학년도 학과별 성적자료(수시)
B1: 2022학년도 학과별 성적자료(수시)
B2: 캠퍼스 | C2: 대학 | D2: 모집단위 | E2: 전형명 | F2: 2022학년도
F3: 지원 및 합격 현황 | J3: 추합최종번호 | K3: 최저기준통과 | M3: 입학자 학생부 등급 | Q3: 입학자 반영점수(교과+진로선택과목) | U3: 논술 만점 | V3: 논술 평균점수
F4: 모집인원 | G4: 지원인원 | H4: 경쟁률 | I4: 입학인원 | J4: 합격자 기준 | K4: 인원수 | L4: 실질경쟁률 | M4: 평균 | N4: 0.5 | O4: 70% cut | P4: 85% cut | Q4: 만점 | R4: 평균 | S4: 70% cut | T4: 85% cut
A5: 1 | B5: 대구 | C5: 인문대학 | D5: 국어국문학과 | E5: 학생부교과(일반학생) | F5: 5 | G5: 57 | H5: =G5/F5 -> 11.4 | I5: 5 | J5: 8 | K5: 16 | L5: =K5/F5 -> 3.2 | M5: 3.248086578 | N5: 3.39 | O5: 3.82329897 | P5: 3.82329897 | Q5: 525 | R5: 409.962 | S5: 383.76 | T5: 383.76 | U5: - | V5: -
A6: 2 | B6: 대구 | C6: 인문대학 | D6: 국어국문학과 | E6: 학생부교과(지역인재) | F6: 4 | G6: 43 | H6: 10.75 | I6: 4 | J6: 9 | K6: 14 | L6: =K6/F6 -> 3.5 | M6: 3.30621428 | N6: 2.86 | O6: 3.50088889 | P6: 3.50088889 | Q6: 525 | R6: 409.6675 | S6: 400 | T6: 400 | U6: - | V6: -
A7: 3 | B7: 대구 | C7: 인문대학 | D7: 국어국문학과 | E7: 논술(AAT)전형 | F7: 6 | G7: 115 | H7: =G7/F7 -> 19.16666667 | I7: 6 | J7: 0 | K7: 33 | L7: =K7/F7 -> 5.5 | M7: 4.976277205 | N7: - | O7: - | P7: - | Q7: - | R7: - | S7: - | T7: - | U7: 350 | V7: 240.6666667
A8: 4 | B8: 대구 | C8: 인문대학 | D8: 국어국문학과 | E8: 학생부종합(일반학생) | F8: 5 | G8: 58 | H8: =G8/F8 -> 11.6 | I8: 5 | J8: 2 | K8: 33 | L8: =K8/F8 -> 6.6 | M8: 3.428110233 | N8: 3.55 | O8: 3.61447917 | P8: 3.61447917 | Q8: - | R8: - | S8: - | T8: - | U8: - | V8: -
A9: 5 | B9: 대구 | C9: 인문대학 | D9: 국어국문학과 | E9: 학생부종합(농어촌학생등) | F9: 1 | G9: 6 | H9: =G9/F9 -> 6 | I9: 1 | J9: 1 | K9: - | L9: - | M9: - | N9: - | O9: - | P9: - | Q9: - | R9: - | S9: - | T9: - | U9: - | V9: -
A10: 6 | B10: 대구 | C10: 인문대학 | D10: 국어국문학과 | E10: 학생부종합(기초생활수급자등대상자등) | F10: 1 | G10: 9 | H10: 9 | I10: 1 | J10: 0 | K10: - | L10: - | M10: - | N10: - | O10: - | P10: - | Q10: - | R10: - | S10: - | T10: - | U10: - | V10: -
A11: 7 | B11: 대구 | C11: 인문대학 | D11: 영어영문학과 | E11: 학생부교과(일반학생) | F11: 11 | G11: 127 | H11: =G11/F11 -> 11.54545455 | I11: 11 | J11: 9 | K11: 44 | L11: =K11/F11 -> 4 | M11: 2.406561745 | N11: 2.49 | O11: 2.5 | P11: 2.5 | Q11: 525 | R11: 453.4163636 | S11: 450 | T11: 446.25 | U11: - | V11: -
A12: 8 | B12: 대구 | C12: 인문대학 | D12: 영어영문학과 | E12: 학생부교과(지역인재) | F12: 4 | G12: 41 | H12: 10.25 | I12: 4 | J12: 4 | K12: 12 | L12: =K12/F12 -> 3 | M12: 2.62718461 | N12: 2.66 | O12: 2.75367347 | P12: 2.75367347 | Q12: 525 | R12: 442.5875 | S12: 437.24 | T12: 437.24 | U12: - | V12: -
A13: 9 | B13: 대구 | C13: 인문대학 | D13: 영어영문학과 | E13: 논술(AAT)전형 | F13: 10 | G13: 218 | H13: =G13/F13 -> 21.8 | I13: 10 | J13: 6 | K13: 63 | L13: =K13/F13 -> 6.3 | M13: 4.441150587 | N13: - | O13: - | P13: - | Q13: - | R13: - | S13: - | T13: - | U13: 350 | V13: 227.5
A14: 10 | B14: 대구 | C14: 인문대학 | D14: 영어영문학과 | E14: 학생부종합(일반학생) | F14: 9 | G14: 93 | H14: =G14/F14 -> 10.33333333 | I14: 9 | J14: 10 | K14: 44 | L14: =K14/F14 -> 4.888888889 | M14: 3.844251232 | N14: 3.97 | O14: 4.22627451 | P14: 4.90979592 | Q14: - | R14: - | S14: - | T14: - | U14: - | V14: -
A15: 11 | B15: 대구 | C15: 인문대학 | D15: 영어영문학과 | E15: 학생부종합(지역인재) | F15: 3 | G15: 23 | H15: =G15/F15 -> 7.666666667 | I15: 3 | J15: 0 | K15: - | L15: - | M15: 3.461181362 | N15: 3.67 | O15: 3.67265306 | P15: 3.68358333 | Q15: - | R15: - | S15: - | T15: - | U15: - | V15: -
A16: 12 | B16: 대구 | C16: 인문대학 | D16: 영어영문학과 | E16: 학생부종합(농어촌학생등) | F16: 4 | G16: 15 | H16: =G16/F16 -> 3.75 | I16: 4 | J16: 3 | K16: - | L16: - | M16: 3.761520297 | N16: 3.64 | O16: 4.14782178 | P16: 4.14782178 | Q16: - | R16: - | S16: - | T16: - | U16: - | V16: -
A17: 13 | B17: 대구 | C17: 인문대학 | D17: 영어영문학과 | E17: 학생부종합(기초생활수급자등대상자등) | F17: 2 | G17: 10 | H17: 5 | I17: 2 | J17: 0 | K17: - | L17: - | M17: - | N17: - | O17: - | P17: - | Q17: - | R17: - | S17: - | T17: - | U17: - | V17: -
A18: 14 | B18: 대구 | C18: 인문대학 | D18: 사학과 | E18: 학생부교과(일반학생) | F18: 10 | G18: 94 | H18: =G18/F18 -> 9.4 | I18: 10 | J18: 5 | K18: 20 | L18: =K18/F18 -> 2 | M18: 3.621708878 | N18: 3.52 | O18: 3.85571429 | P18: 4.0314433 | Q18: 525 | R18: 391.556 | S18: 382.14 | T18: 366.78 | U18: - | V18: -
A19: 15 | B19: 대구 | C19: 인문대학 | D19: 사학과 | E19: 논술(AAT)전형 | F19: 5 | G19: 106 | H19: =G19/F19 -> 21.2 | I19: 5 | J19: 4 | K19: 21 | L19: =K19/F19 -> 4.2 | M19: 3.713133802 | N19: - | O19: - | P19: - | Q19: - | R19: - | S19: - | T19: - | U19: 350 | V19: 207.8
A20: 16 | B20: 대구 | C20: 인문대학 | D20: 사학과 | E20: 학생부종합(일반학생) | F20: 9 | G20: 74 | H20: =G20/F20 -> 8.222222222 | I20: 9 | J20: 6 | K20: 32 | L20: =K20/F20 -> 3.555555556 | M20: 3.728691554 | N20: 3.12 | O20: 3.59285714 | P20: 4.64516129 | Q20: - | R20: - | S20: - | T20: - | U20: - | V20: -
A21: 17 | B21: 대구 | C21: 인문대학 | D21: 사학과 | E21: 학생부종합(지역인재) | F21: 4 | G21: 26 | H21: =G21/F21 -> 6.5 | I21: 4 | J21: 0 | K21: - | L21: - | M21: 3.869987482 | N21: 3.32 | O21: 4.43521739 | P21: 4.43521739 | Q21: - | R21: - | S21: - | T21: - | U21: - | V21: -
A22: 18 | B22: 대구 | C22: 인문대학 | D22: 사학과 | E22: 학생부종합(농어촌학생등) | F22: 3 | G22: 12 | H22: =G22/F22 -> 4 | I22: 3 | J22: 1 | K22: - | L22: - | M22: 3.180739143 | N22: 3.33 | O22: 3.32625 | P22: 3.66475248 | Q22: - | R22: - | S22: - | T22: - | U22: - | V22: -
A23: 19 | B23: 대구 | C23: 인문대학 | D23: 사학과 | E23: 학생부종합(기초생활수급자등대상자등) | F23: 1 | G23: 8 | H23: 8 | I23: 1 | J23: 1 | K23: - | L23: - | M23: - | N23: - | O23: - | P23: - | Q23: - | R23: - | S23: - | T23: - | U23: - | V23: -
A24: 20 | B24: 대구 | C24: 인문대학 | D24: 철학과 | E24: 학생부교과(일반학생) | F24: 8 | G24: 81 | H24: =G24/F24 -> 10.125 | I24: 8 | J24: 5 | K24: 22 | L24: =K24/F24 -> 2.75 | M24: 3.393055361 | N24: 3.38 | O24: 3.58183674 | P24: 3.64108108 | Q24: 525 | R24: 403.72 | S24: 395.92 | T24: 386.42 | U24: - | V24: -
A25: 21 | B25: 대구 | C25: 인문대학 | D25: 철학과 | E25: 논술(AAT)전형 | F25: 4 | G25: 62 | H25: =G25/F25 -> 15.5 | I25: 4 | J25: 1 | K25: 15 | L25: =K25/F25 -> 3.75 | M25: 4.563203993 | N25: - | O25: - | P25: - | Q25: - | R25: - | S25: - | T25: - | U25: 350 | V25: 221.5
A26: 22 | B26: 대구 | C26: 인문대학 | D26: 철학과 | E26: 학생부종합(일반학생) | F26: 3 | G26: 38 | H26: =G26/F26 -> 12.66666667 | I26: 3 | J26: 0 | K26: 20 | L26: =K26/F26 -> 6.666666667 | M26: 3.489467558 | N26: 3.67 | O26: 3.66541667 | P26: 3.84804348 | Q26: - | R26: - | S26: - | T26: - | U26: - | V26: -
A27: 23 | B27: 대구 | C27: 인문대학 | D27: 철학과 | E27: 학생부종합(농어촌학생등) | F27: 1 | G27: 4 | H27: =G27/F27 -> 4 | I27: 1 | J27: 2 | K27: - | L27: - | M27: - | N27: - | O27: - | P27: - | Q27: - | R27: - | S27: - | T27: - | U27: - | V27: -
A28: 24 | B28: 대구 | C28: 인문대학 | D28: 철학과 | E28: 학생부종합(기초생활수급자등대상자등) | F28: 1 | G28: 6 | H28: 6 | I28: 1 | J28: 3 | K28: - | L28: - | M28: - | N28: - | O28: - | P28: - | Q28: - | R28: - | S28: - | T28: - | U28: - | V28: -
A29: 25 | B29: 대구 | C29: 인문대학 | D29: 불어불문학과 | E29: 학생부교과(일반학생) | F29: 7 | G29: 89 | H29: =G29/F29 -> 12.71428571 | I29: 7 | J29: 9 | K29: 24 | L29: =K29/F29 -> 3.428571429 | M29: 3.294317616 | N29: 3.12 | O29: 3.12412371 | P29: 3.9279798 | Q29: 525 | R29: 409.5657143 | S29: 418.81 | T29: 378.54 | U29: - | V29: -
A30: 26 | B30: 대구 | C30: 인문대학 | D30: 불어불문학과 | E30: 학생부교과(지역인재) | F30: 3 | G30: 37 | H30: 12.33333333 | I30: 2 | J30: 7 | K30: 10 | L30: =K30/F30 -> 3.333333333 | M30: - | N30: - | O30: - | P30: - | Q30: - | R30: - | S30: - | T30: - | U30: - | V30: -
A31: 27 | B31: 대구 | C31: 인문대학 | D31: 불어불문학과 | E31: 학생부종합(일반학생) | F31: 3 | G31: 31 | H31: =G31/F31 -> 10.33333333 | I31: 3 | J31: 1 | K31: 7 | L31: =K31/F31 -> 2.333333333 | M31: 3.388483231 | N31: 3.4 | O31: 3.39776699 | P31: 3.69159575 | Q31: - | R31: - | S31: - | T31: - | U31: - | V31: -
A32: 28 | B32: 대구 | C32: 인문대학 | D32: 불어불문학과 | E32: 학생부종합(농어촌학생등) | F32: 2 | G32: 10 | H32: =G32/F32 -> 5 | I32: 2 | J32: 5 | K32: - | L32: - | M32: - | N32: - | O32: - | P32: - | Q32: - | R32: - | S32: - | T32: - | U32: - | V32: -
A33: 29 | B33: 대구 | C33: 인문대학 | D33: 불어불문학과 | E33: 학생부종합(기초생활수급자등대상자등) | F33: 1 | G33: 7 | H33: 7 | I33: 1 | J33: 2 | K33: - | L33: - | M33: - | N33: - | O33: - | P33: - | Q33: - | R33: - | S33: - | T33: - | U33: - | V33: -
A34: 30 | B34: 대구 | C34: 인문대학 | D34: 독어독문학과 | E34: 학생부교과(일반학생) | F34: 6 | G34: 71 | H34: =G34/F34 -> 11.83333333 | I34: 6 | J34: 5 | K34: 11 | L34: =K34/F34 -> 1.833333333 | M34: 4.260383116 | N34: 3.8 | O34: 4.23826087 | P34: 4.46517241 | Q34: 525 | R34: 356.2933333 | S34: 363.04 | T34: 343.06 | U34: - | V34: -
A35: 31 | B35: 대구 | C35: 인문대학 | D35: 독어독문학과 | E35: 학생부교과(지역인재) | F35: 3 | G35: 31 | H35: 10.33333333 | I35: 2 | J35: 1 | K35: 5 | L35: =K35/F35 -> 1.666666667 | M35: - | N35: - | O35: - | P35: - | Q35: - | R35: - | S35: - | T35: - | U35: - | V35: -
A36: 32 | B36: 대구 | C36: 인문대학 | D36: 독어독문학과 | E36: 논술(AAT)전형 | F36: 4 | G36: 67 | H36: =G36/F36 -> 16.75 | I36: 4 | J36: 0 | K36: 14 | L36: =K36/F36 -> 3.5 | M36: 4.053692492 | N36: - | O36: - | P36: - | Q36: - | R36: - | S36: - | T36: - | U36: 350 | V36: 221.625
A37: 33 | B37: 대구 | C37: 인문대학 | D37: 독어독문학과 | E37: 학생부종합(일반학생) | F37: 6 | G37: 57 | H37: =G37/F37 -> 9.5 | I37: 6 | J37: 3 | K37: 18 | L37: =K37/F37 -> 3 | M37: 4.272974581 | N37: 3.96 | O37: 4.18607843 | P37: 5.4416 | Q37: - | R37: - | S37: - | T37: - | U37: - | V37: -
A38: 34 | B38: 대구 | C38: 인문대학 | D38: 독어독문학과 | E38: 학생부종합(농어촌학생등) | F38: 1 | G38: 4 | H38: =G38/F38 -> 4 | I38: 1 | J38: 0 | K38: - | L38: - | M38: - | N38: - | O38: - | P38: - | Q38: - | R38: - | S38: - | T38: - | U38: - | V38: -
A39: 35 | B39: 대구 | C39: 인문대학 | D39: 독어독문학과 | E39: 학생부종합(기초생활수급자등대상자등) | F39: 1 | G39: 9 | H39: 9 | I39: 1 | J39: 1 | K39: - | L39: - | M39: - | N39: - | O39: - | P39: - | Q39: - | R39: - | S39: - | T39: - | U39: - | V39: -
A40: 36 | B40: 대구 | C40: 인문대학 | D40: 중어중문학과 | E40: 학생부교과(일반학생) | F40: 3 | G40: 29 | H40: =G40/F40 -> 9.666666667 | I40: 1 | J40: 4 | K40: 7 | L40: =K40/F40 -> 2.333333333 | M40: - | N40: - | O40: - | P40: - | Q40: - | R40: - | S40: - | T40: - | U40: - | V40: -
A41: 37 | B41: 대구 | C41: 인문대학 | D41: 중어중문학과 | E41: 논술(AAT)전형 | F41: 6 | G41: 110 | H41: 18.33333333 | I41: 6 | J41: 1 | K41: 14 | L41: =K41/F41 -> 2.333333333 | M41: 3.928858052 | N41: - | O41: - | P41: - | Q41: - | R41: - | S41: - | T41: - | U41: 350 | V41: 206.5833333
A42: 38 | B42: 대구 | C42: 인문대학 | D42: 중어중문학과 | E42: 학생부종합(일반학생) | F42: 4 | G42: 48 | H42: 12 | I42: 4 | J42: 2 | K42: 23 | L42: =K42/F42 -> 5.75 | M42: 4.445481657 | N42: 4.25 | O42: 4.84705882 | P42: 4.84705882 | Q42: - | R42: - | S42: - | T42: - | U42: - | V42: -
A43: 39 | B43: 대구 | C43: 인문대학 | D43: 중어중문학과 | E43: 학생부종합(농어촌학생등) | F43: 1 | G43: 8 | H43: 8 | I43: 1 | J43: 0 | K43: - | L43: - | M43: - | N43: - | O43: - | P43: - | Q43: - | R43: - | S43: - | T43: - | U43: - | V43: -
A44: 40 | B44: 대구 | C44: 인문대학 | D44: 고고인류학과 | E44: 학생부교과(일반학생) | F44: 4 | G44: 41 | H44: 10.25 | I44: 4 | J44: 9 | K44: 14 | L44: =K44/F44 -> 3.5 | M44: 3.401906078 | N44: 2.79 | O44: 2.9177 | P44: 2.9177 | Q44: 525 | R44: 401.225 | S44: 429 | T44: 429 | U44: - | V44: -
A45: 41 | B45: 대구 | C45: 인문대학 | D45: 고고인류학과 | E45: 논술(AAT)전형 | F45: 5 | G45: 88 | H45: 17.6 | I45: 5 | J45: 3 | K45: 22 | L45: =K45/F45 -> 4.4 | M45: 4.077132796 | N45: - | O45: - | P45: - | Q45: - | R45: - | S45: - | T45: - | U45: 350 | V45: 237.7
A46: 42 | B46: 대구 | C46: 인문대학 | D46: 고고인류학과 | E46: 학생부종합(일반학생) | F46: 5 | G46: 39 | H46: 7.8 | I46: 5 | J46: 6 | K46: 16 | L46: =K46/F46 -> 3.2 | M46: 3.477638718 | N46: 3.51 | O46: 3.58416667 | P46: 3.58416667 | Q46: - | R46: - | S46: - | T46: - | U46: - | V46: -
A47: 43 | B47: 대구 | C47: 인문대학 | D47: 고고인류학과 | E47: 학생부종합(농어촌학생등) | F47: 1 | G47: 3 | H47: 3 | I47: 1 | J47: 1 | K47: - | L47: - | M47: - | N47: - | O47: - | P47: - | Q47: - | R47: - | S47: - | T47: - | U47: - | V47: -
A48: 44 | B48: 대구 | C48: 인문대학 | D48: 일어일문학과 | E48: 학생부교과(일반학생) | F48: 7 | G48: 75 | H48: 10.71428571 | I48: 6 | J48: 11 | K48: 21 | L48: =K48/F48 -> 3 | M48: 2.928665627 | N48: 3.02 | O48: 3.02347826 | P48: 3.241 | Q48: 525 | R48: 428.615 | S48: 423.91 | T48: 413 | U48: - | V48: -
A49: 45 | B49: 대구 | C49: 인문대학 | D49: 일어일문학과 | E49: 논술(AAT)전형 | F49: 4 | G49: 62 | H49: 15.5 | I49: 4 | J49: 0 | K49: 10 | L49: =K49/F49 -> 2.5 | M49: 3.75605894 | N49: - | O49: - | P49: - | Q49: - | R49: - | S49: - | T49: - | U49: 350 | V49: 241.625
A50: 46 | B50: 대구 | C50: 인문대학 | D50: 일어일문학과 | E50: 학생부종합(일반학생) | F50: 4 | G50: 59 | H50: 14.75 | I50: 4 | J50: 3 | K50: 25 | L50: =K50/F50 -> 6.25 | M50: 4.374590658 | N50: 3.84 | O50: 4.92979592 | P50: 4.92979592 | Q50: - | R50: - | S50: - | T50: - | U50: - | V50: -
A51: 47 | B51: 대구 | C51: 인문대학 | D51: 일어일문학과 | E51: 학생부종합(지역인재) | F51: 3 | G51: 26 | H51: 8.666666667 | I51: 3 | J51: 0 | K51: - | L51: - | M51: 4.820104088 | N51: 5.72 | O51: 5.71924731 | P51: 5.92929412 | Q51: - | R51: - | S51: - | T51: - | U51: - | V51: -
A52: 48 | B52: 대구 | C52: 인문대학 | D52: 일어일문학과 | E52: 학생부종합(농어촌학생등) | F52: 1 | G52: 5 | H52: 5 | I52: 1 | J52: 1 | K52: - | L52: - | M52: - | N52: - | O52: - | P52: - | Q52: - | R52: - | S52: - | T52: - | U52: - | V52: -
A53: 49 | B53: 대구 | C53: 인문대학 | D53: 일어일문학과 | E53: 학생부종합(기초생활수급자등대상자등) | F53: 1 | G53: 13 | H53: 13 | I53: 1 | J53: 0 | K53: - | L53: - | M53: - | N53: - | O53: - | P53: - | Q53: - | R53: - | S53: - | T53: - | U53: - | V53: -
A54: 50 | B54: 대구 | C54: 인문대학 | D54: 한문학과 | E54: 학생부교과(일반학생) | F54: 6 | G54: 64 | H54: =G54/F54 -> 10.66666667 | I54: 6 | J54: 9 | K54: 23 | L54: =K54/F54 -> 3.833333333 | M54: 3.535106042 | N54: 3.64 | O54: 3.727 | P54: 3.88416667 | Q54: 525 | R54: 397.695 | S54: 385.31 | T54: 380.73 | U54: - | V54: -
A55: 51 | B55: 대구 | C55: 인문대학 | D55: 한문학과 | E55: 논술(AAT)전형 | F55: 3 | G55: 43 | H55: 14.33333333 | I55: 3 | J55: 1 | K55: 7 | L55: =K55/F55 -> 2.333333333 | M55: 4.207606373 | N55: - | O55: - | P55: - | Q55: - | R55: - | S55: - | T55: - | U55: 350 | V55: 174.1666667
A56: 52 | B56: 대구 | C56: 인문대학 | D56: 한문학과 | E56: 학생부종합(일반학생) | F56: 4 | G56: 36 | H56: 9 | I56: 4 | J56: 3 | K56: 13 | L56: =K56/F56 -> 3.25 | M56: 4.142390257 | N56: 2.99 | O56: 4.12202247 | P56: 4.12202247 | Q56: - | R56: - | S56: - | T56: - | U56: - | V56: -
A57: 53 | B57: 대구 | C57: 인문대학 | D57: 한문학과 | E57: 학생부종합(농어촌학생등) | F57: 1 | G57: 5 | H57: 5 | I57: 1 | J57: 0 | K57: - | L57: - | M57: - | N57: - | O57: - | P57: - | Q57: - | R57: - | S57: - | T57: - | U57: - | V57: -
A58: 54 | B58: 대구 | C58: 인문대학 | D58: 노어노문학과 | E58: 학생부교과(일반학생) | F58: 4 | G58: 49 | H58: 12.25 | I58: 4 | J58: 6 | K58: 12 | L58: =K58/F58 -> 3 | M58: 3.367173763 | N58: 3.22 | O58: 3.46363636 | P58: 3.46363636 | Q58: 525 | R58: 402.6625 | S58: 395.66 | T58: 395.66 | U58: - | V58: -
A59: 55 | B59: 대구 | C59: 인문대학 | D59: 노어노문학과 | E59: 논술(AAT)전형 | F59: 3 | G59: 52 | H59: 17.33333333 | I59: 3 | J59: 2 | K59: 12 | L59: =K59/F59 -> 4 | M59: 4.20536784 | N59: - | O59: - | P59: - | Q59: - | R59: - | S59: - | T59: - | U59: 350 | V59: 243.1666667
A60: 56 | B60: 대구 | C60: 인문대학 | D60: 노어노문학과 | E60: 학생부종합(일반학생) | F60: 8 | G60: 122 | H60: 15.25 | I60: 7 | J60: 6 | K60: 40 | L60: =K60/F60 -> 5 | M60: 4.325496654 | N60: 4.21 | O60: 4.3444086 | P60: 4.84804348 | Q60: - | R60: - | S60: - | T60: - | U60: - | V60: -
A61: 57 | B61: 대구 | C61: 인문대학 | D61: 노어노문학과 | E61: 학생부종합(지역인재) | F61: 3 | G61: 24 | H61: 8 | I61: 3 | J61: 1 | K61: - | L61: - | M61: 4.098374443 | N61: 4.04 | O61: 4.04384615 | P61: 4.480625 | Q61: - | R61: - | S61: - | T61: - | U61: - | V61: -
A62: 58 | B62: 대구 | C62: 인문대학 | D62: 노어노문학과 | E62: 학생부종합(농어촌학생등) | F62: 1 | G62: 7 | H62: 7 | I62: 1 | J62: 0 | K62: - | L62: - | M62: - | N62: - | O62: - | P62: - | Q62: - | R62: - | S62: - | T62: - | U62: - | V62: -
A63: 59 | B63: 대구 | C63: 인문대학 | D63: 노어노문학과 | E63: 학생부종합(기초생활수급자등대상자등) | F63: 1 | G63: 5 | H63: 5 | I63: 1 | J63: 0 | K63: - | L63: - | M63: - | N63: - | O63: - | P63: - | Q63: - | R63: - | S63: - | T63: - | U63: - | V63: -
A64: 60 | B64: 대구 | C64: 사회과학대학 | D64: 정치외교학과 | E64: 학생부교과(일반학생) | F64: 7 | G64: 70 | H64: =G64/F64 -> 10 | I64: 5 | J64: 4 | K64: 12 | L64: =K64/F64 -> 1.714285714 | M64: 3.184535072 | N64: 3.1 | O64: 3.59442308 | P64: 3.59442308 | Q64: 525 | R64: 411.054 | S64: 388.52 | T64: 388.52 | U64: - | V64: -
A65: 61 | B65: 대구 | C65: 사회과학대학 | D65: 정치외교학과 | E65: 논술(AAT)전형 | F65: 3 | G65: 50 | H65: =G65/F65 -> 16.66666667 | I65: 3 | J65: 1 | K65: 9 | L65: =K65/F65 -> 3 | M65: 4.714853397 | N65: - | O65: - | P65: - | Q65: - | R65: - | S65: - | T65: - | U65: 350 | V65: 226.3333333
A66: 62 | B66: 대구 | C66: 사회과학대학 | D66: 정치외교학과 | E66: 학생부종합(일반학생) | F66: 4 | G66: 49 | H66: =G66/F66 -> 12.25 | I66: 3 | J66: 11 | K66: 23 | L66: =K66/F66 -> 5.75 | M66: 2.874029846 | N66: 3.29 | O66: 3.2910101 | P66: 4.27989583 | Q66: - | R66: - | S66: - | T66: - | U66: - | V66: -
A67: 63 | B67: 대구 | C67: 사회과학대학 | D67: 정치외교학과 | E67: 학생부종합(농어촌학생등) | F67: 2 | G67: 11 | H67: =G67/F67 -> 5.5 | I67: 2 | J67: 4 | K67: - | L67: - | M67: - | N67: - | O67: - | P67: - | Q67: - | R67: - | S67: - | T67: - | U67: - | V67: -
A68: 64 | B68: 대구 | C68: 사회과학대학 | D68: 정치외교학과 | E68: 학생부종합(기초생활수급자등대상자등) | F68: 1 | G68: 5 | H68: 5 | I68: 1 | J68: 0 | K68: - | L68: - | M68: - | N68: - | O68: - | P68: - | Q68: - | R68: - | S68: - | T68: - | U68: - | V68: -
A69: 65 | B69: 대구 | C69: 사회과학대학 | D69: 사회학과 | E69: 학생부교과(일반학생) | F69: 8 | G69: 81 | H69: =G69/F69 -> 10.125 | I69: 6 | J69: 3 | K69: 19 | L69: =K69/F69 -> 2.375 | M69: 3.135011353 | N69: 2.5 | O69: 3.69259615 | P69: 3.76568628 | Q69: 525 | R69: 415.4183333 | S69: 390.38 | T69: 383.43 | U69: - | V69: -
A70: 66 | B70: 대구 | C70: 사회과학대학 | D70: 사회학과 | E70: 학생부교과(지역인재) | F70: 3 | G70: 28 | H70: 9.333333333 | I70: 2 | J70: 2 | K70: 5 | L70: =K70/F70 -> 1.666666667 | M70: - | N70: - | O70: - | P70: - | Q70: - | R70: - | S70: - | T70: - | U70: - | V70: -
A71: 67 | B71: 대구 | C71: 사회과학대학 | D71: 사회학과 | E71: 논술(AAT)전형 | F71: 3 | G71: 52 | H71: =G71/F71 -> 17.33333333 | I71: 3 | J71: 2 | K71: 12 | L71: =K71/F71 -> 4 | M71: 4.34288087 | N71: - | O71: - | P71: - | Q71: - | R71: - | S71: - | T71: - | U71: 350 | V71: 190
A72: 68 | B72: 대구 | C72: 사회과학대학 | D72: 사회학과 | E72: 학생부종합(농어촌학생등) | F72: 1 | G72: 6 | H72: =G72/F72 -> 6 | I72: 1 | J72: 0 | K72: - | L72: - | M72: - | N72: - | O72: - | P72: - | Q72: - | R72: - | S72: - | T72: - | U72: - | V72: -
A73: 69 | B73: 대구 | C73: 사회과학대학 | D73: 사회학과 | E73: 학생부종합(기초생활수급자등대상자등) | F73: 1 | G73: 6 | H73: 6 | I73: 1 | J73: 1 | K73: - | L73: - | M73: - | N73: - | O73: - | P73: - | Q73: - | R73: - | S73: - | T73: - | U73: - | V73: -
A74: 70 | B74: 대구 | C74: 사회과학대학 | D74: 지리학과 | E74: 학생부교과(일반학생) | F74: 7 | G74: 72 | H74: =G74/F74 -> 10.28571429 | I74: 5 | J74: 9 | K74: 16 | L74: =K74/F74 -> 2.285714286 | M74: 4.214431848 | N74: 3.9 | O74: 5.2416092 | P74: 5.2416092 | Q74: 525 | R74: 362.638 | S74: 312.93 | T74: 312.93 | U74: - | V74: -
A75: 71 | B75: 대구 | C75: 사회과학대학 | D75: 지리학과 | E75: 학생부교과(지역인재) | F75: 3 | G75: 30 | H75: 10 | I75: 3 | J75: 2 | K75: 6 | L75: =K75/F75 -> 2 | M75: 3.71994543 | N75: 4.19 | O75: 4.19495327 | P75: 4.23528302 | Q75: 525 | R75: 385.1933333 | S75: 359.88 | T75: 357.2 | U75: - | V75: -
A76: 72 | B76: 대구 | C76: 사회과학대학 | D76: 지리학과 | E76: 논술(AAT)전형 | F76: 4 | G76: 50 | H76: =G76/F76 -> 12.5 | I76: 2 | J76: 0 | K76: 4 | L76: =K76/F76 -> 1 | M76: - | N76: - | O76: - | P76: - | Q76: - | R76: - | S76: - | T76: - | U76: - | V76: -
A77: 73 | B77: 대구 | C77: 사회과학대학 | D77: 지리학과 | E77: 학생부종합(일반학생) | F77: 5 | G77: 45 | H77: =G77/F77 -> 9 | I77: 5 | J77: 3 | K77: 12 | L77: =K77/F77 -> 2.4 | M77: 3.429621171 | N77: 3.51 | O77: 3.66252632 | P77: 3.66252632 | Q77: - | R77: - | S77: - | T77: - | U77: - | V77: -
A78: 74 | B78: 대구 | C78: 사회과학대학 | D78: 지리학과 | E78: 학생부종합(농어촌학생등) | F78: 1 | G78: 6 | H78: =G78/F78 -> 6 | I78: 1 | J78: 0 | K78: - | L78: - | M78: - | N78: - | O78: - | P78: - | Q78: - | R78: - | S78: - | T78: - | U78: - | V78: -
A79: 75 | B79: 대구 | C79: 사회과학대학 | D79: 지리학과 | E79: 학생부종합(기초생활수급자등대상자등) | F79: 1 | G79: 6 | H79: 6 | I79: 1 | J79: 0 | K79: - | L79: - | M79: - | N79: - | O79: - | P79: - | Q79: - | R79: - | S79: - | T79: - | U79: - | V79: -
A80: 76 | B80: 대구 | C80: 사회과학대학 | D80: 문헌정보학과 | E80: 학생부교과(일반학생) | F80: 8 | G80: 74 | H80: =G80/F80 -> 9.25 | I80: 8 | J80: 4 | K80: 12 | L80: =K80/F80 -> 1.5 | M80: 3.221254161 | N80: 3.07 | O80: 3.21269231 | P80: 3.38479167 | Q80: 525 | R80: 413.52125 | S80: 414.42 | T80: 405.73 | U80: - | V80: -
A81: 77 | B81: 대구 | C81: 사회과학대학 | D81: 문헌정보학과 | E81: 학생부교과(지역인재) | F81: 3 | G81: 27 | H81: 9 | I81: - | J81: - | K81: - | L81: - | M81: - | N81: - | O81: - | P81: - | Q81: 525 | R81: - | S81: - | T81: - | U81: - | V81: -
A82: 78 | B82: 대구 | C82: 사회과학대학 | D82: 문헌정보학과 | E82: 논술(AAT)전형 | F82: 3 | G82: 43 | H82: =G82/F82 -> 14.33333333 | I82: 3 | J82: 1 | K82: 8 | L82: =K82/F82 -> 2.666666667 | M82: 3.461146283 | N82: - | O82: - | P82: - | Q82: - | R82: - | S82: - | T82: - | U82: 350 | V82: 267.3333333
A83: 79 | B83: 대구 | C83: 사회과학대학 | D83: 문헌정보학과 | E83: 학생부종합(일반학생) | F83: 4 | G83: 43 | H83: =G83/F83 -> 10.75 | I83: 4 | J83: 8 | K83: 16 | L83: =K83/F83 -> 4 | M83: 3.067096015 | N83: 2.8 | O83: 3.39737288 | P83: 3.39737288 | Q83: - | R83: - | S83: - | T83: - | U83: - | V83: -
A84: 80 | B84: 대구 | C84: 사회과학대학 | D84: 문헌정보학과 | E84: 학생부종합(농어촌학생등) | F84: 1 | G84: 9 | H84: =G84/F84 -> 9 | I84: 1 | J84: 0 | K84: - | L84: - | M84: - | N84: - | O84: - | P84: - | Q84: - | R84: - | S84: - | T84: - | U84: - | V84: -
A85: 81 | B85: 대구 | C85: 사회과학대학 | D85: 문헌정보학과 | E85: 학생부종합(기초생활수급자등대상자등) | F85: 1 | G85: 6 | H85: 6 | I85: 1 | J85: 2 | K85: - | L85: - | M85: - | N85: - | O85: - | P85: - | Q85: - | R85: - | S85: - | T85: - | U85: - | V85: -
A86: 82 | B86: 대구 | C86: 사회과학대학 | D86: 심리학과 | E86: 학생부교과(일반학생) | F86: 7 | G86: 71 | H86: =G86/F86 -> 10.14285714 | I86: 5 | J86: 5 | K86: 12 | L86: =K86/F86 -> 1.714285714 | M86: 3.339024787 | N86: 2.83 | O86: 4.61802198 | P86: 4.61802198 | Q86: 525 | R86: 407.164 | S86: 344.23 | T86: 344.23 | U86: - | V86: -
A87: 83 | B87: 대구 | C87: 사회과학대학 | D87: 심리학과 | E87: 논술(AAT)전형 | F87: 3 | G87: 67 | H87: =G87/F87 -> 22.33333333 | I87: 3 | J87: 0 | K87: 16 | L87: =K87/F87 -> 5.333333333 | M87: 3.875337134 | N87: - | O87: - | P87: - | Q87: - | R87: - | S87: - | T87: - | U87: 350 | V87: 229
A88: 84 | B88: 대구 | C88: 사회과학대학 | D88: 심리학과 | E88: 학생부종합(일반학생) | F88: 5 | G88: 77 | H88: =G88/F88 -> 15.4 | I88: 5 | J88: 3 | K88: 34 | L88: =K88/F88 -> 6.8 | M88: 2.90791706 | N88: 3 | O88: 3.06650485 | P88: 3.06650485 | Q88: - | R88: - | S88: - | T88: - | U88: - | V88: -
A89: 85 | B89: 대구 | C89: 사회과학대학 | D89: 심리학과 | E89: 학생부종합(지역인재) | F89: 3 | G89: 29 | H89: =G89/F89 -> 9.666666667 | I89: 3 | J89: 1 | K89: - | L89: - | M89: 3.035346223 | N89: 2.73 | O89: 2.72747253 | P89: 3.9126087 | Q89: - | R89: - | S89: - | T89: - | U89: - | V89: -
A90: 86 | B90: 대구 | C90: 사회과학대학 | D90: 심리학과 | E90: 학생부종합(농어촌학생등) | F90: 1 | G90: 13 | H90: =G90/F90 -> 13 | I90: 1 | J90: 1 | K90: - | L90: - | M90: - | N90: - | O90: - | P90: - | Q90: - | R90: - | S90: - | T90: - | U90: - | V90: -
A91: 87 | B91: 대구 | C91: 사회과학대학 | D91: 심리학과 | E91: 학생부종합(기초생활수급자등대상자등) | F91: 1 | G91: 15 | H91: 15 | I91: 1 | J91: 0 | K91: - | L91: - | M91: - | N91: - | O91: - | P91: - | Q91: - | R91: - | S91: - | T91: - | U91: - | V91: -
A92: 88 | B92: 대구 | C92: 사회과학대학 | D92: 사회복지학부 | E92: 학생부교과(일반학생) | F92: 11 | G92: 109 | H92: =G92/F92 -> 9.909090909 | I92: 3 | J92: 6 | K92: 17 | L92: =K92/F92 -> 1.545454545 | M92: 3.571705523 | N92: 3.75 | O92: 3.74646465 | P92: 3.8291954 | Q92: 525 | R92: 396.3933333 | S92: 387.63 | T92: 383.62 | U92: - | V92: -
A93: 89 | B93: 대구 | C93: 사회과학대학 | D93: 사회복지학부 | E93: 학생부교과(지역인재) | F93: 6 | G93: 61 | H93: 10.16666667 | I93: 6 | J93: 6 | K93: 12 | L93: =K93/F93 -> 2 | M93: 3.734932407 | N93: 2.89 | O93: 3.51151163 | P93: 4.95770833 | Q93: 525 | R93: 398.655 | S93: 422.96 | T93: 413.57 | U93: - | V93: -
A94: 90 | B94: 대구 | C94: 사회과학대학 | D94: 사회복지학부 | E94: 논술(AAT)전형 | F94: 8 | G94: 142 | H94: =G94/F94 -> 17.75 | I94: 8 | J94: 8 | K94: 21 | L94: =K94/F94 -> 2.625 | M94: 4.283427595 | N94: - | O94: - | P94: - | Q94: - | R94: - | S94: - | T94: - | U94: 350 | V94: 227.0625
A95: 91 | B95: 대구 | C95: 사회과학대학 | D95: 사회복지학부 | E95: 학생부종합(일반학생) | F95: 9 | G95: 102 | H95: =G95/F95 -> 11.33333333 | I95: 8 | J95: 10 | K95: 35 | L95: =K95/F95 -> 3.888888889 | M95: 3.810445649 | N95: 3.36 | O95: 4.51959184 | P95: 5.38666667 | Q95: - | R95: - | S95: - | T95: - | U95: - | V95: -
A96: 92 | B96: 대구 | C96: 사회과학대학 | D96: 사회복지학부 | E96: 학생부종합(농어촌학생등) | F96: 2 | G96: 12 | H96: =G96/F96 -> 6 | I96: 2 | J96: 1 | K96: - | L96: - | M96: - | N96: - | O96: - | P96: - | Q96: - | R96: - | S96: - | T96: - | U96: - | V96: -
A97: 93 | B97: 대구 | C97: 사회과학대학 | D97: 사회복지학부 | E97: 학생부종합(기초생활수급자등대상자등) | F97: 2 | G97: 15 | H97: 7.5 | I97: 2 | J97: 0 | K97: - | L97: - | M97: - | N97: - | O97: - | P97: - | Q97: - | R97: - | S97: - | T97: - | U97: - | V97: -
A98: 94 | B98: 대구 | C98: 사회과학대학 | D98: 미디어커뮤니케이션학과 | E98: 학생부교과(일반학생) | F98: 3 | G98: 68 | H98: =G98/F98 -> 22.66666667 | I98: 2 | J98: 0 | K98: 3 | L98: =K98/F98 -> 1 | M98: - | N98: - | O98: - | P98: - | Q98: - | R98: - | S98: - | T98: - | U98: - | V98: -
A99: 95 | B99: 대구 | C99: 사회과학대학 | D99: 미디어커뮤니케이션학과 | E99: 논술(AAT)전형 | F99: 3 | G99: 100 | H99: =G99/F99 -> 33.33333333 | I99: 3 | J99: 1 | K99: 17 | L99: =K99/F99 -> 5.666666667 | M99: 4.651928643 | N99: - | O99: - | P99: - | Q99: - | R99: - | S99: - | T99: - | U99: 350 | V99: 229.8333333
A100: 96 | B100: 대구 | C100: 사회과학대학 | D100: 미디어커뮤니케이션학과 | E100: 학생부종합(일반학생) | F100: 4 | G100: 89 | H100: =G100/F100 -> 22.25 | I100: 3 | J100: 6 | K100: 33 | L100: =K100/F100 -> 8.25 | M100: 3.436567359 | N100: 3.39 | O100: 3.388 | P100: 3.95488889 | Q100: - | R100: - | S100: - | T100: - | U100: - | V100: -
A101: 97 | B101: 대구 | C101: 사회과학대학 | D101: 미디어커뮤니케이션학과 | E101: 학생부종합(지역인재) | F101: 3 | G101: 41 | H101: =G101/F101 -> 13.66666667 | I101: 3 | J101: 3 | K101: - | L101: - | M101: 3.130932514 | N101: 3.09 | O101: 3.0867033 | P101: 3.29480392 | Q101: - | R101: - | S101: - | T101: - | U101: - | V101: -
A102: 98 | B102: 대구 | C102: 사회과학대학 | D102: 미디어커뮤니케이션학과 | E102: 학생부종합(농어촌학생등) | F102: 2 | G102: 14 | H102: =G102/F102 -> 7 | I102: 2 | J102: 0 | K102: - | L102: - | M102: - | N102: - | O102: - | P102: - | Q102: - | R102: - | S102: - | T102: - | U102: - | V102: -
A103: 99 | B103: 대구 | C103: 사회과학대학 | D103: 미디어커뮤니케이션학과 | E103: 학생부종합(기초생활수급자등대상자등) | F103: 1 | G103: 7 | H103: 7 | I103: 1 | J103: 0 | K103: - | L103: - | M103: - | N103: - | O103: - | P103: - | Q103: - | R103: - | S103: - | T103: - | U103: - | V103: -
A104: 100 | B104: 대구 | C104: 자연과학대학 | D104: 수학과 | E104: 학생부교과(일반학생) | F104: 4 | G104: 38 | H104: =G104/F104 -> 9.5 | I104: 4 | J104: 2 | K104: 11 | L104: =K104/F104 -> 2.75 | M104: 2.3995063 | N104: 2.24 | O104: 2.66568628 | P104: 2.66568628 | Q104: 525 | R104: 455.005 | S104: 441.67 | T104: 441.67 | U104: - | V104: -
A105: 101 | B105: 대구 | C105: 자연과학대학 | D105: 수학과 | E105: 논술(AAT)전형 | F105: 12 | G105: 116 | H105: =G105/F105 -> 9.666666667 | I105: 10 | J105: 4 | K105: 27 | L105: =K105/F105 -> 2.25 | M105: 4.538010767 | N105: - | O105: - | P105: - | Q105: - | R105: - | S105: - | T105: - | U105: 350 | V105: 116.25
A106: 102 | B106: 대구 | C106: 자연과학대학 | D106: 수학과 | E106: 학생부종합(일반학생) | F106: 7 | G106: 56 | H106: =G106/F106 -> 8 | I106: 6 | J106: 17 | K106: 27 | L106: =K106/F106 -> 3.857142857 | M106: 3.265796346 | N106: 2.91 | O106: 3.1312 | P106: 3.35786517 | Q106: - | R106: - | S106: - | T106: - | U106: - | V106: -
A107: 103 | B107: 대구 | C107: 자연과학대학 | D107: 수학과 | E107: 학생부종합(농어촌학생등) | F107: 1 | G107: 7 | H107: =G107/F107 -> 7 | I107: 1 | J107: 1 | K107: - | L107: - | M107: - | N107: - | O107: - | P107: - | Q107: - | R107: - | S107: - | T107: - | U107: - | V107: -
A108: 104 | B108: 대구 | C108: 자연과학대학 | D108: 수학과 | E108: 학생부종합(기초생활수급자등대상자등) | F108: 1 | G108: 3 | H108: 3 | I108: 1 | J108: 0 | K108: - | L108: - | M108: - | N108: - | O108: - | P108: - | Q108: - | R108: - | S108: - | T108: - | U108: - | V108: -
A109: 105 | B109: 대구 | C109: 자연과학대학 | D109: 물리학과 | E109: 학생부교과(일반학생) | F109: 10 | G109: 90 | H109: =G109/F109 -> 9 | I109: 5 | J109: 12 | K109: 22 | L109: =K109/F109 -> 2.2 | M109: 3.722014826 | N109: 3.6 | O109: 3.92525 | P109: 3.92525 | Q109: 525 | R109: 387.592 | S109: 378.75 | T109: 378.75 | U109: - | V109: -
A110: 106 | B110: 대구 | C110: 자연과학대학 | D110: 물리학과 | E110: 논술(AAT)전형 | F110: 11 | G110: 108 | H110: =G110/F110 -> 9.818181818 | I110: 10 | J110: 1 | K110: 20 | L110: =K110/F110 -> 1.818181818 | M110: 4.606513513 | N110: - | O110: - | P110: - | Q110: - | R110: - | S110: - | T110: - | U110: 350 | V110: 62.75
A111: 107 | B111: 대구 | C111: 자연과학대학 | D111: 물리학과 | E111: 학생부종합(일반학생) | F111: 6 | G111: 49 | H111: =G111/F111 -> 8.166666667 | I111: 5 | J111: 12 | K111: 18 | L111: =K111/F111 -> 3 | M111: 3.927513246 | N111: 3.76 | O111: 4.36554455 | P111: 4.36554455 | Q111: - | R111: - | S111: - | T111: - | U111: - | V111: -
A112: 108 | B112: 대구 | C112: 자연과학대학 | D112: 물리학과 | E112: 학생부종합(지역인재) | F112: 7 | G112: 36 | H112: =G112/F112 -> 5.142857143 | I112: 7 | J112: 8 | K112: - | L112: - | M112: 3.920999621 | N112: 4.07 | O112: 4.14086957 | P112: 4.23366667 | Q112: - | R112: - | S112: - | T112: - | U112: - | V112: -
A113: 109 | B113: 대구 | C113: 자연과학대학 | D113: 물리학과 | E113: 학생부종합(농어촌학생등) | F113: 2 | G113: 10 | H113: =G113/F113 -> 5 | I113: 2 | J113: 0 | K113: - | L113: - | M113: - | N113: - | O113: - | P113: - | Q113: - | R113: - | S113: - | T113: - | U113: - | V113: -
A114: 110 | B114: 대구 | C114: 자연과학대학 | D114: 물리학과 | E114: 학생부종합(기초생활수급자등대상자등) | F114: 2 | G114: 8 | H114: 4 | I114: 2 | J114: 1 | K114: - | L114: - | M114: - | N114: - | O114: - | P114: - | Q114: - | R114: - | S114: - | T114: - | U114: - | V114: -
A115: 111 | B115: 대구 | C115: 자연과학대학 | D115: 화학과 | E115: 학생부교과(일반학생) | F115: 7 | G115: 99 | H115: =G115/F115 -> 14.14285714 | I115: 7 | J115: 0 | K115: 15 | L115: =K115/F115 -> 2.142857143 | M115: 2.807531233 | N115: 2.74 | O115: 2.9546087 | P115: 3.00061856 | Q115: 525 | R115: 433.4757143 | S115: 425 | T115: 422.28 | U115: - | V115: -
A116: 112 | B116: 대구 | C116: 자연과학대학 | D116: 화학과 | E116: 논술(AAT)전형 | F116: 8 | G116: 103 | H116: =G116/F116 -> 12.875 | I116: 7 | J116: 5 | K116: 28 | L116: =K116/F116 -> 3.5 | M116: 3.928336559 | N116: - | O116: - | P116: - | Q116: - | R116: - | S116: - | T116: - | U116: 350 | V116: 95.35714286
A117: 113 | B117: 대구 | C117: 자연과학대학 | D117: 화학과 | E117: 학생부종합(일반학생) | F117: 6 | G117: 55 | H117: =G117/F117 -> 9.166666667 | I117: 5 | J117: 6 | K117: 22 | L117: =K117/F117 -> 3.666666667 | M117: 3.20844869 | N117: 3.25 | O117: 3.45683544 | P117: 3.45683544 | Q117: - | R117: - | S117: - | T117: - | U117: - | V117: -
A118: 114 | B118: 대구 | C118: 자연과학대학 | D118: 화학과 | E118: 학생부종합(지역인재) | F118: 5 | G118: 35 | H118: =G118/F118 -> 7 | I118: 5 | J118: 0 | K118: - | L118: - | M118: 2.792337181 | N118: 2.53 | O118: 2.59515152 | P118: 2.59515152 | Q118: - | R118: - | S118: - | T118: - | U118: - | V118: -
A119: 115 | B119: 대구 | C119: 자연과학대학 | D119: 화학과 | E119: 학생부종합(농어촌학생등) | F119: 3 | G119: 15 | H119: =G119/F119 -> 5 | I119: 3 | J119: 4 | K119: - | L119: - | M119: 2.662438723 | N119: 2.79 | O119: 2.78611651 | P119: 2.80178218 | Q119: - | R119: - | S119: - | T119: - | U119: - | V119: -
A120: 116 | B120: 대구 | C120: 자연과학대학 | D120: 화학과 | E120: 학생부종합(기초생활수급자등대상자등) | F120: 1 | G120: 3 | H120: 3 | I120: 1 | J120: 0 | K120: - | L120: - | M120: - | N120: - | O120: - | P120: - | Q120: - | R120: - | S120: - | T120: - | U120: - | V120: -
A121: 117 | B121: 대구 | C121: 자연과학대학 | D121: 생명과학부(생명공학전공) | E121: 학생부교과(일반학생) | F121: 26 | G121: 222 | H121: =G121/F121 -> 8.538461538 | I121: 25 | J121: 35 | K121: 83 | L121: =K121/F121 -> 3.192307692 | M121: 2.553431223 | N121: 2.48 | O121: 2.89523256 | P121: 2.98825581 | Q121: 525 | R121: 447.1096 | S121: 430.23 | T121: 425.58 | U121: - | V121: -
A122: 118 | B122: 대구 | C122: 자연과학대학 | D122: 생명과학부(생명공학전공) | E122: 학생부종합(일반학생) | F122: 22 | G122: 281 | H122: =G122/F122 -> 12.77272727 | I122: 21 | J122: 14 | K122: 146 | L122: =K122/F122 -> 6.636363636 | M122: 2.889714257 | N122: 2.68 | O122: 2.97970297 | P122: 3.71741936 | Q122: - | R122: - | S122: - | T122: - | U122: - | V122: -
A123: 119 | B123: 대구 | C123: 자연과학대학 | D123: 생명과학부(생명공학전공) | E123: 학생부종합(지역인재) | F123: 10 | G123: 100 | H123: =G123/F123 -> 10 | I123: 9 | J123: 2 | K123: - | L123: - | M123: 2.595431111 | N123: 2.64 | O123: 2.69136364 | P123: 3.2388172 | Q123: - | R123: - | S123: - | T123: - | U123: - | V123: -
A124: 120 | B124: 대구 | C124: 자연과학대학 | D124: 생명과학부(생명공학전공) | E124: 학생부종합(농어촌학생등) | F124: 3 | G124: 19 | H124: =G124/F124 -> 6.333333333 | I124: 3 | J124: 3 | K124: - | L124: - | M124: 3.855393983 | N124: 3.69 | O124: 3.68744186 | P124: 5.29893617 | Q124: - | R124: - | S124: - | T124: - | U124: - | V124: -
A125: 121 | B125: 대구 | C125: 자연과학대학 | D125: 생명과학부(생명공학전공) | E125: 학생부종합(기초생활수급자등대상자등) | F125: 3 | G125: 15 | H125: 5 | I125: 3 | J125: 2 | K125: - | L125: - | M125: 4.84401981 | N125: 4.69 | O125: 4.68957447 | P125: 6.53088496 | Q125: - | R125: - | S125: - | T125: - | U125: - | V125: -
A126: 122 | B126: 대구 | C126: 자연과학대학 | D126: 생명과학부(생물학전공) | E126: 학생부교과(일반학생) | F126: 9 | G126: 82 | H126: =G126/F126 -> 9.111111111 | I126: 3 | J126: 0 | K126: 8 | L126: =K126/F126 -> 0.8888888889 | M126: 3.678372867 | N126: 3.09 | O126: 3.08938776 | P126: 5.39484849 | Q126: 525 | R126: 387.7533333 | S126: 420.41 | T126: 295.3 | U126: - | V126: -
A127: 123 | B127: 대구 | C127: 자연과학대학 | D127: 생명과학부(생물학전공) | E127: 학생부교과(지역인재) | F127: 4 | G127: 41 | H127: 10.25 | I127: 4 | J127: 0 | K127: 5 | L127: =K127/F127 -> 1.25 | M127: 3.067526352 | N127: 2.48 | O127: 3.49515152 | P127: 3.49515152 | Q127: 525 | R127: 421.63 | S127: 400.25 | T127: 400.25 | U127: - | V127: -
A128: 124 | B128: 대구 | C128: 자연과학대학 | D128: 생명과학부(생물학전공) | E128: 학생부종합(일반학생) | F128: 9 | G128: 79 | H128: =G128/F128 -> 8.777777778 | I128: 9 | J128: 4 | K128: 34 | L128: =K128/F128 -> 3.777777778 | M128: 2.998190188 | N128: 2.96 | O128: 3.16357143 | P128: 3.32382353 | Q128: - | R128: - | S128: - | T128: - | U128: - | V128: -
A129: 125 | B129: 대구 | C129: 자연과학대학 | D129: 생명과학부(생물학전공) | E129: 학생부종합(농어촌학생등) | F129: 1 | G129: 8 | H129: =G129/F129 -> 8 | I129: 1 | J129: 0 | K129: - | L129: - | M129: - | N129: - | O129: - | P129: - | Q129: - | R129: - | S129: - | T129: - | U129: - | V129: -
A130: 126 | B130: 대구 | C130: 자연과학대학 | D130: 생명과학부(생물학전공) | E130: 학생부종합(기초생활수급자등대상자등) | F130: 1 | G130: 5 | H130: 5 | I130: 1 | J130: 0 | K130: - | L130: - | M130: - | N130: - | O130: - | P130: - | Q130: - | R130: - | S130: - | T130: - | U130: - | V130: -
A131: 127 | B131: 대구 | C131: 자연과학대학 | D131: 통계학과 | E131: 학생부교과(일반학생) | F131: 5 | G131: 43 | H131: =G131/F131 -> 8.6 | I131: 4 | J131: 1 | K131: 6 | L131: =K131/F131 -> 1.2 | M131: 3.83221288 | N131: 3.47 | O131: 4.1316 | P131: 4.1316 | Q131: 525 | R131: 382.61 | S131: 368.5 | T131: 368.5 | U131: - | V131: -
A132: 128 | B132: 대구 | C132: 자연과학대학 | D132: 통계학과 | E132: 논술(AAT)전형 | F132: 8 | G132: 116 | H132: =G132/F132 -> 14.5 | I132: 8 | J132: 4 | K132: 24 | L132: =K132/F132 -> 3 | M132: 4.01343777 | N132: - | O132: - | P132: - | Q132: - | R132: - | S132: - | T132: - | U132: 350 | V132: 104.0625
A133: 129 | B133: 대구 | C133: 자연과학대학 | D133: 통계학과 | E133: 학생부종합(일반학생) | F133: 5 | G133: 40 | H133: =G133/F133 -> 8 | I133: 5 | J133: 5 | K133: 15 | L133: =K133/F133 -> 3 | M133: 3.056135096 | N133: 3.09 | O133: 3.13556701 | P133: 3.13556701 | Q133: - | R133: - | S133: - | T133: - | U133: - | V133: -
A134: 130 | B134: 대구 | C134: 자연과학대학 | D134: 통계학과 | E134: 학생부종합(지역인재) | F134: 4 | G134: 26 | H134: =G134/F134 -> 6.5 | I134: 4 | J134: 1 | K134: - | L134: - | M134: 3.751080509 | N134: 3.35 | O134: 3.79229167 | P134: 3.79229167 | Q134: - | R134: - | S134: - | T134: - | U134: - | V134: -
A135: 131 | B135: 대구 | C135: 자연과학대학 | D135: 통계학과 | E135: 학생부종합(농어촌학생등) | F135: 2 | G135: 8 | H135: =G135/F135 -> 4 | I135: 2 | J135: 0 | K135: - | L135: - | M135: - | N135: - | O135: - | P135: - | Q135: - | R135: - | S135: - | T135: - | U135: - | V135: -
A136: 132 | B136: 대구 | C136: 자연과학대학 | D136: 통계학과 | E136: 학생부종합(기초생활수급자등대상자등) | F136: 1 | G136: 3 | H136: 3 | I136: 1 | J136: 2 | K136: - | L136: - | M136: - | N136: - | O136: - | P136: - | Q136: - | R136: - | S136: - | T136: - | U136: - | V136: -
A137: 133 | B137: 대구 | C137: 자연과학대학 | D137: 지구시스템과학부 | E137: 학생부교과(일반학생) | F137: 16 | G137: 126 | H137: =G137/F137 -> 7.875 | I137: 12 | J137: 15 | K137: 31 | L137: =K137/F137 -> 1.9375 | M137: 3.071493558 | N137: 2.77 | O137: 2.95 | P137: 3.501 | Q137: 525 | R137: 419.2483333 | S137: 426.74 | T137: 400 | U137: - | V137: -
A138: 134 | B138: 대구 | C138: 자연과학대학 | D138: 지구시스템과학부 | E138: 학생부교과(지역인재) | F138: 4 | G138: 55 | H138: 13.75 | I138: 2 | J138: 3 | K138: 7 | L138: =K138/F138 -> 1.75 | M138: - | N138: - | O138: - | P138: - | Q138: - | R138: - | S138: - | T138: - | U138: - | V138: -
A139: 135 | B139: 대구 | C139: 자연과학대학 | D139: 지구시스템과학부 | E139: 논술(AAT)전형 | F139: 5 | G139: 114 | H139: =G139/F139 -> 22.8 | I139: 4 | J139: 3 | K139: 22 | L139: =K139/F139 -> 4.4 | M139: 4.461516545 | N139: - | O139: - | P139: - | Q139: - | R139: - | S139: - | T139: - | U139: 350 | V139: 92.5
A140: 136 | B140: 대구 | C140: 자연과학대학 | D140: 지구시스템과학부 | E140: 학생부종합(일반학생) | F140: 23 | G140: 145 | H140: =G140/F140 -> 6.304347826 | I140: 22 | J140: 21 | K140: 44 | L140: =K140/F140 -> 1.913043478 | M140: 3.814849325 | N140: 3.49 | O140: 3.85231579 | P140: 4.97698925 | Q140: - | R140: - | S140: - | T140: - | U140: - | V140: -
A141: 137 | B141: 대구 | C141: 자연과학대학 | D141: 지구시스템과학부 | E141: 학생부종합(지역인재) | F141: 6 | G141: 34 | H141: =G141/F141 -> 5.666666667 | I141: 6 | J141: 0 | K141: - | L141: - | M141: 3.227520566 | N141: 3.04 | O141: 3.26989583 | P141: 3.55837209 | Q141: - | R141: - | S141: - | T141: - | U141: - | V141: -
A142: 138 | B142: 대구 | C142: 자연과학대학 | D142: 지구시스템과학부 | E142: 학생부종합(농어촌학생등) | F142: 5 | G142: 28 | H142: =G142/F142 -> 5.6 | I142: 5 | J142: 7 | K142: - | L142: - | M142: 4.254683546 | N142: 4.27 | O142: 4.57754902 | P142: 4.57754902 | Q142: - | R142: - | S142: - | T142: - | U142: - | V142: -
A143: 139 | B143: 대구 | C143: 자연과학대학 | D143: 지구시스템과학부 | E143: 학생부종합(기초생활수급자등대상자등) | F143: 3 | G143: 21 | H143: 7 | I143: 3 | J143: 1 | K143: - | L143: - | M143: 3.96719477 | N143: 4.17 | O143: 4.16842105 | P143: 4.54010204 | Q143: - | R143: - | S143: - | T143: - | U143: - | V143: -
A144: 140 | B144: 대구 | C144: 경상대학 | D144: 경제통상학부 | E144: 학생부교과(일반학생) | F144: 23 | G144: 295 | H144: =G144/F144 -> 12.82608696 | I144: 17 | J144: 17 | K144: 40 | L144: =K144/F144 -> 1.739130435 | M144: 3.278988069 | N144: 3.17 | O144: 3.79530612 | P144: 3.89528302 | Q144: 525 | R144: 408.2135294 | S144: 385 | T144: 376.86 | U144: - | V144: -
A145: 141 | B145: 대구 | C145: 경상대학 | D145: 경제통상학부 | E145: 학생부교과(지역인재) | F145: 8 | G145: 105 | H145: 13.125 | I145: 6 | J145: 7 | K145: 15 | L145: =K145/F145 -> 1.875 | M145: 3.239766363 | N145: 3.19 | O145: 3.34247423 | P145: 3.35956522 | Q145: 525 | R145: 411.9366667 | S145: 407.07 | T145: 404.66 | U145: - | V145: -
A146: 142 | B146: 대구 | C146: 경상대학 | D146: 경제통상학부 | E146: 논술(AAT)전형 | F146: 22 | G146: 211 | H146: =G146/F146 -> 9.590909091 | I146: 14 | J146: 0 | K146: 33 | L146: =K146/F146 -> 1.5 | M146: 4.545243689 | N146: - | O146: - | P146: - | Q146: - | R146: - | S146: - | T146: - | U146: 350 | V146: 215.7142857
A147: 143 | B147: 대구 | C147: 경상대학 | D147: 경제통상학부 | E147: 학생부종합(일반학생) | F147: 20 | G147: 187 | H147: =G147/F147 -> 9.35 | I147: 20 | J147: 23 | K147: 53 | L147: =K147/F147 -> 2.65 | M147: 3.410915022 | N147: 3.34 | O147: 3.5611 | P147: 3.69047619 | Q147: - | R147: - | S147: - | T147: - | U147: - | V147: -
A148: 144 | B148: 대구 | C148: 경영학부 | D148: 경제통상학부 | E148: 학생부종합(지역인재) | F148: 8 | G148: 54 | H148: =G148/F148 -> 6.75 | I148: 8 | J148: 2 | K148: - | L148: - | M148: 2.982698669 | N148: 2.92 | O148: 3.1642268 | P148: 3.80277228 | Q148: - | R148: - | S148: - | T148: - | U148: - | V148: -
A149: 145 | B149: 대구 | C149: 경상대학 | D149: 경제통상학부 | E149: 학생부종합(농어촌학생등) | F149: 7 | G149: 34 | H149: =G149/F149 -> 4.857142857 | I149: 7 | J149: 7 | K149: - | L149: - | M149: 2.829224481 | N149: 2.82 | O149: 2.896875 | P149: 2.97890909 | Q149: - | R149: - | S149: - | T149: - | U149: - | V149: -
A150: 146 | B150: 대구 | C150: 경상대학 | D150: 경제통상학부 | E150: 학생부종합(기초생활수급자등대상자등) | F150: 5 | G150: 25 | H150: 5 | I150: 4 | J150: 3 | K150: - | L150: - | M150: 3.234694053 | N150: 2.6 | O150: 3.84818182 | P150: 3.84818182 | Q150: - | R150: - | S150: - | T150: - | U150: - | V150: -
A151: 147 | B151: 대구 | C151: 경상대학 | D151: 경영학부 | E151: 학생부교과(일반학생) | F151: 25 | G151: 523 | H151: =G151/F151 -> 20.92 | I151: 24 | J151: 16 | K151: 76 | L151: =K151/F151 -> 3.04 | M151: 2.706067482 | N151: 2.82 | O151: 3.00861111 | P151: 3.08166667 | Q151: 525 | R151: 438.43625 | S151: 421.59 | T151: 419.52 | U151: - | V151: -
A152: 148 | B152: 대구 | C152: 경상대학 | D152: 경영학부 | E152: 학생부교과(지역인재) | F152: 12 | G152: 145 | H152: 12.08333333 | I152: 12 | J152: 11 | K152: 28 | L152: =K152/F152 -> 2.333333333 | M152: 3.053568167 | N152: 3.1 | O152: 3.29146067 | P152: 3.61311321 | Q152: 525 | R152: 421.5708333 | S152: 410.39 | T152: 391.01 | U152: - | V152: -
A153: 149 | B153: 대구 | C153: 경상대학 | D153: 경영학부 | E153: 논술(AAT)전형 | F153: 25 | G153: 309 | H153: =G153/F153 -> 12.36 | I153: 23 | J153: 6 | K153: 52 | L153: =K153/F153 -> 2.08 | M153: 4.241833975 | N153: - | O153: - | P153: - | Q153: - | R153: - | S153: - | T153: - | U153: 350 | V153: 209.673913
A154: 150 | B154: 대구 | C154: 경상대학 | D154: 경영학부 | E154: 학생부종합(일반학생) | F154: 20 | G154: 241 | H154: =G154/F154 -> 12.05 | I154: 19 | J154: 18 | K154: 63 | L154: =K154/F154 -> 3.15 | M154: 3.038820104 | N154: 2.86 | O154: 3.37830189 | P154: 3.63043478 | Q154: - | R154: - | S154: - | T154: - | U154: - | V154: -
A155: 151 | B155: 대구 | C155: 경영학부 | D155: 경영학부 | E155: 학생부종합(지역인재) | F155: 10 | G155: 98 | H155: =G155/F155 -> 9.8 | I155: 10 | J155: 12 | K155: - | L155: - | M155: 3.08616385 | N155: 2.61 | O155: 2.93315217 | P155: 4.21348315 | Q155: - | R155: - | S155: - | T155: - | U155: - | V155: -
A156: 152 | B156: 대구 | C156: 경상대학 | D156: 경영학부 | E156: 학생부종합(농어촌학생등) | F156: 7 | G156: 51 | H156: =G156/F156 -> 7.285714286 | I156: 6 | J156: 7 | K156: - | L156: - | M156: 2.606294655 | N156: 2.5 | O156: 2.50342342 | P156: 2.96705357 | Q156: - | R156: - | S156: - | T156: - | U156: - | V156: -
A157: 153 | B157: 대구 | C157: 경상대학 | D157: 경영학부 | E157: 학생부종합(기초생활수급자등대상자등) | F157: 8 | G157: 51 | H157: 6.375 | I157: 8 | J157: 8 | K157: - | L157: - | M157: 3.510305318 | N157: 3.31 | O157: 3.5456701 | P157: 3.73394495 | Q157: - | R157: - | S157: - | T157: - | U157: - | V157: -
A158: 154 | B158: 대구 | C158: 공과대학 | D158: 신소재공학부 | E158: 학생부교과(일반학생) | F158: 12 | G158: 108 | H158: =G158/F158 -> 9 | I158: 12 | J158: 11 | K158: 27 | L158: =K158/F158 -> 2.25 | M158: 3.294720113 | N158: 3.2 | O158: 3.47970588 | P158: 3.90589474 | Q158: 525 | R158: 408.61 | S158: 397.65 | T158: 379.74 | U158: - | V158: -
A159: 155 | B159: 대구 | C159: 공과대학 | D159: 신소재공학부 | E159: 학생부교과(지역인재) | F159: 9 | G159: 83 | H159: 9.222222222 | I159: 9 | J159: 6 | K159: 15 | L159: =K159/F159 -> 1.666666667 | M159: 3.253212557 | N159: 3.33 | O159: 3.40714286 | P159: 3.96829787 | Q159: 525 | R159: 411.2155556 | S159: 404.67 | T159: 376.6 | U159: - | V159: -
A160: 156 | B160: 대구 | C160: 공과대학 | D160: 신소재공학부 | E160: 논술(AAT)전형 | F160: 16 | G160: 336 | H160: =G160/F160 -> 21 | I160: 16 | J160: 2 | K160: 92 | L160: =K160/F160 -> 5.75 | M160: 3.774981034 | N160: - | O160: - | P160: - | Q160: - | R160: - | S160: - | T160: - | U160: 350 | V160: 122.34375
A161: 157 | B161: 대구 | C161: 공과대학 | D161: 신소재공학부 | E161: 학생부종합(일반학생) | F161: 13 | G161: 109 | H161: =G161/F161 -> 8.384615385 | I161: 12 | J161: 6 | K161: 52 | L161: =K161/F161 -> 4 | M161: 2.980059101 | N161: 3 | O161: 3.14818182 | P161: 3.25521277 | Q161: - | R161: - | S161: - | T161: - | U161: - | V161: -
A162: 158 | B162: 대구 | C162: 공과대학 | D162: 신소재공학부 | E162: 학생부종합(농어촌학생등) | F162: 4 | G162: 18 | H162: =G162/F162 -> 4.5 | I162: 4 | J162: 6 | K162: - | L162: - | M162: 3.068657177 | N162: 2.49 | O162: 2.92413793 | P162: 2.92413793 | Q162: - | R162: - | S162: - | T162: - | U162: - | V162: -
A163: 159 | B163: 대구 | C163: 공과대학 | D163: 신소재공학부 | E163: 학생부종합(기초생활수급자등대상자등) | F163: 3 | G163: 15 | H163: 5 | I163: 3 | J163: 2 | K163: - | L163: - | M163: 3.685533337 | N163: 3.63 | O163: 3.63458333 | P163: 4.05050505 | Q163: - | R163: - | S163: - | T163: - | U163: - | V163: -
A164: 160 | B164: 대구 | C164: 공과대학 | D164: 기계공학부 | E164: 학생부교과(일반학생) | F164: 22 | G164: 341 | H164: =G164/F164 -> 15.5 | I164: 22 | J164: 37 | K164: 101 | L164: =K164/F164 -> 4.590909091 | M164: 2.735261338 | N164: 2.74 | O164: 2.88138614 | P164: 3.02197917 | Q164: 525 | R164: 437.4522727 | S164: 430.94 | T164: 421.97 | U164: - | V164: -
A165: 161 | B165: 대구 | C165: 공과대학 | D165: 기계공학부 | E165: 학생부교과(지역인재) | F165: 7 | G165: 64 | H165: 9.142857143 | I165: 7 | J165: 5 | K165: 23 | L165: =K165/F165 -> 3.285714286 | M165: 2.513786019 | N165: 2.52 | O165: 2.54647727 | P165: 2.71415842 | Q165: 525 | R165: 448.8685714 | S165: 445.69 | T165: 439.36 | U165: - | V165: -
A166: 162 | B166: 대구 | C166: 공과대학 | D166: 기계공학부 | E166: 논술(AAT)전형 | F166: 20 | G166: 390 | H166: =G166/F166 -> 19.5 | I166: 19 | J166: 3 | K166: 114 | L166: =K166/F166 -> 5.7 | M166: 3.681015131 | N166: - | O166: - | P166: - | Q166: - | R166: - | S166: - | T166: - | U166: 350 | V166: 135
A167: 163 | B167: 대구 | C167: 공과대학 | D167: 기계공학부 | E167: 학생부종합(일반학생) | F167: 22 | G167: 192 | H167: =G167/F167 -> 8.727272727 | I167: 22 | J167: 26 | K167: 108 | L167: =K167/F167 -> 4.909090909 | M167: 3.616448301 | N167: 3.32 | O167: 3.87617284 | P167: 4.32511628 | Q167: - | R167: - | S167: - | T167: - | U167: - | V167: -
A168: 164 | B168: 대구 | C168: 공과대학 | D168: 기계공학부 | E168: 학생부종합(지역인재) | F168: 8 | G168: 57 | H168: =G168/F168 -> 7.125 | I168: 8 | J168: 2 | K168: - | L168: - | M168: 3.424483292 | N168: 2.78 | O168: 3.7542268 | P168: 4.2559292 | Q168: - | R168: - | S168: - | T168: - | U168: - | V168: -
A169: 165 | B169: 대구 | C169: 공과대학 | D169: 기계공학부 | E169: 학생부종합(농어촌학생등) | F169: 5 | G169: 29 | H169: =G169/F169 -> 5.8 | I169: 5 | J169: 11 | K169: - | L169: - | M169: 3.167404972 | N169: 2.98 | O169: 3.34969072 | P169: 3.34969072 | Q169: - | R169: - | S169: - | T169: - | U169: - | V169: -
A170: 166 | B170: 대구 | C170: 공과대학 | D170: 기계공학부 | E170: 학생부종합(기초생활수급자등대상자등) | F170: 7 | G170: 33 | H170: 4.714285714 | I170: 7 | J170: 6 | K170: - | L170: - | M170: 3.731449929 | N170: 3.66 | O170: 4.14391753 | P170: 4.1882 | Q170: - | R170: - | S170: - | T170: - | U170: - | V170: -
A171: 167 | B171: 대구 | C171: 공과대학 | D171: 건축학부(건축학전공) | E171: 학생부교과(일반학생) | F171: 7 | G171: 114 | H171: =G171/F171 -> 16.28571429 | I171: 7 | J171: 4 | K171: 23 | L171: =K171/F171 -> 3.285714286 | M171: 2.779928951 | N171: 2.76 | O171: 2.82663265 | P171: 3.00118812 | Q171: 525 | R171: 435.1528571 | S171: 433.67 | T171: 425 | U171: - | V171: -
A172: 168 | B172: 대구 | C172: 공과대학 | D172: 건축학부(건축학전공) | E172: 학생부교과(지역인재) | F172: 5 | G172: 50 | H172: 10 | I172: 5 | J172: 6 | K172: 17 | L172: =K172/F172 -> 3.4 | M172: 2.899978446 | N172: 2.85 | O172: 2.97192308 | P172: 2.97192308 | Q172: 525 | R172: 428.462 | S172: 423.11 | T172: 423.11 | U172: - | V172: -
A173: 169 | B173: 대구 | C173: 공과대학 | D173: 건축학부(건축학전공) | E173: 논술(AAT)전형 | F173: 10 | G173: 187 | H173: =G173/F173 -> 18.7 | I173: 10 | J173: 3 | K173: 40 | L173: =K173/F173 -> 4 | M173: 4.459291343 | N173: - | O173: - | P173: - | Q173: - | R173: - | S173: - | T173: - | U173: 350 | V173: 101.25
A174: 170 | B174: 대구 | C174: 공과대학 | D174: 건축학부(건축학전공) | E174: 학생부종합(일반학생) | F174: 7 | G174: 105 | H174: =G174/F174 -> 15 | I174: 7 | J174: 6 | K174: 39 | L174: =K174/F174 -> 5.571428571 | M174: 3.426419966 | N174: 3.47 | O174: 3.65717172 | P174: 3.9675 | Q174: - | R174: - | S174: - | T174: - | U174: - | V174: -
A175: 171 | B175: 대구 | C175: 공과대학 | D175: 건축학부(건축학전공) | E175: 학생부종합(농어촌학생등) | F175: 2 | G175: 16 | H175: =G175/F175 -> 8 | I175: 2 | J175: 4 | K175: - | L175: - | M175: - | N175: - | O175: - | P175: - | Q175: - | R175: - | S175: - | T175: - | U175: - | V175: -
A176: 172 | B176: 대구 | C176: 공과대학 | D176: 건축학부(건축학전공) | E176: 학생부종합(기초생활수급자등대상자등) | F176: 1 | G176: 10 | H176: 10 | I176: 1 | J176: 0 | K176: - | L176: - | M176: - | N176: - | O176: - | P176: - | Q176: - | R176: - | S176: - | T176: - | U176: - | V176: -
A177: 173 | B177: 대구 | C177: 공과대학 | D177: 건축학부(건축공학전공) | E177: 학생부교과(일반학생) | F177: 7 | G177: 75 | H177: =G177/F177 -> 10.71428571 | I177: 7 | J177: 5 | K177: 13 | L177: =K177/F177 -> 1.857142857 | M177: 3.28155019 | N177: 2.83 | O177: 3.74842105 | P177: 4.16674157 | Q177: 525 | R177: 409.6728571 | S177: 387.63 | T177: 366.57 | U177: - | V177: -
A178: 174 | B178: 대구 | C178: 공과대학 | D178: 건축학부(건축공학전공) | E178: 학생부교과(지역인재) | F178: 5 | G178: 42 | H178: 8.4 | I178: 4 | J178: 2 | K178: 7 | L178: =K178/F178 -> 1.4 | M178: 3.968720832 | N178: 3.26 | O178: 4.42391753 | P178: 4.42391753 | Q178: 525 | R178: 376.605 | S178: 353.87 | T178: 353.87 | U178: - | V178: -
A179: 175 | B179: 대구 | C179: 공과대학 | D179: 건축학부(건축공학전공) | E179: 논술(AAT)전형 | F179: 10 | G179: 165 | H179: =G179/F179 -> 16.5 | I179: 10 | J179: 3 | K179: 25 | L179: =K179/F179 -> 2.5 | M179: 4.298895784 | N179: - | O179: - | P179: - | Q179: - | R179: - | S179: - | T179: - | U179: 350 | V179: 101.25
A180: 176 | B180: 대구 | C180: 공과대학 | D180: 건축학부(건축공학전공) | E180: 학생부종합(일반학생) | F180: 7 | G180: 75 | H180: =G180/F180 -> 10.71428571 | I180: 6 | J180: 6 | K180: 35 | L180: =K180/F180 -> 5 | M180: 2.896135038 | N180: 2.76 | O180: 2.83010753 | P180: 3.23353535 | Q180: - | R180: - | S180: - | T180: - | U180: - | V180: -
A181: 177 | B181: 대구 | C181: 공과대학 | D181: 건축학부(건축공학전공) | E181: 학생부종합(농어촌학생등) | F181: 2 | G181: 11 | H181: =G181/F181 -> 5.5 | I181: 2 | J181: 3 | K181: - | L181: - | M181: - | N181: - | O181: - | P181: - | Q181: - | R181: - | S181: - | T181: - | U181: - | V181: -
A182: 178 | B182: 대구 | C182: 공과대학 | D182: 건축학부(건축공학전공) | E182: 학생부종합(기초생활수급자등대상자등) | F182: 1 | G182: 6 | H182: 6 | I182: 1 | J182: 3 | K182: - | L182: - | M182: - | N182: - | O182: - | P182: - | Q182: - | R182: - | S182: - | T182: - | U182: - | V182: -
A183: 179 | B183: 대구 | C183: 공과대학 | D183: 토목공학과 | E183: 학생부교과(일반학생) | F183: 8 | G183: 93 | H183: =G183/F183 -> 11.625 | I183: 8 | J183: 11 | K183: 21 | L183: =K183/F183 -> 2.625 | M183: 2.898975921 | N183: 2.85 | O183: 2.94461539 | P183: 2.95736842 | Q183: 525 | R183: 429.29875 | S183: 427.75 | T183: 427.11 | U183: - | V183: -
A184: 180 | B184: 대구 | C184: 공과대학 | D184: 토목공학과 | E184: 학생부교과(지역인재) | F184: 7 | G184: 60 | H184: 8.571428571 | I184: 7 | J184: 4 | K184: 11 | L184: =K184/F184 -> 1.571428571 | M184: 3.540510023 | N184: 3.3 | O184: 3.62948454 | P184: 4.24212121 | Q184: 525 | R184: 397.1771429 | S184: 393.56 | T184: 362.88 | U184: - | V184: -
A185: 181 | B185: 대구 | C185: 공과대학 | D185: 토목공학과 | E185: 논술(AAT)전형 | F185: 12 | G185: 220 | H185: =G185/F185 -> 18.33333333 | I185: 11 | J185: 7 | K185: 34 | L185: =K185/F185 -> 2.833333333 | M185: 4.783656495 | N185: - | O185: - | P185: - | Q185: - | R185: - | S185: - | T185: - | U185: 350 | V185: 77.04545455
A186: 182 | B186: 대구 | C186: 공과대학 | D186: 토목공학과 | E186: 학생부종합(일반학생) | F186: 4 | G186: 40 | H186: =G186/F186 -> 10 | I186: 4 | J186: 4 | K186: 16 | L186: =K186/F186 -> 4 | M186: 4.013111517 | N186: 3.65 | O186: 4.2514 | P186: 4.2514 | Q186: - | R186: - | S186: - | T186: - | U186: - | V186: -
A187: 183 | B187: 대구 | C187: 공과대학 | D187: 토목공학과 | E187: 학생부종합(농어촌학생등) | F187: 3 | G187: 18 | H187: =G187/F187 -> 6 | I187: 3 | J187: 0 | K187: - | L187: - | M187: 3.911166057 | N187: 3.73 | O187: 3.72619469 | P187: 4.28886598 | Q187: - | R187: - | S187: - | T187: - | U187: - | V187: -
A188: 184 | B188: 대구 | C188: 공과대학 | D188: 토목공학과 | E188: 학생부종합(기초생활수급자등대상자등) | F188: 2 | G188: 10 | H188: 5 | I188: 2 | J188: 1 | K188: - | L188: - | M188: - | N188: - | O188: - | P188: - | Q188: - | R188: - | S188: - | T188: - | U188: - | V188: -
A189: 185 | B189: 대구 | C189: 공과대학 | D189: 응용화학과 | E189: 학생부교과(일반학생) | F189: 9 | G189: 93 | H189: =G189/F189 -> 10.33333333 | I189: 9 | J189: 5 | K189: 34 | L189: =K189/F189 -> 3.777777778 | M189: 2.219555612 | N189: 2.24 | O189: 2.27459184 | P189: 2.37164949 | Q189: 525 | R189: 463.2977778 | S189: 461.22 | T189: 456.04 | U189: - | V189: -
A190: 186 | B190: 대구 | C190: 공과대학 | D190: 응용화학과 | E190: 논술(AAT)전형 | F190: 5 | G190: 79 | H190: =G190/F190 -> 15.8 | I190: 5 | J190: 1 | K190: 16 | L190: =K190/F190 -> 3.2 | M190: 4.228299064 | N190: - | O190: - | P190: - | Q190: - | R190: - | S190: - | T190: - | U190: 350 | V190: 98.5
A191: 187 | B191: 대구 | C191: 공과대학 | D191: 응용화학과 | E191: 학생부종합(일반학생) | F191: 8 | G191: 78 | H191: =G191/F191 -> 9.75 | I191: 8 | J191: 7 | K191: 45 | L191: =K191/F191 -> 5.625 | M191: 2.838398048 | N191: 2.72 | O191: 3.17031579 | P191: 3.1745055 | Q191: - | R191: - | S191: - | T191: - | U191: - | V191: -
A192: 188 | B192: 대구 | C192: 공과대학 | D192: 응용화학과 | E192: 학생부종합(지역인재) | F192: 5 | G192: 34 | H192: =G192/F192 -> 6.8 | I192: 5 | J192: 0 | K192: - | L192: - | M192: 3.367528945 | N192: 3.33 | O192: 3.70329787 | P192: 3.70329787 | Q192: - | R192: - | S192: - | T192: - | U192: - | V192: -
A193: 189 | B193: 대구 | C193: 공과대학 | D193: 응용화학과 | E193: 학생부종합(농어촌학생등) | F193: 2 | G193: 8 | H193: =G193/F193 -> 4 | I193: 2 | J193: 2 | K193: - | L193: - | M193: - | N193: - | O193: - | P193: - | Q193: - | R193: - | S193: - | T193: - | U193: - | V193: -
A194: 190 | B194: 대구 | C194: 공과대학 | D194: 응용화학과 | E194: 학생부종합(기초생활수급자등대상자등) | F194: 1 | G194: 4 | H194: 4 | I194: 1 | J194: 0 | K194: - | L194: - | M194: - | N194: - | O194: - | P194: - | Q194: - | R194: - | S194: - | T194: - | U194: - | V194: -
A195: 191 | B195: 대구 | C195: 공과대학 | D195: 화학공학과 | E195: 학생부교과(일반학생) | F195: 8 | G195: 152 | H195: =G195/F195 -> 19 | I195: 7 | J195: 13 | K195: 66 | L195: =K195/F195 -> 8.25 | M195: 2.012249706 | N195: 2.06 | O195: 2.08060606 | P195: 2.15850467 | Q195: 525 | R195: 474.3542857 | S195: 470.96 | T195: 467.06 | U195: - | V195: -
A196: 192 | B196: 대구 | C196: 공과대학 | D196: 화학공학과 | E196: 논술(AAT)전형 | F196: 5 | G196: 143 | H196: =G196/F196 -> 28.6 | I196: 5 | J196: 0 | K196: 60 | L196: =K196/F196 -> 12 | M196: 4.16546921 | N196: - | O196: - | P196: - | Q196: - | R196: - | S196: - | T196: - | U196: 350 | V196: 204
A197: 193 | B197: 대구 | C197: 공과대학 | D197: 화학공학과 | E197: 학생부종합(일반학생) | F197: 8 | G197: 122 | H197: =G197/F197 -> 15.25 | I197: 8 | J197: 8 | K197: 75 | L197: =K197/F197 -> 9.375 | M197: 2.721309091 | N197: 2.73 | O197: 2.80965909 | P197: 3.02157895 | Q197: - | R197: - | S197: - | T197: - | U197: - | V197: -
A198: 194 | B198: 대구 | C198: 공과대학 | D198: 화학공학과 | E198: 학생부종합(지역인재) | F198: 5 | G198: 41 | H198: =G198/F198 -> 8.2 | I198: 5 | J198: 3 | K198: - | L198: - | M198: 2.307421493 | N198: 2.27 | O198: 2.38545455 | P198: 2.38545455 | Q198: - | R198: - | S198: - | T198: - | U198: - | V198: -
A199: 195 | B199: 대구 | C199: 공과대학 | D199: 화학공학과 | E199: 학생부종합(농어촌학생등) | F199: 2 | G199: 11 | H199: =G199/F199 -> 5.5 | I199: 2 | J199: 0 | K199: - | L199: - | M199: - | N199: - | O199: - | P199: - | Q199: - | R199: - | S199: - | T199: - | U199: - | V199: -
A200: 196 | B200: 대구 | C200: 공과대학 | D200: 화학공학과 | E200: 학생부종합(기초생활수급자등대상자등) | F200: 2 | G200: 10 | H200: 5 | I200: 2 | J200: 2 | K200: - | L200: - | M200: - | N200: - | O200: - | P200: - | Q200: - | R200: - | S200: - | T200: - | U200: - | V200: -
... 263 more rows

Sheet 2022학년도 학과별 성적자료(정시)
A1: 2022학년도 학과별 성적자료(정시)
A2: 캠퍼스 | B2: 대학 | C2: 모집군 | D2: 모집단위 | E2: 2021학년도 지원 현황 | I2: 추합최종번호 | J2: 수능반영유형 | K2: 입학자 환산점수 | P2: 입학자 백분위 합(국,수,탐1,탐2) | U2: 입학자 백분위 70% cut | X2: 입학자 표준점수 | AC2: 영어
E3: 모집인원 | F3: 지원인원 | G3: 경쟁률 | H3: 입학인원 | I3: 합격자 기준 | K3: 만점 | L3: 평균 | M3: 표준편차 | N3: 0.7 | O3: 0.85 | P3: 만점 | Q3: 평균 | R3: 표준편차 | S3: 0.7 | T3: 0.85 | U3: 국어 | V3: 수학 | W3: 탐구(평균) | X3: 만점 | Y3: 평균 | Z3: 표준편차 | AA3: 0.7 | AB3: 0.85 | AC3: 평균등급
A4: 대구 | B4: 인문대학 | C4: 가군 | D4: 국어국문학과 | E4: 11 | F4: 85 | G4: 7.727272727 | H4: 11 | I4: 22 | J4: 국,수,영,탐(탐2) | K4: 1000 | L4: 657.9709091 | M4: 5.663041994 | N4: 655.33 | O4: 653.07 | P4: 300 | Q4: 235.6818182 | R4: 9.745098365 | S4: 231 | T4: 226.5 | U4: 85 | V4: 58 | W4: 77 | X4: 600 | Y4: 354.27 | Z4: 5.63 | AA4: 350 | AB4: 350 | AC4: 2.545454545
D5: 영어영문학과 | E5: 20 | F5: 141 | G5: 7.05 | H5: 20 | I5: 12 | J5: 국,수,영,탐(탐2) | K5: 1000 | L5: 664.6325 | M5: 4.544094932 | N5: 661.61 | O5: 660.69 | P5: 300 | Q5: 234.7 | R5: 8.042698552 | S5: 231.5 | T5: 224.5 | U5: 78 | V5: 70 | W5: 71 | X5: 600 | Y5: 353.7 | Z5: 5.07 | AA5: 352 | AB5: 347 | AC5: 1.95
D6: 사학과 | E6: 8 | F6: 59 | G6: 7.375 | H6: 8 | I6: 7 | J6: 국,수,영,탐(탐2) | K6: 1000 | L6: 654.51125 | M6: 5.877553567 | N6: 652.13 | O6: 647.23 | P6: 300 | Q6: 235.4375 | R6: 6.839396446 | S6: 233 | T6: 227 | U6: 78 | V6: 66 | W6: 83 | X6: 600 | Y6: 353.88 | Z6: 4.28 | AA6: 352 | AB6: 349 | AC6: 2.125
D7: 철학과 | E7: 7 | F7: 60 | G7: 8.571428571 | H7: 7 | I7: 6 | J7: 국,수,영,탐(탐2) | K7: 1000 | L7: 652.4414286 | M7: 5.155220457 | N7: 648.41 | O7: 646.36 | P7: 300 | Q7: 229.2857143 | R7: 6.163586287 | S7: 225.5 | T7: 225.5 | U7: 63 | V7: 74 | W7: 82.5 | X7: 600 | Y7: 352 | Z7: 2.45 | AA7: 349 | AB7: 349 | AC7: 2.571428571
D8: 불어불문학과 | E8: 15 | F8: 114 | G8: 7.6 | H8: 15 | I8: 7 | J8: 국,수,영,탐(탐2) | K8: 1000 | L8: 651.2446667 | M8: 6.222794513 | N8: 646.58 | O8: 645.17 | P8: 300 | Q8: 225.0666667 | R8: 9.168545262 | S8: 218 | T8: 215.5 | U8: 71 | V8: 69 | W8: 74.5 | X8: 600 | Y8: 347.73 | Z8: 5.62 | AA8: 343 | AB8: 341 | AC8: 2
D9: 독어독문학과 | E9: 9 | F9: 66 | G9: 7.333333333 | H9: 9 | I9: 9 | J9: 국,수,영,탐(탐2) | K9: 1000 | L9: 650.38 | M9: 2.311824676 | N9: 648.92 | O9: 647.76 | P9: 300 | Q9: 226.9444444 | R9: 10.17197797 | S9: 226 | T9: 220 | U9: 84 | V9: 69 | W9: 66.5 | X9: 600 | Y9: 348.56 | Z9: 6.36 | AA9: 347 | AB9: 346 | AC9: 2.777777778
D10: 중어중문학과 | E10: 11 | F10: 74 | G10: 6.727272727 | H10: 11 | I10: 8 | J10: 국,수,영,탐(탐2) | K10: 1000 | L10: 651.9609091 | M10: 2.456477354 | N10: 650.3 | O10: 649.35 | P10: 300 | Q10: 229.7272727 | R10: 7.661484654 | S10: 224 | T10: 221.5 | U10: 76 | V10: 66 | W10: 75 | X10: 600 | Y10: 350.27 | Z10: 4.65 | AA10: 348 | AB10: 345 | AC10: 2.454545455
D11: 고고인류학과 | E11: 8 | F11: 48 | G11: 6 | H11: 8 | I11: 7 | J11: 국,수,영,탐(탐2) | K11: 1000 | L11: 644.31375 | M11: 6.295311624 | N11: 639.12 | O11: 638.78 | P11: 300 | Q11: 221.25 | R11: 8.246211251 | S11: 216 | T11: 216 | U11: 78 | V11: 66 | W11: 69.5 | X11: 600 | Y11: 345.5 | Z11: 5.81 | AA11: 342 | AB11: 341 | AC11: 2.875
D12: 일어일문학과 | E12: 9 | F12: 57 | G12: 6.333333333 | H12: 9 | I12: 5 | J12: 국,수,영,탐(탐2) | K12: 1000 | L12: 655 | M12: 5.727838452 | N12: 652 | O12: 650.42 | P12: 300 | Q12: 225.6666667 | R12: 7.241853661 | S12: 226.5 | T12: 217.5 | U12: 78 | V12: 70 | W12: 65.5 | X12: 600 | Y12: 348.44 | Z12: 5.08 | AA12: 349 | AB12: 346 | AC12: 2.333333333
D13: 한문학과 | E13: 7 | F13: 51 | G13: 7.285714286 | H13: 7 | I13: 3 | J13: 국,수,영,탐(탐2) | K13: 1000 | L13: 644.3114286 | M13: 1.91516824 | N13: 643.18 | O13: 643.14 | P13: 300 | Q13: 222.7142857 | R13: 6.040678432 | S13: 219.5 | T13: 218.5 | U13: 76 | V13: 61 | W13: 68.5 | X13: 600 | Y13: 346.14 | Z13: 3.72 | AA13: 344 | AB13: 342 | AC13: 2.714285714
D14: 노어노문학과 | E14: 9 | F14: 54 | G14: 6 | H14: 9 | I14: 5 | J14: 국,수,영,탐(탐2) | K14: 1000 | L14: 649.1577778 | M14: 3.364315277 | N14: 647.5 | O14: 646.83 | P14: 300 | Q14: 219.2777778 | R14: 4.825344611 | S14: 217.5 | T14: 214.5 | U14: 82 | V14: 66 | W14: 68.5 | X14: 600 | Y14: 342.89 | Z14: 3.21 | AA14: 340 | AB14: 340 | AC14: 2
B15: 사회과학대학 | C15: 나군 | D15: 정치외교학과 | E15: 14 | F15: 92 | G15: 6.571428571 | H15: 14 | I15: 9 | J15: 국,수,영,탐(탐2) | K15: 1000 | L15: 660.8342857 | M15: 2.952668803 | N15: 659.15 | O15: 658.16 | P15: 300 | Q15: 233.6785714 | R15: 9.471021862 | S15: 229 | T15: 219 | U15: 80 | V15: 70 | W15: 74.5 | X15: 600 | Y15: 353.64 | Z15: 5.74 | AA15: 352 | AB15: 343 | AC15: 2.428571429
D16: 사회학과 | E16: 15 | F16: 76 | G16: 5.066666667 | H16: 16 | I16: 10 | J16: 국,수,영,탐(탐2) | K16: 1000 | L16: 657.919375 | M16: 5.109851354 | N16: 654.74 | O16: 652.68 | P16: 300 | Q16: 235 | R16: 7.804245639 | S16: 231.5 | T16: 229.5 | U16: 76 | V16: 72 | W16: 76 | X16: 600 | Y16: 354.06 | Z16: 4.41 | AA16: 353 | AB16: 350 | AC16: 2.5
D17: 지리학과 | E17: 11 | F17: 63 | G17: 5.727272727 | H17: 11 | I17: 6 | J17: 국,수,영,탐(탐2) | K17: 1000 | L17: 654.4309091 | M17: 4.204656411 | N17: 650.71 | O17: 650.44 | P17: 300 | Q17: 229.8181818 | R17: 7.589684169 | S17: 228 | T17: 223.5 | U17: 80 | V17: 67 | W17: 69.5 | X17: 600 | Y17: 350.91 | Z17: 5.05 | AA17: 349 | AB17: 347 | AC17: 2.363636364
D18: 문헌정보학과 | E18: 11 | F18: 49 | G18: 4.454545455 | H18: 11 | I18: 4 | J18: 국,수,영,탐(탐2) | K18: 1000 | L18: 656.5536364 | M18: 3.429763503 | N18: 654.38 | O18: 654.31 | P18: 300 | Q18: 230.4545455 | R18: 9.511845594 | S18: 228.5 | T18: 224 | U18: 80 | V18: 70 | W18: 69.5 | X18: 600 | Y18: 352.09 | Z18: 7.06 | AA18: 351 | AB18: 349 | AC18: 2.636363636
D19: 심리학과 | E19: 9 | F19: 38 | G19: 4.222222222 | H19: 9 | I19: 6 | J19: 국,수,영,탐(탐2) | K19: 1000 | L19: 660.1144444 | M19: 11.02145595 | N19: 650.81 | O19: 647.66 | P19: 300 | Q19: 233.6666667 | R19: 17.5657495 | S19: 221.5 | T19: 214 | U19: 88 | V19: 67 | W19: 69 | X19: 600 | Y19: 353.56 | Z19: 11.02 | AA19: 345 | AB19: 341 | AC19: 2.444444444
D20: 사회복지학부 | E20: 23 | F20: 125 | G20: 5.434782609 | H20: 23 | I20: 13 | J20: 국,수,영,탐(탐2) | K20: 1000 | L20: 655.9069565 | M20: 4.487682112 | N20: 653.23 | O20: 650.61 | P20: 300 | Q20: 229.5434783 | R20: 8.114550864 | S20: 226.5 | T20: 222 | U20: 78 | V20: 70 | W20: 68 | X20: 600 | Y20: 350.87 | Z20: 5.38 | AA20: 349 | AB20: 347 | AC20: 2.217391304
D21: 미디어커뮤니케이션학과 | E21: 15 | F21: 73 | G21: 4.866666667 | H21: 16 | I21: 12 | J21: 국,수,영,탐(탐2) | K21: 1000 | L21: 666.29 | M21: 3.48790589 | N21: 663.78 | O21: 663.26 | P21: 300 | Q21: 240.21875 | R21: 6.30468266 | S21: 239.5 | T21: 233 | U21: 80 | V21: 67 | W21: 75.5 | X21: 600 | Y21: 356.88 | Z21: 4.01 | AA21: 354 | AB21: 352 | AC21: 2.125
B22: 자연과학대학 | C22: 가군 | D22: 수학과 | E22: 15 | F22: 103 | G22: 6.866666667 | H22: 15 | I22: 10 | J22: 국,수,영,탐(탐2) | K22: 1000 | L22: 658.7226667 | M22: 8.763973579 | N22: 652.59 | O22: 652.09 | P22: 300 | Q22: 243.1333333 | R22: 12.64181773 | S22: 232.5 | T22: 232 | U22: 75 | V22: 85 | W22: 74.5 | X22: 600 | Y22: 362.47 | Z22: 8.38 | AA22: 357 | AB22: 354 | AC22: 2.8
D23: 물리학과 | E23: 26 | F23: 156 | G23: 6 | H23: 27 | I23: 17 | J23: 국,수,영,탐(탐2) | K23: 1000 | L23: 655.5992593 | M23: 8.840416835 | N23: 652.35 | O23: 646.61 | P23: 300 | Q23: 238.4814815 | R23: 11.07088397 | S23: 232 | T23: 225.5 | U23: 69 | V23: 82 | W23: 73.5 | X23: 600 | Y23: 359 | Z23: 6.31 | AA23: 356 | AB23: 352 | AC23: 2.407407407
D24: 화학과 | E24: 14 | F24: 82 | G24: 5.857142857 | H24: 15 | I24: 15 | J24: 국,수,영,탐(탐2) | K24: 1000 | L24: 658.8073333 | M24: 9.000749203 | N24: 652.98 | O24: 649.38 | P24: 300 | Q24: 240.8333333 | R24: 10.15819319 | S24: 237 | T24: 230 | U24: 84 | V24: 79 | W24: 67.5 | X24: 600 | Y24: 360.8 | Z24: 6.65 | AA24: 355 | AB24: 353 | AC24: 2
D25: 생명과학부(생명공학전공) | E25: 28 | F25: 191 | G25: 6.821428571 | H25: 28 | I25: 21 | J25: 국,수,영,탐(탐2) | K25: 1000 | L25: 672.3707143 | M25: 7.459598289 | N25: 667.85 | O25: 665.63 | P25: 300 | Q25: 255.5535714 | R25: 9.082301555 | S25: 250.5 | T25: 245 | U25: 85 | V25: 84 | W25: 74.5 | X25: 600 | Y25: 370.14 | Z25: 6.29 | AA25: 365 | AB25: 364 | AC25: 2.107142857
D26: 생명과학부(생물학전공) | E26: 16 | F26: 99 | G26: 6.1875 | H26: 16 | I26: 6 | J26: 국,수,영,탐(탐2) | K26: 1000 | L26: 653.51625 | M26: 7.939420535 | N26: 650.29 | O26: 649.05 | P26: 300 | Q26: 239.03125 | R26: 8.66470706 | S26: 237 | T26: 231.5 | U26: 76 | V26: 82 | W26: 68 | X26: 600 | Y26: 358.13 | Z26: 6.09 | AA26: 354 | AB26: 353 | AC26: 2.375
D27: 통계학과 | E27: 14 | F27: 93 | G27: 6.642857143 | H27: 14 | I27: 7 | J27: 국,수,영,탐(탐2) | K27: 1000 | L27: 666.3214286 | M27: 4.624621772 | N27: 663.8 | O27: 662.79 | P27: 300 | Q27: 247.5 | R27: 6.997448515 | S27: 244.5 | T27: 241 | U27: 73 | V27: 87 | W27: 76 | X27: 600 | Y27: 365.5 | Z27: 3.52 | AA27: 363 | AB27: 362 | AC27: 2.428571429
D28: 지구시스템과학부 | E28: 33 | F28: 308 | G28: 9.333333333 | H28: 31 | I28: 32 | J28: 국,수,영,탐(탐2) | K28: 1000 | L28: 645.5745161 | M28: 5.228801651 | N28: 641.61 | O28: 640.31 | P28: 300 | Q28: 227.0322581 | R28: 8.729755829 | S28: 222 | T28: 219 | U28: 63 | V28: 82 | W28: 65.5 | X28: 600 | Y28: 352.16 | Z28: 4.89 | AA28: 347 | AB28: 346 | AC28: 2.64516129
B29: 경상대학 | C29: 가군 | D29: 경제통상학부 | E29: 61 | F29: 258 | G29: 4.229508197 | H29: 63 | I29: 34 | J29: 국,수,영,탐(탐2) | K29: 1000 | L29: 670.3039683 | M29: 6.319052204 | N29: 666.15 | O29: 665.1 | P29: 300 | Q29: 244.6825397 | R29: 8.661766741 | S29: 239.5 | T29: 236.5 | U29: 80 | V29: 74 | W29: 74 | X29: 600 | Y29: 361.21 | Z29: 6.33 | AA29: 357 | AB29: 354 | AC29: 2.428571429
D30: 경영학부 | E30: 81 | F30: 361 | G30: 4.456790123 | H30: 80 | I30: 50 | J30: 국,수,영,탐(탐2) | K30: 1000 | L30: 678.9985 | M30: 6.602461681 | N30: 674.89 | O30: 672.43 | P30: 300 | Q30: 248.28125 | R30: 9.185193163 | S30: 244 | T30: 238.5 | U30: 80 | V30: 77 | W30: 73.5 | X30: 600 | Y30: 364.71 | Z30: 6.06 | AA30: 360 | AB30: 358 | AC30: 2.175
B31: 공과대학 | C31: 나군 | D31: 신소재공학부 | E31: 25 | F31: 119 | G31: 4.76 | H31: 24 | I31: 12 | J31: 국,수,영,탐(탐2) | K31: 1000 | L31: 666.3366667 | M31: 4.502874699 | N31: 663.56 | O31: 663.11 | P31: 300 | Q31: 247.8125 | R31: 7.575745975 | S31: 243 | T31: 240 | U31: 76 | V31: 87 | W31: 75.5 | X31: 600 | Y31: 365.13 | Z31: 4.76 | AA31: 361 | AB31: 361 | AC31: 2.291666667
D32: 기계공학부 | E32: 40 | F32: 202 | G32: 5.05 | H32: 41 | I32: 27 | J32: 국,수,영,탐(탐2) | K32: 1000 | L32: 669.3356098 | M32: 4.085992162 | N32: 666.31 | O32: 665.51 | P32: 300 | Q32: 252.097561 | R32: 7.679732205 | S32: 247 | T32: 245 | U32: 76 | V32: 87 | W32: 76 | X32: 600 | Y32: 368.51 | Z32: 4.45 | AA32: 365 | AB32: 364 | AC32: 2.390243902
D33: 건축학부(건축학전공) | E33: 10 | F33: 65 | G33: 6.5 | H33: 10 | I33: 3 | J33: 국,수,영,탐(탐2) | K33: 1000 | L33: 664.914 | M33: 11.78810434 | N33: 657.33 | O33: 655 | P33: 300 | Q33: 250.05 | R33: 9.55889638 | S33: 246.5 | T33: 243 | U33: 80 | V33: 84 | W33: 82.5 | X33: 600 | Y33: 367 | Z33: 7.42 | AA33: 360 | AB33: 360 | AC33: 2.6
D34: 건축학부(건축공학전공) | E34: 12 | F34: 60 | G34: 5 | H34: 12 | I34: 7 | J34: 국,수,영,탐(탐2) | K34: 1000 | L34: 659.2925 | M34: 12.16111503 | N34: 653.4 | O34: 652.25 | P34: 300 | Q34: 241.5416667 | R34: 10.97432294 | S34: 239 | T34: 234.5 | U34: 80 | V34: 82 | W34: 74.5 | X34: 600 | Y34: 360.92 | Z34: 8.12 | AA34: 357 | AB34: 356 | AC34: 2
D35: 토목공학과 | E35: 25 | F35: 132 | G35: 5.28 | H35: 25 | I35: 5 | J35: 국,수,영,탐(탐2) | K35: 1000 | L35: 654.9548 | M35: 6.884398664 | N35: 650.71 | O35: 649.1 | P35: 300 | Q35: 239.98 | R35: 9.549324583 | S35: 235 | T35: 229 | U35: 73 | V35: 82 | W35: 70.5 | X35: 600 | Y35: 359.32 | Z35: 5.33 | AA35: 355 | AB35: 354 | AC35: 2.52
D36: 응용화학과 | E36: 13 | F36: 66 | G36: 5.076923077 | H36: 13 | I36: 5 | J36: 국,수,영,탐(탐2) | K36: 1000 | L36: 662.4876923 | M36: 4.571071502 | N36: 661.1 | O36: 658.75 | P36: 300 | Q36: 246.0384615 | R36: 5.503360996 | S36: 243 | T36: 240.5 | U36: 78 | V36: 87 | W36: 72 | X36: 600 | Y36: 363.15 | Z36: 3.48 | AA36: 361 | AB36: 359 | AC36: 2.230769231
D37: 화학공학과 | E37: 13 | F37: 58 | G37: 4.461538462 | H37: 14 | I37: 22 | J37: 국,수,영,탐(탐2) | K37: 1000 | L37: 669.6357143 | M37: 5.727621938 | N37: 665.68 | O37: 663.39 | P37: 300 | Q37: 250.5 | R37: 4.98927421 | S37: 249.5 | T37: 245.5 | U37: 78 | V37: 86 | W37: 75.5 | X37: 600 | Y37: 367.71 | Z37: 3.51 | AA37: 367 | AB37: 364 | AC37: 2.214285714
D38: 고분자공학과 | E38: 10 | F38: 55 | G38: 5.5 | H38: 12 | I38: 8 | J38: 국,수,영,탐(탐2) | K38: 1000 | L38: 657.3325 | M38: 2.403854977 | N38: 656.03 | O38: 655.51 | P38: 300 | Q38: 241.4166667 | R38: 4.725080834 | S38: 241.5 | T38: 237.5 | U38: 63 | V38: 80 | W38: 84.5 | X38: 600 | Y38: 359.25 | Z38: 2.2 | AA38: 358 | AB38: 357 | AC38: 2.083333333
D39: 섬유시스템공학과 | E39: 18 | F39: 103 | G39: 5.722222222 | H39: 18 | I39: 8 | J39: 국,수,영,탐(탐2) | K39: 1000 | L39: 640.7638889 | M39: 3.506673224 | N39: 638.55 | O39: 638.08 | P39: 300 | Q39: 226.2777778 | R39: 6.055810392 | S39: 222.5 | T39: 219.5 | U39: 61 | V39: 79 | W39: 73.5 | X39: 600 | Y39: 349.44 | Z39: 2.97 | AA39: 347 | AB39: 347 | AC39: 2.5
D40: 환경공학과 | E40: 13 | F40: 79 | G40: 6.076923077 | H40: 13 | I40: 5 | J40: 국,수,영,탐(탐2) | K40: 1000 | L40: 655.0423077 | M40: 3.598921107 | N40: 652.65 | O40: 652.04 | P40: 300 | Q40: 240.6153846 | R40: 5.317438098 | S40: 238.5 | T40: 235 | U40: 78 | V40: 82 | W40: 68 | X40: 600 | Y40: 358.85 | Z40: 3.55 | AA40: 355 | AB40: 353 | AC40: 2.153846154
D41: 에너지공학부 | E41: 11 | F41: 81 | G41: 7.363636364 | H41: 11 | I41: 6 | J41: 국,수,영,탐(탐2) | K41: 1000 | L41: 665.35 | M41: 3.570103131 | N41: 663.01 | O41: 662.59 | P41: 300 | Q41: 244.4545455 | R41: 9.852213746 | S41: 243 | T41: 236 | U41: 63 | V41: 88 | W41: 77.5 | X41: 600 | Y41: 365.18 | Z41: 3.83 | AA41: 362 | AB41: 360 | AC41: 2.363636364
B42: 농업생명과학대학 | C42: 나군 | D42: 응용생명과학부 | E42: 54 | F42: 351 | G42: 6.5 | H42: 55 | I42: 29 | J42: 국,수,영,탐(탐2) | K42: 1000 | L42: 647.624 | M42: 10.19336533 | N42: 642.64 | O42: 640.65 | P42: 300 | Q42: 232.8090909 | R42: 10.26888102 | S42: 228.5 | T42: 223 | U42: 71 | V42: 77 | W42: 68.5 | X42: 600 | Y42: 354.05 | Z42: 6.73 | AA42: 350 | AB42: 348 | AC42: 2.436363636
D43: 식품공학부 | E43: 60 | F43: 317 | G43: 5.283333333 | H43: 60 | I43: 16 | J43: 국,수,영,탐(탐2) | K43: 1000 | L43: 641.9408333 | M43: 7.386894767 | N43: 636.55 | O43: 635.44 | P43: 300 | Q43: 226.9916667 | R43: 9.674921045 | S43: 221.5 | T43: 218 | U43: 65 | V43: 77 | W43: 67 | X43: 600 | Y43: 350.3 | Z43: 5.72 | AA43: 345 | AB43: 344 | AC43: 2.55
D44: 산림과학.조경학부 | E44: 25 | F44: 119 | G44: 4.76 | H44: 25 | I44: 10 | J44: 국,수,영,탐(탐2) | K44: 1000 | L44: 638.9072 | M44: 6.087316992 | N44: 635.2 | O44: 633.98 | P44: 300 | Q44: 229.26 | R44: 8.416792738 | S44: 224.5 | T44: 221 | U44: 67 | V44: 72 | W44: 73.5 | X44: 600 | Y44: 350.96 | Z44: 4.48 | AA44: 348 | AB44: 347 | AC44: 2.68
D45: 원예과학과 | E45: 17 | F45: 79 | G45: 4.647058824 | H45: 17 | I45: 1 | J45: 국,수,영,탐(탐2) | K45: 1000 | L45: 636.8582353 | M45: 9.704274519 | N45: 631.28 | O45: 629.94 | P45: 300 | Q45: 220.4411765 | R45: 12.01944791 | S45: 215 | T45: 209.5 | U45: 63 | V45: 77 | W45: 63 | X45: 600 | Y45: 346.53 | Z45: 7.55 | AA45: 341 | AB45: 340 | AC45: 2.470588235
D46: 농업토목.생물산업공학부 | E46: 25 | F46: 119 | G46: 4.76 | H46: 25 | I46: 7 | J46: 국,수,영,탐(탐2) | K46: 1000 | L46: 636.3524 | M46: 3.279355156 | N46: 634.39 | O46: 632.55 | P46: 300 | Q46: 221.92 | R46: 7.755875192 | S46: 218 | T46: 213 | U46: 65 | V46: 77 | W46: 65 | X46: 600 | Y46: 347.12 | Z46: 4.12 | AA46: 344 | AB46: 343 | AC46: 2.64
D47: 바이오섬유소재학과 | E47: 10 | F47: 56 | G47: 5.6 | H47: 10 | I47: 5 | J47: 국,수,영,탐(탐2) | K47: 1000 | L47: 640.068 | M47: 7.723542969 | N47: 636.81 | O47: 632.93 | P47: 300 | Q47: 223.1 | R47: 10.63672882 | S47: 221 | T47: 210 | U47: 61 | V47: 80 | W47: 60 | X47: 600 | Y47: 348.4 | Z47: 6.3 | AA47: 346 | AB47: 339 | AC47: 2.5
D48: 식품자원경제학과 | E48: 17 | F48: 74 | G48: 4.352941176 | H48: 16 | I48: 4 | J48: 국,수,영,탐(탐2) | K48: 1000 | L48: 657.360625 | M48: 2.93086478 | N48: 655.68 | O48: 654.38 | P48: 300 | Q48: 231.9375 | R48: 6.181815571 | S48: 227.5 | T48: 226 | U48: 80 | V48: 72 | W48: 71 | X48: 600 | Y48: 352.44 | Z48: 3.18 | AA48: 350 | AB48: 348 | AC48: 2.5
B49: 예술대학 | C49: 가군 | D49: 음악학과 | E49: 7 | F49: 9 | G49: 1.285714286 | H49: 3 | I49: 1 | J49: 국,영,탐(탐2) | K49: 1000 | L49: 826.09 | M49: 8.390856134 | N49: 818.28 | O49: 817.28 | P49: 200 | Q49: 77.89 | R49: 21.7919455 | S49: 59 | T49: 56.25 | U49: 31 | V49: - | W49: 21.5 | X49: 400 | Y49: - | Z49: - | AA49: - | AB49: - | AC49: 4.666666667
D50: 국악학과 | E50: 1 | F50: - | G50: - | H50: - | I50: - | J50: 국,영,탐(탐2) | K50: 1000 | L50: - | M50: - | N50: - | O50: - | P50: 200 | Q50: - | R50: - | S50: - | T50: - | U50: - | V50: - | W50: - | X50: 400 | Y50: - | Z50: - | AA50: - | AB50: - | AC50: -
D51: 미술학과 | E51: 12 | F51: 7 | G51: 0.5833333333 | H51: 6 | I51: 0 | J51: 국,영,탐(탐2) | K51: 1000 | L51: 734.19 | M51: 24.31567441 | N51: 712.08 | O51: 691.04 | P51: 200 | Q51: 132.29 | R51: 15.13274595 | S51: 131 | T51: 99 | U51: 36 | V51: - | W51: 53 | X51: 400 | Y51: - | Z51: - | AA51: - | AB51: - | AC51: 3.5
D52: 디자인학과 | E52: 15 | F52: 83 | G52: 5.533333333 | H52: 15 | I52: 3 | J52: 국,영,탐(탐2) | K52: 1000 | L52: 729.392 | M52: 10.85187431 | N52: 720.35 | O52: 716.73 | P52: 200 | Q52: 151.7666667 | R52: 15.62889063 | S52: 140.5 | T52: 137.5 | U52: 51 | V52: - | W52: 72 | X52: 400 | Y52: 303.53 | Z52: 8.77 | AA52: 296 | AB52: 287 | AC52: 3
B53: 사범대학 | C53: 나군 | D53: 교육학과 | E53: 5 | F53: 29 | G53: 5.8 | H53: 5 | I53: 3 | J53: 국,수,영,탐(탐2) | K53: 1000 | L53: 662.904 | M53: 8.359611474 | N53: 655.49 | O53: 655.49 | P53: 300 | Q53: 238 | R53: 15.49193338 | S53: 233 | T53: 233 | U53: 67 | V53: 86 | W53: 76 | X53: 600 | Y53: 358.6 | Z53: 10.38 | AA53: 354 | AB53: 354 | AC53: 2.8
D54: 국어교육과 | E54: 19 | F54: 73 | G54: 3.842105263 | H54: 19 | I54: 8 | J54: 국,수,영,탐(탐2) | K54: 1000 | L54: 675.9221053 | M54: 7.36977153 | N54: 673.35 | O54: 669.49 | P54: 300 | Q54: 245.3421053 | R54: 7.703472613 | S54: 242.5 | T54: 237.5 | U54: 88 | V54: 72 | W54: 76.5 | X54: 600 | Y54: 361.53 | Z54: 5.41 | AA54: 358 | AB54: 356 | AC54: 1.947368421
D55: 영어교육과 | E55: 12 | F55: 47 | G55: 3.916666667 | H55: 12 | I55: 3 | J55: 국,수,영,탐(탐2) | K55: 1000 | L55: 681.1058333 | M55: 8.892363258 | N55: 676.98 | O55: 673.77 | P55: 300 | Q55: 245 | R55: 8.640987598 | S55: 241.5 | T55: 237.5 | U55: 85 | V55: 80 | W55: 67.5 | X55: 600 | Y55: 361.33 | Z55: 6.62 | AA55: 359 | AB55: 355 | AC55: 1.5
D56: 유럽어교육학부(독어교육전공) | E56: 7 | F56: 44 | G56: 6.285714286 | H56: 7 | I56: 3 | J56: 국,수,영,탐(탐2) | K56: 1000 | L56: 650.8885714 | M56: 10.93472768 | N56: 644.1 | O56: 643.87 | P56: 300 | Q56: 228 | R56: 7.516648189 | S56: 225.5 | T56: 219.5 | U56: 80 | V56: 58 | W56: 76 | X56: 600 | Y56: 350 | Z56: 4.9 | AA56: 348 | AB56: 346 | AC56: 2.428571429
D57: 유럽어교육학부(불어교육전공) | E57: 6 | F57: 41 | G57: 6.833333333 | H57: 6 | I57: 0 | J57: 국,수,영,탐(탐2) | K57: 1000 | L57: 654.905 | M57: 9.264679793 | N57: 649.68 | O57: 646.87 | P57: 300 | Q57: 225.9166667 | R57: 9.701446055 | S57: 221.5 | T57: 217 | U57: 69 | V57: 73 | W57: 78 | X57: 600 | Y57: 349.33 | Z57: 6.7 | AA57: 345 | AB57: 343 | AC57: 2
D58: 역사교육과 | E58: 9 | F58: 46 | G58: 5.111111111 | H58: 8 | I58: 6 | J58: 국,수,영,탐(탐2) | K58: 1000 | L58: 670.38375 | M58: 6.440407474 | N58: 663.9 | O58: 663.6 | P58: 300 | Q58: 244.75 | R58: 9.120718173 | S58: 239 | T58: 235 | U58: 87 | V58: 72 | W58: 74 | X58: 600 | Y58: 361.38 | Z58: 5.45 | AA58: 354 | AB58: 354 | AC58: 2.25
D59: 지리교육과 | E59: 10 | F59: 38 | G59: 3.8 | H59: 10 | I59: 6 | J59: 국,수,영,탐(탐2) | K59: 1000 | L59: 662.241 | M59: 8.859511781 | N59: 657.46 | O59: 653.06 | P59: 300 | Q59: 239 | R59: 11.59956896 | S59: 239 | T59: 224 | U59: 73 | V59: 74 | W59: 82 | X59: 600 | Y59: 356.6 | Z59: 7.39 | AA59: 355 | AB59: 348 | AC59: 2.4
D60: 일반사회교육과 | E60: 14 | F60: 77 | G60: 5.5 | H60: 14 | I60: 8 | J60: 국,수,영,탐(탐2) | K60: 1000 | L60: 662.1035714 | M60: 5.232126865 | N60: 658.83 | O60: 657.75 | P60: 300 | Q60: 237.8214286 | R60: 6.206583897 | S60: 235.5 | T60: 231 | U60: 75 | V60: 74 | W60: 75.5 | X60: 600 | Y60: 355.71 | Z60: 3.86 | AA60: 354 | AB60: 353 | AC60: 2.5
D61: 윤리교육과 | E61: 10 | F61: 42 | G61: 4.2 | H61: 10 | I61: 5 | J61: 국,수,영,탐(탐2) | K61: 1000 | L61: 664.578 | M61: 4.164321794 | N61: 662.25 | O61: 659.49 | P61: 300 | Q61: 240.3 | R61: 9.25796954 | S61: 235.5 | T61: 222 | U61: 84 | V61: 66 | W61: 79 | X61: 600 | Y61: 357.9 | Z61: 5.32 | AA61: 354 | AB61: 352 | AC61: 2.3
D62: 수학교육과 | E62: 9 | F62: 37 | G62: 4.111111111 | H62: 9 | I62: 10 | J62: 국,수,영,탐(탐2) | K62: 1000 | L62: 693.5555556 | M62: 7.517267694 | N62: 692.25 | O62: 682.04 | P62: 300 | Q62: 264.2777778 | R62: 7.656192523 | S62: 261 | T62: 255.5 | U62: 80 | V62: 92 | W62: 83 | X62: 600 | Y62: 381.78 | Z62: 4.1 | AA62: 382 | AB62: 371 | AC62: 2.111111111
D63: 물리교육과 | E63: 11 | F63: 38 | G63: 3.454545455 | H63: 11 | I63: 8 | J63: 국,수,영,탐(탐2) | K63: 1000 | L63: 650.2 | M63: 9.20709509 | N63: 644.3 | O63: 643.18 | P63: 300 | Q63: 237.4545455 | R63: 10.369217 | S63: 229 | T63: 228.5 | U63: 67 | V63: 80 | W63: 72 | X63: 600 | Y63: 359.55 | Z63: 8.61 | AA63: 354 | AB63: 352 | AC63: 3.181818182
D64: 화학교육과 | E64: 9 | F64: 34 | G64: 3.777777778 | H64: 8 | I64: 3 | J64: 국,수,영,탐(탐2) | K64: 1000 | L64: 657.24625 | M64: 2.936136652 | N64: 654.9 | O64: 654.38 | P64: 300 | Q64: 242.375 | R64: 7.003347414 | S64: 235.5 | T64: 234.5 | U64: 73 | V64: 81 | W64: 71.5 | X64: 600 | Y64: 360.75 | Z64: 3.93 | AA64: 357 | AB64: 356 | AC64: 2.25
D65: 생물교육과 | E65: 4 | F65: 13 | G65: 3.25 | H65: 4 | I65: 0 | J65: 국,수,영,탐(탐2) | K65: 1000 | L65: 671.82 | M65: 2.353093708 | N65: 670.39 | O65: 670.39 | P65: 300 | Q65: 246.375 | R65: 6.627358071 | S65: 245 | T65: 245 | U65: 63 | V65: 92 | W65: 85 | X65: 600 | Y65: 367.25 | Z65: 2.28 | AA65: 365 | AB65: 365 | AC65: 2.5
D66: 지구과학교육과 | E66: 9 | F66: 32 | G66: 3.555555556 | H66: 9 | I66: 2 | J66: 국,수,영,탐(탐2) | K66: 1000 | L66: 665 | M66: 7.016113201 | N66: 662.84 | O66: 657.95 | P66: 300 | Q66: 244.2222222 | R66: 10.22825909 | S66: 240.5 | T66: 231 | U66: 73 | V66: 88 | W66: 73.5 | X66: 600 | Y66: 363.67 | Z66: 6.32 | AA66: 358 | AB66: 357 | AC66: 2
D67: 가정교육과 | E67: 16 | F67: 66 | G67: 4.125 | H67: 16 | I67: 7 | J67: 국,수,영,탐(탐2) | K67: 1000 | L67: 633.79375 | M67: 8.137763725 | N67: 630.03 | O67: 628.08 | P67: 300 | Q67: 219.6875 | R67: 12.0983922 | S67: 217 | T67: 211.5 | U67: 69 | V67: 76 | W67: 62.5 | X67: 600 | Y67: 345.06 | Z67: 6.66 | AA67: 341 | AB67: 338 | AC67: 2.3125
D68: 체육교육과 | E68: 14 | F68: 43 | G68: 3.071428571 | H68: 14 | I68: 3 | J68: 국,수,영,탐(탐2) | K68: 1000 | L68: 730.765 | M68: 12.90676664 | N68: 727.42 | O68: 721.38 | P68: 300 | Q68: 240.0714286 | R68: 10.80816018 | S68: 235.5 | T68: 226.5 | U68: 71 | V68: 73 | W68: 79 | X68: 600 | Y68: 357.86 | Z68: 7.58 | AA68: 354 | AB68: 352 | AC68: 2.214285714
B69: 의과대학 | C69: 가군 | D69: 의예과 | E69: 50 | F69: 197 | G69: 3.94 | H69: 50 | I69: 43 | J69: 국,수,영,탐(탐2) | K69: 1000 | L69: 745.8 | M69: 4.556003881 | N69: 743.95 | O69: 741.38 | P69: 300 | Q69: 294.47 | R69: 2.691486578 | S69: 293.5 | T69: 291.5 | U69: 98 | V69: 98 | W69: 95 | X69: 600 | Y69: 417 | Z69: 3.98 | AA69: 415 | AB69: 412 | AC69: 1.4
B70: 치과대학 | C70: 가군 | D70: 치의예과 | E70: 23 | F70: 125 | G70: 5.434782609 | H70: 23 | I70: 34 | J70: 국,수,영,탐(탐2) | K70: 1000 | L70: 738.5643478 | M70: 1.487483507 | N70: 737.95 | O70: 737 | P70: 300 | Q70: 291.3913043 | R70: 1.756704683 | S70: 290.5 | T70: 289.5 | U70: 98 | V70: 98 | W70: 92 | X70: 600 | Y70: 412.13 | Z70: 2.23 | AA70: 410 | AB70: 409 | AC70: 1.913043478
B71: 수의과대학 | C71: 가군 | D71: 수의예과 | E71: 15 | F71: 100 | G71: 6.666666667 | H71: 15 | I71: 8 | J71: 국,수,영,탐(탐2) | K71: 1000 | L71: 730.0126667 | M71: 1.127950748 | N71: 729.19 | O71: 728.96 | P71: 300 | Q71: 288.3 | R71: 1.886796226 | S71: 287.5 | T71: 286.5 | U71: 97 | V71: 98 | W71: 89.5 | X71: 600 | Y71: 406.67 | Z71: 2.24 | AA71: 405 | AB71: 403 | AC71: 2
B72: 생활과학대학 | C72: 가군 | D72: 아동학부 | E72: 15 | F72: 101 | G72: 6.733333333 | H72: 15 | I72: 7 | J72: 국,수,영,탐(탐2) | K72: 1000 | L72: 639.986 | M72: 3.558042158 | N72: 637.45 | O72: 636.63 | P72: 300 | Q72: 227.0333333 | R72: 7.444162515 | S72: 224 | T72: 218.5 | U72: 57 | V72: 70 | W72: 80 | X72: 600 | Y72: 350.53 | Z72: 4.32 | AA72: 348 | AB72: 346 | AC72: 2.533333333
D73: 의류학과 | E73: 15 | F73: 96 | G73: 6.4 | H73: 15 | I73: 2 | J73: 국,수,영,탐(탐2) | K73: 1000 | L73: 631.7173333 | M73: 5.599441004 | N73: 628.3 | O73: 627.51 | P73: 300 | Q73: 213.9666667 | R73: 3.787992726 | S73: 211.5 | T73: 209 | U73: 65 | V73: 74 | W73: 55.5 | X73: 600 | Y73: 342 | Z73: 1.9 | AA73: 340 | AB73: 339 | AC73: 2.466666667
D74: 식품영양학과 | E74: 7 | F74: 55 | G74: 7.857142857 | H74: 9 | I74: 13 | J74: 국,수,영,탐(탐2) | K74: 1000 | L74: 639.9544444 | M74: 8.000807058 | N74: 634.44 | O74: 633.84 | P74: 300 | Q74: 226.3888889 | R74: 8.171011694 | S74: 225 | T74: 220.5 | U74: 69 | V74: 74 | W74: 74.5 | X74: 600 | Y74: 348.44 | Z74: 5.06 | AA74: 348 | AB74: 343 | AC74: 2.333333333
B75: 간호대학 | C75: 가군 | D75: 간호학과 | E75: 41 | F75: 190 | G75: 4.634146341 | H75: 39 | I75: 36 | J75: 국,수,영,탐(탐2) | K75: 1000 | L75: 676.0674359 | M75: 8.238164072 | N75: 672.15 | O75: 668.06 | P75: 300 | Q75: 256.4871795 | R75: 8.999634736 | S75: 251.5 | T75: 249 | U75: 82 | V75: 88 | W75: 78.5 | X75: 600 | Y75: 371.36 | Z75: 6.14 | AA75: 367 | AB75: 363 | AC75: 1.948717949
B76: 약학대학 | C76: 가누 | D76: 약학과 | E76: 5 | F76: 59 | G76: 11.8 | H76: 5 | I76: 1 | J76: 국,수,영,탐(탐2) | K76: 1000 | L76: 730.974 | M76: 1.148418042 | N76: 730.1 | O76: 730.1 | P76: 300 | Q76: 287 | R76: 3.794733192 | S76: 280.5 | T76: 280.5 | U76: 93 | V76: 99 | W76: 88.5 | X76: 600 | Y76: 405.2 | Z76: 1.94 | AA76: 402 | AB76: 402 | AC76: 1.6
B77: IT대학 | C77: 가군 | D77: 전자공학부 | E77: 126 | F77: 557 | G77: 4.420634921 | H77: 128 | I77: 72 | J77: 국,수,영,탐(탐2) | K77: 1000 | L77: 688.8607812 | M77: 6.073412808 | N77: 684.01 | O77: 682.28 | P77: 300 | Q77: 265.9726562 | R77: 7.882513428 | S77: 262.5 | T77: 258.5 | U77: 82 | V77: 91 | W77: 82.5 | X77: 600 | Y77: 380.19 | Z77: 5.39 | AA77: 376 | AB77: 374 | AC77: 1.90625
D78: 컴퓨터학부 | E78: 45 | F78: 264 | G78: 5.866666667 | H78: 45 | I78: 28 | J78: 국,수,영,탐(탐2) | K78: 1000 | L78: 678.6302222 | M78: 6.013902962 | N78: 674.25 | O78: 673.66 | P78: 300 | Q78: 258.2888889 | R78: 7.195283091 | S78: 254 | T78: 251 | U78: 82 | V78: 88 | W78: 77.5 | X78: 600 | Y78: 373.42 | Z78: 4.92 | AA78: 370 | AB78: 368 | AC78: 1.822222222
D79: 컴퓨터학부 (글로벌소프트웨어융합전공) | E79: 45 | F79: 237 | G79: 5.266666667 | H79: 43 | I79: 36 | J79: 국,수,영,탐(탐2) | K79: 1000 | L79: 672.7551163 | M79: 4.564056933 | N79: 669.21 | O79: 668.48 | P79: 300 | Q79: 253.1976744 | R79: 7.007586864 | S79: 248 | T79: 244.5 | U79: 76 | V79: 84 | W79: 77.5 | X79: 600 | Y79: 369.63 | Z79: 4.67 | AA79: 367 | AB79: 364 | AC79: 2
D80: 전기공학과 | E80: 18 | F80: 117 | G80: 6.5 | H80: 18 | I80: 13 | J80: 국,수,영,탐(탐2) | K80: 1000 | L80: 676.1777778 | M80: 3.864957317 | N80: 673.49 | O80: 673.26 | P80: 300 | Q80: 258.1666667 | R80: 5.842849381 | S80: 255.5 | T80: 252 | U80: 82 | V80: 87 | W80: 75 | X80: 600 | Y80: 372.89 | Z80: 3.91 | AA80: 370 | AB80: 370 | AC80: 2.166666667
D81: 전자공학부 모바일공학전공 | E81: 10 | F81: 49 | G81: 4.9 | H81: 10 | I81: 2 | J81: 국,수,영,탐(탐2) | K81: 1000 | L81: 719.468 | M81: 1.665591787 | N81: 718.29 | O81: 717.68 | P81: 300 | Q81: 282.45 | R81: 5.34532506 | S81: 283 | T81: 279 | U81: 94 | V81: 96 | W81: 90.5 | X81: 600 | Y81: 399.8 | Z81: 2.64 | AA81: 397 | AB81: - | AC81: 1.5
B82: 자율전공부 | C82: 나군 | D82: 인문사회자율전공 | E82: 48 | F82: 239 | G82: 4.979166667 | H82: 48 | I82: 37 | J82: 국,수,영,탐(탐2) | K82: 1000 | L82: 665.291875 | M82: 4.778966789 | N82: 662.15 | O82: 660.24 | P82: 300 | Q82: 240.5520833 | R82: 9.957325394 | S82: 236 | T82: 232 | U82: 78 | V82: 70 | W82: 78.5 | X82: 600 | Y82: 357.81 | Z82: 5.66 | AA82: 355 | AB82: 353 | AC82: 2.25
D83: 자연과학자율전공 | E83: 20 | F83: 94 | G83: 4.7 | H83: 22 | I83: 20 | J83: 국,수,영,탐(탐2) | K83: 1000 | L83: 677.5818182 | M83: 4.623229525 | N83: 674.8 | O83: 673.18 | P83: 300 | Q83: 258.4318182 | R83: 8.682918778 | S83: 256.5 | T83: 250.5 | U83: 78 | V83: 88 | W83: 75 | X83: 600 | Y83: 373.64 | Z83: 4.89 | AA83: 370 | AB83: 368 | AC83: 2.272727273
B84: 행정학부 | C84: 나군 | D84: 행정학부 | E84: 28 | F84: 124 | G84: 4.428571429 | H84: 28 | I84: 16 | J84: 국,수,영,탐(탐2) | K84: 1000 | L84: 670.13 | M84: 10.09116622 | N84: 664.54 | O84: 662.94 | P84: 300 | Q84: 242.6428571 | R84: 12.66170911 | S84: 236.5 | T84: 231.5 | U84: 75 | V84: 76 | W84: 76 | X84: 600 | Y84: 359.75 | Z84: 7.83 | AA84: 356 | AB84: 354 | AC84: 2
A85: 상주 | B85: 생태환경대학 | C85: 나군 | D85: 생태환경시스템학부 | E85: 43 | F85: 106 | G85: 2.465116279 | H85: 42 | I85: 39 | J85: 국,수,영,탐(탐2) | K85: 1000 | L85: 544.5121429 | M85: 27.63354333 | N85: 529.19 | O85: 515.63 | P85: 300 | Q85: 135.297619 | R85: 27.99554801 | S85: 120 | T85: 113 | U85: 36 | V85: 42 | W85: 34 | X85: 600 | Y85: 291.6 | Z85: 18.43 | AA85: 281 | AB85: 276 | AC85: 3.857142857
D86: 곤충생명과학과 | E86: 21 | F86: 22 | G86: 1.047619048 | H86: 14 | I86: 1 | J86: 국,수,영,탐(탐2) | K86: 1000 | L86: 500.7207143 | M86: 41.11209093 | N86: 478.98 | O86: 455.01 | P86: 300 | Q86: 95.85714286 | R86: 37.01468269 | S86: 70.5 | T86: 58.5 | U86: 18 | V86: 28 | W86: 19.5 | X86: 600 | Y86: 263.36 | Z86: 26.23 | AA86: 249 | AB86: 235 | AC86: 4.428571429
D87: 축산학과 | E87: 18 | F87: 21 | G87: 1.166666667 | H87: 16 | I87: 3 | J87: 국,수,영,탐(탐2) | K87: 1000 | L87: 508.5525 | M87: 38.34788692 | N87: 489.01 | O87: 468.93 | P87: 300 | Q87: 106 | R87: 37.10710848 | S87: 93 | T87: 64.5 | U87: 30 | V87: 20 | W87: 22.5 | X87: 600 | Y87: 271.31 | Z87: 24.37 | AA87: 265 | AB87: 241 | AC87: 4.8125
D88: 축산생명공학과 | E88: 19 | F88: 33 | G88: 1.736842105 | H88: 18 | I88: 12 | J88: 국,수,영,탐(탐2) | K88: 1000 | L88: 535.6655556 | M88: 40.70508298 | N88: 510.84 | O88: 485.41 | P88: 300 | Q88: 128.3888889 | R88: 37.08943978 | S88: 103 | T88: 88.5 | U88: 36 | V88: 35 | W88: 26.5 | X88: 600 | Y88: 286.61 | Z88: 24.3 | AA88: 270 | AB88: 258 | AC88: 4
D89: 말/특수동물학과 | E89: 7 | F89: 20 | G89: 2.857142857 | H89: 7 | I89: 3 | J89: 국,수,영,탐(탐2) | K89: 1000 | L89: 563.1057143 | M89: 21.00006861 | N89: 553.13 | O89: 546.09 | P89: 300 | Q89: 149.9285714 | R89: 23.30761459 | S89: 138.5 | T89: 127.5 | U89: 37 | V89: 59 | W89: 24.5 | X89: 600 | Y89: 300.29 | Z89: 14.79 | AA89: 295 | AB89: 286 | AC89: 3.571428571
D90: 관광학과 | E90: 13 | F90: 34 | G90: 2.615384615 | H90: 12 | I90: 6 | J90: 국,수,영,탐(탐2) | K90: 1000 | L90: 594.6208333 | M90: 13.56246011 | N90: 589.85 | O90: 586.9 | P90: 300 | Q90: 172.7083333 | R90: 18.04676602 | S90: 170.5 | T90: 158 | U90: 51 | V90: 44 | W90: 58 | X90: 600 | Y90: 316.58 | Z90: 13.03 | AA90: 315 | AB90: 309 | AC90: 3.5
D91: 레저스포츠학과 | E91: 24 | F91: 85 | G91: 3.541666667 | H91: 24 | I91: 13 | J91: 국,영,탐(탐2) | K91: 1000 | L91: 734.5954167 | M91: 9.362890837 | N91: 729.16 | O91: 726.39 | P91: 200 | Q91: 145.3333333 | R91: 28.9491892 | S91: 122 | T91: 115 | U91: 45 | V91: 9 | W91: 62.5 | X91: 400 | Y91: 297.25 | Z91: 24.89 | AA91: 287 | AB91: 284 | AC91: 3.333333333
B92: 과학기술대학 | C92: 가군 | D92: 건설방재공학부 | E92: 57 | F92: 93 | G92: 1.631578947 | H92: 51 | I92: 36 | J92: 국,수,영,탐(탐2) | K92: 1000 | L92: 510.9580392 | M92: 47.53281521 | N92: 487.43 | O92: 459.83 | P92: 300 | Q92: 103.7254902 | R92: 42.28107556 | S92: 82 | T92: 59.5 | U92: 17 | V92: 27 | W92: 18.5 | X92: 600 | Y92: 269.06 | Z92: 29.82 | AA92: 255 | AB92: 234 | AC92: 4.333333333
D93: 정밀기계공학과 | E93: 37 | F93: 96 | G93: 2.594594595 | H93: 36 | I93: 31 | J93: 국,수,영,탐(탐2) | K93: 1000 | L93: 556.3077778 | M93: 21.07370533 | N93: 542.68 | O93: 535.16 | P93: 300 | Q93: 143.0416667 | R93: 19.22649178 | S93: 131 | T93: 123.5 | U93: 39 | V93: 50 | W93: 32 | X93: 600 | Y93: 296.03 | Z93: 13.1 | AA93: 290 | AB93: 282 | AC93: 3.583333333
D94: 자동차공학부 | E94: 45 | F94: 123 | G94: 2.733333333 | H94: 43 | I94: 33 | J94: 국,수,영,탐(탐2) | K94: 1000 | L94: 545.7069767 | M94: 21.17719446 | N94: 531.65 | O94: 521.46 | P94: 300 | Q94: 135.0697674 | R94: 22.19092141 | S94: 120 | T94: 113.5 | U94: 31 | V94: 44 | W94: 32 | X94: 600 | Y94: 291.28 | Z94: 14.16 | AA94: 282 | AB94: 276 | AC94: 3.930232558
D95: 소프트웨어학과 | E95: 11 | F95: 56 | G95: 5.090909091 | H95: 12 | I95: 18 | J95: 국,수,영,탐(탐2) | K95: 1000 | L95: 610.7066667 | M95: 9.249136296 | N95: 603.26 | O95: 602.2 | P95: 300 | Q95: 201.0416667 | R95: 11.14573598 | S95: 195 | T95: 192 | U95: 69 | V95: 66 | W95: 54.5 | X95: 600 | Y95: 332.67 | Z95: 6.54 | AA95: 329 | AB95: 326 | AC95: 3
D96: 나노소재공학부 | E96: 55 | F96: 145 | G96: 2.636363636 | H96: 55 | I96: 41 | J96: 국,수,영,탐(탐2) | K96: 1000 | L96: 576.0052727 | M96: 17.74486557 | N96: 565.73 | O96: 560.45 | P96: 300 | Q96: 161.8181818 | R96: 19.36664509 | S96: 151 | T96: 141.5 | U96: 39 | V96: 54 | W96: 39 | X96: 600 | Y96: 308.96 | Z96: 12.55 | AA96: 302 | AB96: 295 | AC96: 3.272727273
D97: 식품외식산업학과 | E97: 35 | F97: 94 | G97: 2.685714286 | H97: 34 | I97: 21 | J97: 국,수,영,탐(탐2) | K97: 1000 | L97: 545.8967647 | M97: 15.25411511 | N97: 534.21 | O97: 529.59 | P97: 300 | Q97: 135.8382353 | R97: 16.90184492 | S97: 126.5 | T97: 121.5 | U97: 34 | V97: 41 | W97: 41.5 | X97: 600 | Y97: 292.74 | Z97: 11.89 | AA97: 286 | AB97: 283 | AC97: 3.823529412
D98: 섬유패션디자인학부 (섬유공학전공) | E98: 27 | F98: 49 | G98: 1.814814815 | H98: 27 | I98: 21 | J98: 국,수,영,탐(탐2) | K98: 1000 | L98: 516.1940741 | M98: 43.7688996 | N98: 485.24 | O98: 471.38 | P98: 300 | Q98: 108.2222222 | R98: 39.48096901 | S98: 84.5 | T98: 64 | U98: 34 | V98: 23 | W98: 21 | X98: 600 | Y98: 273.96 | Z98: 26.48 | AA98: 260 | AB98: 247 | AC98: 4.037037037
D99: 융복합시스템공학부 | E99: 44 | F99: 108 | G99: 2.454545455 | H99: 41 | I99: 29 | J99: 국,수,영,탐(탐2) | K99: 1000 | L99: 559.5709756 | M99: 19.46520257 | N99: 546.3 | O99: 540.86 | P99: 300 | Q99: 147.3780488 | R99: 21.4114115 | S99: 130.5 | T99: 125.5 | U99: 36 | V99: 51 | W99: 28.5 | X99: 600 | Y99: 299.41 | Z99: 13.42 | AA99: 290 | AB99: 286 | AC99: 3.682926829
D100: 치위생학과 | E100: 14 | F100: 63 | G100: 4.5 | H100: 15 | I100: 12 | J100: 국,수,영,탐(탐2) | K100: 1000 | L100: 600.584 | M100: 11.79258174 | N100: 591.59 | O100: 584.54 | P100: 300 | Q100: 185.0333333 | R100: 16.50602584 | S100: 173 | T100: 169.5 | U100: 47 | V100: 62 | W100: 58 | X100: 600 | Y100: 323.93 | Z100: 9.96 | AA100: 318 | AB100: 315 | AC100: 2.733333333
D101: 섬유패션디자인학부 (패션디자인전공) | E101: 20 | F101: 64 | G101: 3.2 | H101: 20 | I101: 24 | J101: 국,수,영,탐(탐2) | K101: 1000 | L101: 623.564 | M101: 22.13458073 | N101: 607.38 | O101: 602.04 | P101: 300 | Q101: 158.575 | R101: 20.93339139 | S101: 150.5 | T101: 141 | U101: 49 | V101: 35 | W101: 58.5 | X101: 600 | Y101: 307.4 | Z101: 12.72 | AA101: 299 | AB101: 296 | AC101: 3.15
